Workbook

Sheet control
A1: Early Years Proforma 2013-14
A2: This worksheet allows you to view how each local authority allocates their early years funding
E3: 1
B4: Select LA: | C4: =VLOOKUP(E4,ComboSelect,2,FALSE) -> Select LA name… | D4: =VLOOKUP(C4,LACodeList,2,FALSE) -> 998 | E4: 1

Sheet LANames (hidden)
A1: No. | B1: LA Name | C1: LA Num | D1: 9Code | E1: Region
A2: 1 | B2: Select LA name… | C2: 998 | H2: IL | I2: Inner London
A3: =A2+1 -> 2 | B3: Barking and Dagenham | C3: 301 | D3: E09000002 | E3: Outer London | F3: OL
A4: =A3+1 -> 3 | B4: Barnet | C4: 302 | D4: E09000003 | E4: Outer London | F4: OL | H4: OL | I4: Outer London
A5: =A4+1 -> 4 | B5: Barnsley | C5: 370 | D5: E08000016 | E5: YORKSHIRE AND THE HUMBER | F5: YH | H5: WM | I5: WEST MIDLANDS
A6: 5 | B6: Bath and North East Somerset | C6: 800 | D6: E06000022 | E6: SOUTH WEST | F6: SW | H6: NW | I6: NORTH WEST
A7: 6 | B7: Bedford | C7: 822 | D7: E06000055 | E7: EAST | F7: EE | H7: YH | I7: YORKSHIRE AND THE HUMBER
A8: =A7+1 -> 7 | B8: Bexley | C8: 303 | D8: E09000004 | E8: Outer London | F8: OL | H8: NE | I8: NORTH EAST
A9: 8 | B9: Birmingham | C9: 330 | D9: E08000025 | E9: WEST MIDLANDS | F9: WM | H9: SW | I9: SOUTH WEST
A10: 9 | B10: Blackburn with Darwen | C10: 889 | D10: E06000008 | E10: NORTH WEST | F10: NW | H10: EE | I10: EAST
A11: 10 | B11: Blackpool | C11: 890 | D11: E06000009 | E11: NORTH WEST | F11: NW | H11: SE | I11: SOUTH EAST
A12: 11 | B12: Bolton | C12: 350 | D12: E08000001 | E12: NORTH WEST | F12: NW | H12: EM | I12: EAST MIDLANDS
A13: 12 | B13: Bournemouth | C13: 837 | D13: E06000028 | E13: SOUTH WEST | F13: SW
A14: 13 | B14: Bracknell Forest | C14: 867 | D14: E06000036 | E14: SOUTH EAST | F14: SE
A15: 14 | B15: Bradford | C15: 380 | D15: E08000032 | E15: YORKSHIRE AND THE HUMBER | F15: YH
A16: 15 | B16: Brent | C16: 304 | D16: E09000005 | E16: Outer London | F16: OL
A17: 16 | B17: Brighton and Hove | C17: 846 | D17: E06000043 | E17: SOUTH EAST | F17: SE
A18: 17 | B18: Bristol, City of | C18: 801 | D18: E06000023 | E18: SOUTH WEST | F18: SW
A19: 18 | B19: Bromley | C19: 305 | D19: E09000006 | E19: Outer London | F19: OL
A20: 19 | B20: Buckinghamshire | C20: 825 | D20: E10000002 | E20: SOUTH EAST | F20: SE
A21: 20 | B21: Bury | C21: 351 | D21: E08000002 | E21: NORTH WEST | F21: NW
A22: 21 | B22: Calderdale | C22: 381 | D22: E08000033 | E22: YORKSHIRE AND THE HUMBER | F22: YH
A23: 22 | B23: Cambridgeshire | C23: 873 | D23: E10000003 | E23: EAST | F23: EE
A24: 23 | B24: Camden | C24: 202 | D24: E09000007 | E24: Inner London | F24: IL
A25: 24 | B25: Central Bedfordshire | C25: 823 | D25: E06000056 | E25: EAST | F25: EE
A26: 25 | B26: Cheshire East | C26: 895 | D26: E06000049 | E26: NORTH WEST | F26: NW
A27: 26 | B27: Cheshire West and Chester | C27: 896 | D27: E06000050 | E27: NORTH WEST | F27: NW
A28: 27 | B28: City of London | C28: 201 | D28: E09000001 | E28: Inner London | F28: IL
A29: 28 | B29: Cornwall | C29: 908 | D29: E06000052 | E29: SOUTH WEST | F29: SW
A30: 29 | B30: Coventry | C30: 331 | D30: E08000026 | E30: WEST MIDLANDS | F30: WM
A31: 30 | B31: Croydon | C31: 306 | D31: E09000008 | E31: Outer London | F31: OL
A32: 31 | B32: Cumbria | C32: 909 | D32: E10000006 | E32: NORTH WEST | F32: NW
A33: 32 | B33: Darlington | C33: 841 | D33: E06000005 | E33: NORTH EAST | F33: NE
A34: 33 | B34: Derby | C34: 831 | D34: E06000015 | E34: EAST MIDLANDS | F34: EM
A35: 34 | B35: Derbyshire | C35: 830 | D35: E10000007 | E35: EAST MIDLANDS | F35: EM
A36: 35 | B36: Devon | C36: 878 | D36: E10000008 | E36: SOUTH WEST | F36: SW
A37: 36 | B37: Doncaster | C37: 371 | D37: E08000017 | E37: YORKSHIRE AND THE HUMBER | F37: YH
A38: 37 | B38: Dorset | C38: 835 | D38: E10000009 | E38: SOUTH WEST | F38: SW
A39: 38 | B39: Dudley | C39: 332 | D39: E08000027 | E39: WEST MIDLANDS | F39: WM
A40: =A39+1 -> 39 | B40: Durham | C40: 840 | D40: E06000047 | E40: NORTH EAST | F40: NE
A41: 40 | B41: Ealing | C41: 307 | D41: E09000009 | E41: Outer London | F41: OL
A42: 41 | B42: East Riding of Yorkshire | C42: 811 | D42: E06000011 | E42: YORKSHIRE AND THE HUMBER | F42: YH
A43: 42 | B43: East Sussex | C43: 845 | D43: E10000011 | E43: SOUTH EAST | F43: SE
A44: 43 | B44: Enfield | C44: 308 | D44: E09000010 | E44: Outer London | F44: OL
A45: 44 | B45: Essex | C45: 881 | D45: E10000012 | E45: EAST | F45: EE
A46: 45 | B46: Gateshead | C46: 390 | D46: E08000020 | E46: NORTH EAST | F46: NE
A47: 46 | B47: Gloucestershire | C47: 916 | D47: E10000013 | E47: SOUTH WEST | F47: SW
A48: 47 | B48: Greenwich | C48: 203 | D48: E09000011 | E48: Outer London | F48: OL
A49: 48 | B49: Hackney | C49: 204 | D49: E09000012 | E49: Inner London | F49: IL
A50: 49 | B50: Halton | C50: 876 | D50: E06000006 | E50: NORTH WEST | F50: NW
A51: 50 | B51: Hammersmith and Fulham | C51: 205 | D51: E09000013 | E51: Inner London | F51: IL
A52: 51 | B52: Hampshire | C52: 850 | D52: E10000014 | E52: SOUTH EAST | F52: SE
A53: 52 | B53: Haringey | C53: 309 | D53: E09000014 | E53: Inner London | F53: IL
A54: 53 | B54: Harrow | C54: 310 | D54: E09000015 | E54: Outer London | F54: OL
A55: 54 | B55: Hartlepool | C55: 805 | D55: E06000001 | E55: NORTH EAST | F55: NE
A56: 55 | B56: Havering | C56: 311 | D56: E09000016 | E56: Outer London | F56: OL
A57: 56 | B57: Herefordshire | C57: 884 | D57: E06000019 | E57: WEST MIDLANDS | F57: WM
A58: 57 | B58: Hertfordshire | C58: 919 | D58: E10000015 | E58: EAST | F58: EE
A59: 58 | B59: Hillingdon | C59: 312 | D59: E09000017 | E59: Outer London | F59: OL
A60: 59 | B60: Hounslow | C60: 313 | D60: E09000018 | E60: Outer London | F60: OL
A61: 60 | B61: Isle of Wight | C61: 921 | D61: E06000046 | E61: SOUTH EAST | F61: SE
A62: 61 | B62: Isles of Scilly | C62: 420 | D62: E06000053 | E62: SOUTH WEST | F62: SW
A63: 62 | B63: Islington | C63: 206 | D63: E09000019 | E63: Inner London | F63: IL
A64: 63 | B64: Kensington and Chelsea | C64: 207 | D64: E09000020 | E64: Inner London | F64: IL
A65: 64 | B65: Kent | C65: 886 | D65: E10000016 | E65: SOUTH EAST | F65: SE
A66: 65 | B66: Kingston upon Hull, City of | C66: 810 | D66: E06000010 | E66: YORKSHIRE AND THE HUMBER | F66: YH
A67: 66 | B67: Kingston upon Thames | C67: 314 | D67: E09000021 | E67: Outer London | F67: OL
A68: 67 | B68: Kirklees | C68: 382 | D68: E08000034 | E68: YORKSHIRE AND THE HUMBER | F68: YH
A69: 68 | B69: Knowsley | C69: 340 | D69: E08000011 | E69: NORTH WEST | F69: NW
A70: 69 | B70: Lambeth | C70: 208 | D70: E09000022 | E70: Inner London | F70: IL
A71: 70 | B71: Lancashire | C71: 888 | D71: E10000017 | E71: NORTH WEST | F71: NW
A72: =A71+1 -> 71 | B72: Leeds | C72: 383 | D72: E08000035 | E72: YORKSHIRE AND THE HUMBER | F72: YH
A73: 72 | B73: Leicester | C73: 856 | D73: E06000016 | E73: EAST MIDLANDS | F73: EM | N73: 800
A74: 73 | B74: Leicestershire | C74: 855 | D74: E10000018 | E74: EAST MIDLANDS | F74: EM | N74: 801
A75: 74 | B75: Lewisham | C75: 209 | D75: E09000023 | E75: Inner London | F75: IL | N75: 802
A76: 75 | B76: Lincolnshire | C76: 925 | D76: E10000019 | E76: EAST MIDLANDS | F76: EM | N76: 803
A77: 76 | B77: Liverpool | C77: 341 | D77: E08000012 | E77: NORTH WEST | F77: NW | N77: 805
A78: 77 | B78: Luton | C78: 821 | D78: E06000032 | E78: EAST | F78: EE | N78: 806
A79: 78 | B79: Manchester | C79: 352 | D79: E08000003 | E79: NORTH WEST | F79: NW | N79: 807
A80: 79 | B80: Medway | C80: 887 | D80: E06000035 | E80: SOUTH EAST | F80: SE | N80: 808
A81: 80 | B81: Merton | C81: 315 | D81: E09000024 | E81: Outer London | F81: OL | N81: 810
A82: 81 | B82: Middlesbrough | C82: 806 | D82: E06000002 | E82: NORTH EAST | F82: NE | N82: 811
A83: 82 | B83: Milton Keynes | C83: 826 | D83: E06000042 | E83: SOUTH EAST | F83: SE | N83: 812
A84: 83 | B84: Newcastle upon Tyne | C84: 391 | D84: E08000021 | E84: NORTH EAST | F84: NE | N84: 813
A85: 84 | B85: Newham | C85: 316 | D85: E09000025 | E85: Inner London | F85: IL | N85: 815
A86: 85 | B86: Norfolk | C86: 926 | D86: E10000020 | E86: EAST | F86: EE | N86: 816
A87: 86 | B87: North East Lincolnshire | C87: 812 | D87: E06000012 | E87: YORKSHIRE AND THE HUMBER | F87: YH | N87: 821
A88: 87 | B88: North Lincolnshire | C88: 813 | D88: E06000013 | E88: YORKSHIRE AND THE HUMBER | F88: YH | N88: 822
A89: 88 | B89: North Somerset | C89: 802 | D89: E06000024 | E89: SOUTH WEST | F89: SW | N89: 823
A90: 89 | B90: North Tyneside | C90: 392 | D90: E08000022 | E90: NORTH EAST | F90: NE | N90: 825
A91: 90 | B91: North Yorkshire | C91: 815 | D91: E10000023 | E91: YORKSHIRE AND THE HUMBER | F91: YH | N91: 826
A92: 91 | B92: Northamptonshire | C92: 928 | D92: E10000021 | E92: EAST MIDLANDS | F92: EM | N92: 830
A93: 92 | B93: Northumberland | C93: 929 | D93: E06000048 | E93: NORTH EAST | F93: NE | N93: 831
A94: 93 | B94: Nottingham | C94: 892 | D94: E06000018 | E94: EAST MIDLANDS | F94: EM | N94: 835
A95: 94 | B95: Nottinghamshire | C95: 891 | D95: E10000024 | E95: EAST MIDLANDS | F95: EM | N95: 836
A96: 95 | B96: Oldham | C96: 353 | D96: E08000004 | E96: NORTH WEST | F96: NW | N96: 837
A97: 96 | B97: Oxfordshire | C97: 931 | D97: E10000025 | E97: SOUTH EAST | F97: SE | N97: 840
A98: 97 | B98: Peterborough | C98: 874 | D98: E06000031 | E98: EAST | F98: EE | N98: 841
A99: 98 | B99: Plymouth | C99: 879 | D99: E06000026 | E99: SOUTH WEST | F99: SW | N99: 845
A100: 99 | B100: Poole | C100: 836 | D100: E06000029 | E100: SOUTH WEST | F100: SW | N100: 846
A101: 100 | B101: Portsmouth | C101: 851 | D101: E06000044 | E101: SOUTH EAST | F101: SE | N101: 850
A102: 101 | B102: Reading | C102: 870 | D102: E06000038 | E102: SOUTH EAST | F102: SE | N102: 851
A103: 102 | B103: Redbridge | C103: 317 | D103: E09000026 | E103: Outer London | F103: OL | N103: 852
A104: =A103+1 -> 103 | B104: Redcar and Cleveland | C104: 807 | D104: E06000003 | E104: NORTH EAST | F104: NE | N104: 855
A105: 104 | B105: Richmond upon Thames | C105: 318 | D105: E09000027 | E105: Outer London | F105: OL | N105: 856
A106: 105 | B106: Rochdale | C106: 354 | D106: E08000005 | E106: NORTH WEST | F106: NW | N106: 857
A107: 106 | B107: Rotherham | C107: 372 | D107: E08000018 | E107: YORKSHIRE AND THE HUMBER | F107: YH | N107: 860
A108: 107 | B108: Rutland | C108: 857 | D108: E06000017 | E108: EAST MIDLANDS | F108: EM | N108: 861
A109: 108 | B109: Salford | C109: 355 | D109: E08000006 | E109: NORTH WEST | F109: NW | N109: 865
A110: 109 | B110: Sandwell | C110: 333 | D110: E08000028 | E110: WEST MIDLANDS | F110: WM | N110: 866
A111: 110 | B111: Sefton | C111: 343 | D111: E08000014 | E111: NORTH WEST | F111: NW | N111: 867
A112: 111 | B112: Sheffield | C112: 373 | D112: E08000019 | E112: YORKSHIRE AND THE HUMBER | F112: YH | N112: 868
A113: 112 | B113: Shropshire | C113: 893 | D113: E06000051 | E113: WEST MIDLANDS | F113: WM | N113: 869
A114: 113 | B114: Slough | C114: 871 | D114: E06000039 | E114: SOUTH EAST | F114: SE | N114: 870
A115: 114 | B115: Solihull | C115: 334 | D115: E08000029 | E115: WEST MIDLANDS | F115: WM | N115: 871
A116: 115 | B116: Somerset | C116: 933 | D116: E10000027 | E116: SOUTH WEST | F116: SW | N116: 872
A117: 116 | B117: South Gloucestershire | C117: 803 | D117: E06000025 | E117: SOUTH WEST | F117: SW | N117: 873
A118: 117 | B118: South Tyneside | C118: 393 | D118: E08000023 | E118: NORTH EAST | F118: NE | N118: 874
A119: 118 | B119: Southampton | C119: 852 | D119: E06000045 | E119: SOUTH EAST | F119: SE | N119: 876
A120: 119 | B120: Southend-on-Sea | C120: 882 | D120: E06000033 | E120: EAST | F120: EE | N120: 877
A121: 120 | B121: Southwark | C121: 210 | D121: E09000028 | E121: Inner London | F121: IL | N121: 878
A122: 121 | B122: St. Helens | C122: 342 | D122: E08000013 | E122: NORTH WEST | F122: NW | N122: 879
A123: 122 | B123: Staffordshire | C123: 860 | D123: E10000028 | E123: WEST MIDLANDS | F123: WM | N123: 880
A124: 123 | B124: Stockport | C124: 356 | D124: E08000007 | E124: NORTH WEST | F124: NW | N124: 881
A125: 124 | B125: Stockton-on-Tees | C125: 808 | D125: E06000004 | E125: NORTH EAST | F125: NE | N125: 882
A126: 125 | B126: Stoke-on-Trent | C126: 861 | D126: E06000021 | E126: WEST MIDLANDS | F126: WM | N126: 883
A127: 126 | B127: Suffolk | C127: 935 | D127: E10000029 | E127: EAST | F127: EE | N127: 884
A128: 127 | B128: Sunderland | C128: 394 | D128: E08000024 | E128: NORTH EAST | F128: NE | N128: 885
A129: 128 | B129: Surrey | C129: 936 | D129: E10000030 | E129: SOUTH EAST | F129: SE | N129: 886
A130: 129 | B130: Sutton | C130: 319 | D130: E09000029 | E130: Outer London | F130: OL | N130: 887
A131: 130 | B131: Swindon | C131: 866 | D131: E06000030 | E131: SOUTH WEST | F131: SW | N131: 888
A132: 131 | B132: Tameside | C132: 357 | D132: E08000008 | E132: NORTH WEST | F132: NW | N132: 889
A133: 132 | B133: Telford and Wrekin | C133: 894 | D133: E06000020 | E133: WEST MIDLANDS | F133: WM | N133: 890
A134: 133 | B134: Thurrock | C134: 883 | D134: E06000034 | E134: EAST | F134: EE | N134: 891
A135: 134 | B135: Torbay | C135: 880 | D135: E06000027 | E135: SOUTH WEST | F135: SW | N135: 892
A136: =A135+1 -> 135 | B136: Tower Hamlets | C136: 211 | D136: E09000030 | E136: Inner London | F136: IL | N136: 893
A137: 136 | B137: Trafford | C137: 358 | D137: E08000009 | E137: NORTH WEST | F137: NW | N137: 894
A138: 137 | B138: Wakefield | C138: 384 | D138: E08000036 | E138: YORKSHIRE AND THE HUMBER | F138: YH | N138: 895
A139: 138 | B139: Walsall | C139: 335 | D139: E08000030 | E139: WEST MIDLANDS | F139: WM | N139: 896
A140: 139 | B140: Waltham Forest | C140: 320 | D140: E09000031 | E140: Outer London | F140: OL | N140: 908
A141: 140 | B141: Wandsworth | C141: 212 | D141: E09000032 | E141: Inner London | F141: IL | N141: 909
A142: 141 | B142: Warrington | C142: 877 | D142: E06000007 | E142: NORTH WEST | F142: NW | N142: 916
A143: 142 | B143: Warwickshire | C143: 937 | D143: E10000031 | E143: WEST MIDLANDS | F143: WM | N143: 919
A144: 143 | B144: West Berkshire | C144: 869 | D144: E06000037 | E144: SOUTH EAST | F144: SE | N144: 921
A145: 144 | B145: West Sussex | C145: 938 | D145: E10000032 | E145: SOUTH EAST | F145: SE | N145: 925
A146: 145 | B146: Westminster | C146: 213 | D146: E09000033 | E146: Inner London | F146: IL | N146: 926
A147: 146 | B147: Wigan | C147: 359 | D147: E08000010 | E147: NORTH WEST | F147: NW | N147: 928
A148: 147 | B148: Wiltshire | C148: 865 | D148: E06000054 | E148: SOUTH WEST | F148: SW | N148: 929
A149: 148 | B149: Windsor and Maidenhead | C149: 868 | D149: E06000040 | E149: SOUTH EAST | F149: SE | N149: 931
A150: 149 | B150: Wirral | C150: 344 | D150: E08000015 | E150: NORTH WEST | F150: NW | N150: 933
A151: 150 | B151: Wokingham | C151: 872 | D151: E06000041 | E151: SOUTH EAST | F151: SE | N151: 935
A152: 151 | B152: Wolverhampton | C152: 336 | D152: E08000031 | E152: WEST MIDLANDS | F152: WM | N152: 936
A153: 152 | B153: Worcestershire | C153: 885 | D153: E10000034 | E153: WEST MIDLANDS | F153: WM | N153: 937
A154: 153 | B154: York | C154: 816 | D154: E06000014 | E154: YORKSHIRE AND THE HUMBER | F154: YH | N154: 938
A155: 154 | B155: All | C155: 999 | N155: 201
N156: 202
N157: 203
N158: 204
N159: 205
N160: 206
N161: 207
N162: 208
N163: 209
N164: 210
N165: 211
N166: 212
N167: 213
N168: 301
N169: 302
N170: 303
N171: 304
N172: 305
N173: 306
N174: 307
N175: 308
N176: 309
N177: 310
N178: 311
N179: 312
N180: 313
N181: 314
N182: 315
N183: 316
N184: 317
N185: 318
N186: 319
N187: 320
N188: 330
N189: 331
N190: 332
N191: 333
N192: 334
N193: 335
N194: 336
N195: 340
N196: 341
N197: 342
N198: 343
N199: 344
N200: 350
... 24 more rows

Sheet 816 (hidden)
C2: EY Table: FUNDING PERIOD (2013-14)
C3: York | D3: 816
E5: Unit Value | I5: Number of Units | L5: Anticipated Budget
B6: Row Heading | C6: Description | D6: PVI | E6: Nursery School | F6: Primary Nursery Class | G6: UnitType | H6: PVI | I6: Nursery School | J6: Primary Nursery Class | K6: PVI | L6: Nursery School | M6: Primary Nursery Class | N6: Total Budget | O6: Proportion of Funding
B8: 1. EYSFF (three and four year olds) Base Rate(s) per hour, per provider type | C8: Base Rate | D8: 3.38 | E8: 3.39 | F8: 3.39 | G8: PerHour | H8: 996559 | I8: 54245 | J8: 455746.7 | K8: 3368369.42 | L8: 183890.55 | M8: 1544981.31 | N8: 5097241.28
O9: =SUM(N8:N9)/5422148 -> 0.9400778584
B10: 2a. Supplements: Deprivation | C10: Deprivation | D10: 0.4 | E10: 0.4 | F10: 0.4 | G10: PerHour | H10: 117528 | I10: 6346 | J10: 182653.3 | K10: 47011.2 | L10: 2538.4 | M10: 73061.32 | N10: 122610.92
O11: =SUM(N10:N11)/5422148 -> 0.02261297921
B12: 2b. Supplements: Quality | C12: No budget lines entered
O13: =SUM(N12:N13)/5422148 -> 0
B14: 2c. Supplements: Flexibility | C14: No budget lines entered
O15: =SUM(N14:N15)/5422148 -> 0
B16: 2d. Supplements: Sustainability | C16: No budget lines entered
O17: =SUM(N16:N17)/5422148 -> 0
B18: 3. Other formula | C18: Lump Sum | E18: 135568 | G18: LumpSum | I18: 1 | L18: 135568 | N18: 135568
C19: Transitional Protection | E19: 66728 | G19: LumpSum | I19: 1 | L19: 66728 | N19: 66728
O20: =SUM(N18:N20)/5422148 -> 0.03730919923
B21: 4. Additional funded free hours | C21: No budget lines entered
O22: =SUM(N21:N22)/5422148 -> 0
B23: TOTAL FUNDING FOR EARLY YEARS SINGLE FUNDING FORMULA (3s AND 4s) | K23: 3415380.62 | L23: 388724.95 | M23: 1618042.63 | N23: 5422148.2 | O23: =SUM(O8:O22) -> 1.000000037
E25: Unit Value | I25: Number of Units | L25: Anticipated Budget
B26: Row Heading | C26: Description | D26: PVI | E26: Nursery School | F26: Primary Nursery Class | H26: PVI | I26: Nursery School | J26: Primary Nursery Class | K26: PVI | L26: Nursery School | M26: Primary Nursery Class | N26: Total Budget | O26: Proportion of Funding
B27: 5. Two year old Base Rate(s) per hour, per provider type | C27: No budget lines entered
B29: 6a. Two year old supplements Quality | C29: No budget lines entered
B31: 6b. Other supplements | C31: No budget lines entered
B33: TOTAL FUNDING FOR EARLY YEARS SINGLE FUNDING FORMULA FOR 2 YEAR OLDs
B36: Row Heading | E36: Description | L36: Anticipated Total Budget | O36: Proportion of Funding
B37: 7. Early years contingency funding | C37: No budget lines entered
O38: =SUM(N37:N38)/5422148 -> 0
B39: 8. Early years centrally retained spending | C39: No budget lines entered
O40: =SUM(N39:N40)/5422148 -> 0
B41: TOTAL FUNDING FOR CENTRAL EXPENDITURE | O41: =SUM(O37:O40) -> 0
B43: EY s251 Notes

Sheet 885 (hidden)
C2: EY Table: FUNDING PERIOD (2013-14)
C3: Worcestershire | D3: 885
E5: Unit Value | I5: Number of Units | L5: Anticipated Budget
B6: Row Heading | C6: Description | D6: PVI | E6: Nursery School | F6: Primary Nursery Class | G6: UnitType | H6: PVI | I6: Nursery School | J6: Primary Nursery Class | K6: PVI | L6: Nursery School | M6: Primary Nursery Class | N6: Total Budget | O6: Proportion of Funding
B8: 1. EYSFF (three and four year olds) Base Rate(s) per hour, per provider type | C8: Childminder | D8: 3.7 | G8: PerHour | H8: 50396 | K8: 186465.2 | N8: 186465.2
C9: Independent Nursery | D9: 3.56 | G9: PerHour | H9: 195934 | K9: 697525.04 | N9: 697525.04
C10: Independent School Reception Class | D10: 3 | G10: PerHour | H10: 96670 | K10: 290010 | N10: 290010
C11: Maintained Nursery School Only | E11: 4.7 | G11: PerHour | I11: 32455 | L11: 152538.5 | N11: 152538.5
C12: Maintained School | F12: 3 | G12: PerHour | J12: 1007584 | M12: 3022752 | N12: 3022752
C13: Private Nursery | D13: 3.54 | G13: PerHour | H13: 2174910 | K13: 7699181.4 | N13: 7699181.4
C14: Voluntary Nursery | D14: 3.38 | G14: PerHour | H14: 838213 | K14: 2833159.94 | N14: 2833159.94
C15: Non-Maintained School Nursery | D15: 3.48 | G15: PerHour | H15: 257686 | K15: 896747.28 | N15: 896747.28
O16: =SUM(N8:N16)/20167511 -> 0.7823662206
B17: 2a. Supplements: Deprivation | C17: Factor will use IDACI level 4,5 and 6 based on amount per child with fixed pot of £150,000 spread over the pupil eligiable on January 2013 census | D17: 1 | G17: LumpSum | H17: 150000 | K17: 150000 | N17: 150000
O18: =SUM(N17:N18)/20167511 -> 0.007437705129
B19: 2b. Supplements: Quality | C19: No budget lines entered
O20: =SUM(N19:N20)/20167511 -> 0
B21: 2c. Supplements: Flexibility | C21: No budget lines entered
O22: =SUM(N21:N22)/20167511 -> 0
B23: 2d. Supplements: Sustainability | C23: No budget lines entered
O24: =SUM(N23:N24)/20167511 -> 0
B25: 3. Other formula | C25: Maintained Nursery School Only | E25: 42000 | G25: LumpSum | I25: 1 | L25: 42000 | N25: 42000
O26: =SUM(N25:N26)/20167511 -> 0.002082557436
B27: 4. Additional funded free hours | C27: No budget lines entered
O28: =SUM(N27:N28)/20167511 -> 0
B29: TOTAL FUNDING FOR EARLY YEARS SINGLE FUNDING FORMULA (3s AND 4s) | K29: 12753088.86 | L29: 194538.5 | M29: 3022752 | N29: 15970379.36 | O29: =SUM(O8:O28) -> 0.7918864832
E31: Unit Value | I31: Number of Units | L31: Anticipated Budget
B32: Row Heading | C32: Description | D32: PVI | E32: Nursery School | F32: Primary Nursery Class | H32: PVI | I32: Nursery School | J32: Primary Nursery Class | K32: PVI | L32: Nursery School | M32: Primary Nursery Class | N32: Total Budget | O32: Proportion of Funding
B33: 5. Two year old Base Rate(s) per hour, per provider type | C33: No budget lines entered
B35: 6a. Two year old supplements Quality | C35: No budget lines entered
B37: 6b. Other supplements | C37: No budget lines entered
B39: TOTAL FUNDING FOR EARLY YEARS SINGLE FUNDING FORMULA FOR 2 YEAR OLDs
B42: Row Heading | E42: Description | L42: Anticipated Total Budget | O42: Proportion of Funding
B43: 7. Early years contingency funding | C43: Unallocated 2 Yr old base rate funding | N43: 2659050
O44: =SUM(N43:N44)/20167511 -> 0.1318481988
B45: 8. Early years centrally retained spending | C45: Early Years Centrally Retained Expenditure | N45: 1538082
O46: =SUM(N45:N46)/20167511 -> 0.07626533587
B47: TOTAL FUNDING FOR CENTRAL EXPENDITURE | N47: 4197132 | O47: =SUM(O43:O46) -> 0.2081135347
B49: EY s251 Notes

Sheet 336 (hidden)
C2: EY Table: FUNDING PERIOD (2013-14)
C3: Wolverhampton | D3: 336
E5: Unit Value | I5: Number of Units | L5: Anticipated Budget
B6: Row Heading | C6: Description | D6: PVI | E6: Nursery School | F6: Primary Nursery Class | G6: UnitType | H6: PVI | I6: Nursery School | J6: Primary Nursery Class | K6: PVI | L6: Nursery School | M6: Primary Nursery Class | N6: Total Budget | O6: Proportion of Funding
B8: 1. EYSFF (three and four year olds) Base Rate(s) per hour, per provider type | C8: Non-childminder settings | D8: 3.18 | E8: 6.49 | F8: 3.4 | G8: PerHour | H8: 68430 | I8: 277530 | J8: 1515935 | K8: 217607.4 | L8: 1801169.7 | M8: 5154179 | N8: 7172956.1
C9: Private No EYP | D9: 3.01 | G9: PerHour | H9: 219900 | K9: 661899 | N9: 661899
C10: Private Independent | D10: 3.33 | G10: PerHour | H10: 85260 | K10: 283915.8 | N10: 283915.8
C11: Playgroup/voluntary | D11: 2.06 | G11: PerHour | H11: 10020 | K11: 20641.2 | N11: 20641.2
C12: Childminders | G12: PerHour
O13: =SUM(N8:N13)/14332236 -> 0.5679094386
B14: 2a. Supplements: Deprivation | C14: Deprivation Pupil Based | D14: 0.55 | E14: 0.55 | F14: 0.55 | G14: PerHour | H14: 268331 | I14: 488175 | J14: 1548253 | K14: 147582.05 | L14: 268496.25 | M14: 851539.15 | N14: 1267617.45
O15: =SUM(N14:N15)/14332236 -> 0.08844519794
B16: 2b. Supplements: Quality | C16: No budget lines entered
O17: =SUM(N16:N17)/14332236 -> 0
B18: 2c. Supplements: Flexibility | C18: Flexibility Supplement | D18: 0.3 | E18: 0.3 | F18: 0.3 | G18: PerHour | H18: 383610 | I18: 107760 | J18: 22800 | K18: 115083 | L18: 32328 | M18: 6840 | N18: 154251
O19: =SUM(N18:N19)/14332236 -> 0.01076252163
B20: 2d. Supplements: Sustainability | C20: No budget lines entered
O21: =SUM(N20:N21)/14332236 -> 0
B22: 3. Other formula | C22: Leadership Supplement 1-8 pupils | D22: 2125 | G22: LumpSum | H22: 4 | K22: 8500 | N22: 8500
C23: Leadership Supplement 9-26 Pupils | D23: 5250 | F23: 5250 | G23: LumpSum | H23: 26 | J23: 2 | K23: 136500 | M23: 10500 | N23: 147000
C24: Leadership Supplement 27-39 Pupils | D24: 10500 | F24: 10500 | G24: LumpSum | H24: 2 | J24: 16 | K24: 21000 | M24: 168000 | N24: 189000
C25: Leadership Supplement 40-52 pupils | D25: 12000 | E25: 12000 | F25: 12000 | G25: LumpSum | H25: 2 | I25: 1 | J25: 20 | K25: 24000 | L25: 12000 | M25: 240000 | N25: 276000
C26: Leadership Supplement 52-65 pupils | D26: 15750 | F26: 15750 | G26: LumpSum | H26: 1 | J26: 12 | K26: 15750 | M26: 189000 | N26: 204750
C27: Leadership Supplement 65+ pupils | E27: 21000 | F27: 21000 | G27: LumpSum | I27: 6 | J27: 6 | L27: 126000 | M27: 126000 | N27: 252000
C28: Training Lump Sum | D28: 300 | E28: 300 | F28: 300 | G28: LumpSum | H28: 35 | I28: 7 | J28: 56 | K28: 10500 | L28: 2100 | M28: 16800 | N28: 29400
C29: Broadband Lump Sum | D29: 360 | G29: LumpSum | H29: 33 | K29: 11880 | N29: 11880
C30: Minimum Funding Guarantee | E30: 1 | F30: 1 | G30: PerChild | I30: 31605 | J30: 66820 | L30: 31605 | M30: 66820 | N30: 98425
O31: =SUM(N22:N31)/14332236 -> 0.08491033779
B32: 4. Additional funded free hours | C32: No budget lines entered
O33: =SUM(N32:N33)/14332236 -> 0
B34: TOTAL FUNDING FOR EARLY YEARS SINGLE FUNDING FORMULA (3s AND 4s) | K34: 1674858.45 | L34: 2273698.95 | M34: 6829678.15 | N34: 10778235.55 | O34: =SUM(O8:O33) -> 0.7520274959
E36: Unit Value | I36: Number of Units | L36: Anticipated Budget
B37: Row Heading | C37: Description | D37: PVI | E37: Nursery School | F37: Primary Nursery Class | H37: PVI | I37: Nursery School | J37: Primary Nursery Class | K37: PVI | L37: Nursery School | M37: Primary Nursery Class | N37: Total Budget | O37: Proportion of Funding
B38: 5. Two year old Base Rate(s) per hour, per provider type | C38: No budget lines entered
B40: 6a. Two year old supplements Quality | C40: No budget lines entered
B42: 6b. Other supplements | C42: No budget lines entered
B44: TOTAL FUNDING FOR EARLY YEARS SINGLE FUNDING FORMULA FOR 2 YEAR OLDs
B47: Row Heading | E47: Description | L47: Anticipated Total Budget | O47: Proportion of Funding
B48: 7. Early years contingency funding | C48: No contingency held
O49: =SUM(N48:N49)/14332236 -> 0
B50: 8. Early years centrally retained spending | C50: Early Years centrally retained spending | N50: 3554000
O51: =SUM(N50:N51)/14332236 -> 0.2479724727
B52: TOTAL FUNDING FOR CENTRAL EXPENDITURE | N52: 3554000 | O52: =SUM(O48:O51) -> 0.2479724727
B54: EY s251 Notes

Sheet 872 (hidden)
C2: EY Table: FUNDING PERIOD (2013-14)
C3: Wokingham | D3: 872
E5: Unit Value | I5: Number of Units | L5: Anticipated Budget
B6: Row Heading | C6: Description | D6: PVI | E6: Nursery School | F6: Primary Nursery Class | G6: UnitType | H6: PVI | I6: Nursery School | J6: Primary Nursery Class | K6: PVI | L6: Nursery School | M6: Primary Nursery Class | N6: Total Budget | O6: Proportion of Funding
B8: 1. EYSFF (three and four year olds) Base Rate(s) per hour, per provider type | C8: Base Rate for 3 and 4 year olds | D8: 3.11 | E8: 3.11 | F8: 3.11 | G8: PerHour | H8: 1122748.5 | I8: 82232 | J8: 313994 | K8: 3491747.84 | L8: 255741.52 | M8: 976521.34 | N8: 4724010.7
O9: =SUM(N8:N9)/6776406 -> 0.697126279
B10: 2a. Supplements: Deprivation | C10: Deprivation - as measured by IDACI | D10: 9.4 | E10: 9.4 | F10: 9.4 | G10: PerHour | H10: 6980.78 | I10: 623.44 | J10: 2822.78 | K10: 65619.33 | L10: 5860.34 | M10: 26534.13 | N10: 98013.8
O11: =SUM(N10:N11)/6776406 -> 0.01446397987
B12: 2b. Supplements: Quality | C12: Quality - for those settings participating in the Buddying Scheme | D12: 2000 | E12: 2000 | G12: LumpSum | H12: 17 | I12: 1 | K12: 34000 | L12: 2000 | N12: 36000
O13: =SUM(N12:N13)/6776406 -> 0.005312550635
B14: 2c. Supplements: Flexibility | C14: Flexibility rate 1 - meets basic flexibilty criteria | D14: 0.25 | F14: 0.25 | G14: PerHour | H14: 99066 | J14: 13110 | K14: 24766.5 | M14: 3277.5 | N14: 28044
C15: Flexibilty rate 2 - meets full flexibility criteria | D15: 0.5 | E15: 0.5 | F15: 0.5 | G15: PerHour | H15: 498843 | I15: 82232 | J15: 53257 | K15: 249421.5 | L15: 41116 | M15: 26628.5 | N15: 317166
O16: =SUM(N14:N16)/6776406 -> 0.05094293347
B17: 2d. Supplements: Sustainability | C17: No budget lines entered
O18: =SUM(N17:N18)/6776406 -> 0
B19: 3. Other formula | C19: Maintained Nursery Lump Sum | E19: 58000 | G19: LumpSum | I19: 1 | L19: 58000 | N19: 58000
C20: High Cost Supplement rate 1 for EYP | D20: 0.2 | F20: 0.2 | G20: PerHour | H20: 346156 | J20: 19057 | K20: 69231.2 | M20: 3811.4 | N20: 73042.6
C21: High Cost Supplement rate 2 for QTS | D21: 0.3 | E21: 0.3 | F21: 0.3 | G21: PerHour | H21: 757536 | I21: 82232 | J21: 313994 | K21: 227260.8 | L21: 24669.6 | M21: 94198.2 | N21: 346128.6
O22: =SUM(N19:N22)/6776406 -> 0.07041656005
B23: 4. Additional funded free hours | C23: No budget lines entered
O24: =SUM(N23:N24)/6776406 -> 0
B25: TOTAL FUNDING FOR EARLY YEARS SINGLE FUNDING FORMULA (3s AND 4s) | K25: 4162047.17 | L25: 387387.46 | M25: 1130971.07 | N25: 5680405.7 | O25: =SUM(O8:O24) -> 0.8382623031
E27: Unit Value | I27: Number of Units | L27: Anticipated Budget
B28: Row Heading | C28: Description | D28: PVI | E28: Nursery School | F28: Primary Nursery Class | H28: PVI | I28: Nursery School | J28: Primary Nursery Class | K28: PVI | L28: Nursery School | M28: Primary Nursery Class | N28: Total Budget | O28: Proportion of Funding
B29: 5. Two year old Base Rate(s) per hour, per provider type | C29: Base Rate for 2 year olds | D29: 5 | G29: PerHour | H29: 117749 | K29: 588745 | N29: 588745
B31: 6a. Two year old supplements Quality | C31: No budget lines entered
B33: 6b. Other supplements | C33: No budget lines entered
B35: TOTAL FUNDING FOR EARLY YEARS SINGLE FUNDING FORMULA FOR 2 YEAR OLDs | K35: 588745 | N35: 588745
B38: Row Heading | E38: Description | L38: Anticipated Total Budget | O38: Proportion of Funding
B39: 7. Early years contingency funding | C39: Early Years Contingency
O40: =SUM(N39:N40)/6776406 -> 0
B41: 8. Early years centrally retained spending | C41: Early Years Centrally Retained Monies for introduction of vulnerable 2 year olds offer and contingency | N41: 1096000
O42: =SUM(N41:N42)/6776406 -> 0.1617376527
B43: TOTAL FUNDING FOR CENTRAL EXPENDITURE | N43: 1096000 | O43: =SUM(O39:O42) -> 0.1617376527
B45: EY s251 Notes

Sheet 344 (hidden)
C2: EY Table: FUNDING PERIOD (2013-14)
C3: Wirral | D3: 344
E5: Unit Value | I5: Number of Units | L5: Anticipated Budget
B6: Row Heading | C6: Description | D6: PVI | E6: Nursery School | F6: Primary Nursery Class | G6: UnitType | H6: PVI | I6: Nursery School | J6: Primary Nursery Class | K6: PVI | L6: Nursery School | M6: Primary Nursery Class | N6: Total Budget | O6: Proportion of Funding
B8: 1. EYSFF (three and four year olds) Base Rate(s) per hour, per provider type | C8: All EY settings | D8: 3.2 | E8: 3.2 | F8: 3.2 | G8: PerHour | H8: 1695414.17 | I8: 864437.5 | J8: 127122.5 | K8: 5425325.34 | L8: 2766200 | M8: 406792 | N8: 8598317.34
O9: =SUM(N8:N9)/13994679 -> 0.6143990398
B10: 2a. Supplements: Deprivation | C10: Deprivation Supplement - IMD < 0.2 | D10: 0.05 | F10: 0.05 | G10: PerHour | H10: 740537.6 | J10: 71931 | K10: 37026.88 | M10: 3596.55 | N10: 40623.43
C11: Deprivation Supplement - IMD 0.2-0.4 | D11: 0.14 | F11: 0.14 | G11: PerHour | H11: 687341.57 | J11: 305994 | K11: 96227.82 | M11: 42839.16 | N11: 139066.98
C12: Deprivation Supplement - IMD > 0.4 | D12: 0.23 | E12: 0.23 | F12: 0.23 | G12: PerHour | H12: 267535 | I12: 127122.5 | J12: 486512.5 | K12: 61533.05 | L12: 29238.18 | M12: 111897.88 | N12: 202669.11
O13: =SUM(N10:N13)/13994679 -> 0.02732177851
B14: 2b. Supplements: Quality | C14: Quality Supplement - either EYPS or QTS | D14: 0.16 | E14: 0.16 | F14: 0.16 | G14: PerHour | H14: 984804.17 | I14: 127122.5 | J14: 864437.5 | K14: 157568.67 | L14: 20339.6 | M14: 138310 | N14: 316218.27
O15: =SUM(N14:N15)/13994679 -> 0.02259560723
B16: 2c. Supplements: Flexibility | C16: Flexibility within school day | D16: 0.18 | E16: 0.18 | F16: 0.18 | G16: PerHour | H16: 1122580.67 | I16: 127122.5 | J16: 173382 | K16: 202064.52 | L16: 22882.05 | M16: 31208.76 | N16: 256155.33
C17: Flexibility outside school day | D17: 0.18 | E17: 0.18 | F17: 0.18 | G17: PerHour | H17: 869648.9 | I17: 102852.5 | J17: 17517 | K17: 156536.8 | L17: 18513.45 | M17: 3153.06 | N17: 178203.31
O18: =SUM(N16:N18)/13994679 -> 0.03103741358
B19: 2d. Supplements: Sustainability | C19: No budget lines entered
O20: =SUM(N19:N20)/13994679 -> 0
B21: 3. Other formula | C21: Funding for SEN places | E21: 3.95 | G21: PerHour | I21: 6840 | L21: 27018 | N21: 27018
C22: Headteacher Supplement | E22: 69600 | G22: LumpSum | I22: 3 | L22: 208800 | N22: 208800
C23: Harmonisation | E23: 100 | G23: LumpSum | I23: 300 | L23: 30000 | N23: 30000
C24: Lump Sum (formerly Grants) | E24: 1 | G24: LumpSum | I24: 114199 | L24: 114199 | N24: 114199
C25: MFG for EY settings | D25: 1 | F25: 1 | G25: PerHour | H25: 9017.84 | J25: 366.12 | K25: 9017.84 | M25: 366.12 | N25: 9383.96
C26: Capping to fund floor protection for maintained nursery schools | D26: -1 | F26: -1 | G26: PerHour | H26: 36297.68 | J26: 84870.52 | K26: -36297.68 | M26: -84870.52 | N26: -121168.2
C27: Floor protection for maintained nursery schools | E27: 1 | G27: PerHour | I27: 118335.33 | L27: 118335.33 | N27: 118335.33
C28: Extra floor protection (5%) for maintained nursery schools | E28: 1 | G28: PerHour | I28: 62257.35 | L28: 62257.35 | N28: 62257.35
O29: =SUM(N21:N29)/13994679 -> 0.03207114933
B30: 4. Additional funded free hours | C30: No budget lines entered
O31: =SUM(N30:N31)/13994679 -> 0
B32: TOTAL FUNDING FOR EARLY YEARS SINGLE FUNDING FORMULA (3s AND 4s) | K32: 6109003.24 | L32: 3417782.96 | M32: 653293.01 | N32: 10180079.21 | O32: =SUM(O8:O31) -> 0.7274249885
E34: Unit Value | I34: Number of Units | L34: Anticipated Budget
B35: Row Heading | C35: Description | D35: PVI | E35: Nursery School | F35: Primary Nursery Class | H35: PVI | I35: Nursery School | J35: Primary Nursery Class | K35: PVI | L35: Nursery School | M35: Primary Nursery Class | N35: Total Budget | O35: Proportion of Funding
B36: 5. Two year old Base Rate(s) per hour, per provider type | C36: All EY settings | D36: 4.85 | E36: 4.85 | G36: PerHour | H36: 441070 | I36: 35910 | K36: 2139189.5 | L36: 174163.5 | N36: 2313353
B38: 6a. Two year old supplements Quality | C38: No budget lines entered
B40: 6b. Other supplements | C40: No budget lines entered
B42: TOTAL FUNDING FOR EARLY YEARS SINGLE FUNDING FORMULA FOR 2 YEAR OLDs | K42: 2139189.5 | L42: 174163.5 | N42: 2313353
B45: Row Heading | E45: Description | L45: Anticipated Total Budget | O45: Proportion of Funding
B46: 7. Early years contingency funding | C46: nil
O47: =SUM(N46:N47)/13994679 -> 0
B48: 8. Early years centrally retained spending | C48: nil | N48: 3814600
O49: =SUM(N48:N49)/13994679 -> 0.2725750266
B50: TOTAL FUNDING FOR CENTRAL EXPENDITURE | N50: 3814600 | O50: =SUM(O46:O49) -> 0.2725750266
B52: EY s251 Notes

Sheet 868 (hidden)
C2: EY Table: FUNDING PERIOD (2013-14)
C3: Windsor and Maidenhead | D3: 868
E5: Unit Value | I5: Number of Units | L5: Anticipated Budget
B6: Row Heading | C6: Description | D6: PVI | E6: Nursery School | F6: Primary Nursery Class | G6: UnitType | H6: PVI | I6: Nursery School | J6: Primary Nursery Class | K6: PVI | L6: Nursery School | M6: Primary Nursery Class | N6: Total Budget | O6: Proportion of Funding
B8: 1. EYSFF (three and four year olds) Base Rate(s) per hour, per provider type | C8: Base Rate | D8: 3.86 | E8: 4.9 | F8: 3.78 | G8: PerHour | H8: 825307.4 | I8: 144115 | J8: 497352.5 | K8: 3185686.56 | L8: 706163.5 | M8: 1879992.45 | N8: 5771842.51
O9: =SUM(N8:N9)/6874528 -> 0.839598371
B10: 2a. Supplements: Deprivation | C10: Deprivation - High | D10: 0.29 | E10: 0.29 | F10: 0.29 | G10: PerHour | H10: 23598 | I10: 0 | J10: 46512 | K10: 6843.42 | M10: 13488.48 | N10: 20331.9
C11: Deprivation - Medium | D11: 0.19 | E11: 0.19 | F11: 0.19 | G11: PerHour | H11: 103911 | I11: 35245 | J11: 109440 | K11: 19743.09 | L11: 6696.55 | M11: 20793.6 | N11: 47233.24
C12: Deprivation - Low | D12: 0.1 | E12: 0.1 | F12: 0.1 | G12: PerHour | H12: 448362.4 | I12: 108870 | J12: 184323.5 | K12: 44836.24 | L12: 10887 | M12: 18432.35 | N12: 74155.59
O13: =SUM(N10:N13)/6874528 -> 0.0206153397
B14: 2b. Supplements: Quality | C14: Quality - Leader- High | D14: 0.14 | E14: 0.14 | F14: 0.14 | G14: PerHour | H14: 216004 | I14: 144115 | J14: 434331.5 | K14: 30240.56 | L14: 20176.1 | M14: 60806.41 | N14: 111223.07
C15: Quality - Leader - medium | D15: 0.09 | E15: 0.09 | F15: 0.09 | G15: PerHour | H15: 205694 | I15: 0 | J15: 37371 | K15: 18512.46 | M15: 3363.39 | N15: 21875.85
C16: Quality - Leader - Low | D16: 0.06 | E16: 0.06 | F16: 0.06 | G16: PerHour | H16: 403609 | I16: 0 | J16: 25650 | K16: 24216.54 | M16: 1539 | N16: 25755.54
C17: Quality - Staff - High | D17: 0.14 | E17: 0.14 | F17: 0.14 | G17: PerHour | H17: 346059 | I17: 144115 | J17: 339120.5 | K17: 48448.26 | L17: 20176.1 | M17: 47476.87 | N17: 116101.23
C18: Quality - Staff - Medium | D18: 0.09 | E18: 0.09 | F18: 0.09 | G18: PerHour | H18: 457702.4 | I18: 0 | J18: 126882 | K18: 41193.22 | M18: 11419.38 | N18: 52612.6
C19: Quality - Staff - Low | D19: 0.06 | E19: 0.06 | F19: 0.06 | G19: PerHour | H19: 20634 | I19: 0 | J19: 31350 | K19: 1238.04 | M19: 1881 | N19: 3119.04
O20: =SUM(N14:N20)/6874528 -> 0.04810327778
B21: 2c. Supplements: Flexibility | C21: No budget lines entered
O22: =SUM(N21:N22)/6874528 -> 0
B23: 2d. Supplements: Sustainability | C23: No budget lines entered
O24: =SUM(N23:N24)/6874528 -> 0
B25: 3. Other formula | C25: Lump Sum | D25: 0 | E25: 48076 | F25: 0 | G25: LumpSum | H25: 0 | I25: 3 | J25: 0 | L25: 144228 | N25: 144228
O26: =SUM(N25:N26)/6874528 -> 0.02098005856
B27: 4. Additional funded free hours | C27: No budget lines entered
O28: =SUM(N27:N28)/6874528 -> 0
B29: TOTAL FUNDING FOR EARLY YEARS SINGLE FUNDING FORMULA (3s AND 4s) | K29: 3420958.39 | L29: 908327.25 | M29: 2059192.93 | N29: 6388478.57 | O29: =SUM(O8:O28) -> 0.929297047
E31: Unit Value | I31: Number of Units | L31: Anticipated Budget
B32: Row Heading | C32: Description | D32: PVI | E32: Nursery School | F32: Primary Nursery Class | H32: PVI | I32: Nursery School | J32: Primary Nursery Class | K32: PVI | L32: Nursery School | M32: Primary Nursery Class | N32: Total Budget | O32: Proportion of Funding
B33: 5. Two year old Base Rate(s) per hour, per provider type | C33: Base Rate 2 year olds | D33: 5 | E33: 5 | F33: 5 | G33: PerHour | H33: 57000 | I33: 0 | J33: 0 | K33: 285000 | N33: 285000
B35: 6a. Two year old supplements Quality | C35: No budget lines entered
B37: 6b. Other supplements | C37: No budget lines entered
B39: TOTAL FUNDING FOR EARLY YEARS SINGLE FUNDING FORMULA FOR 2 YEAR OLDs | K39: 285000 | N39: 285000
B42: Row Heading | E42: Description | L42: Anticipated Total Budget | O42: Proportion of Funding
B43: 7. Early years contingency funding | C43: No budget lines entered
O44: =SUM(N43:N44)/6874528 -> 0
B45: 8. Early years centrally retained spending | C45: Centrally Held Staff Budget for Early Years | N45: 120000
C46: Unallocated Early Years Funding | N46: 344049
C47: Other Early Years Funding not delegated | N47: 22000
O48: =SUM(N45:N48)/6874528 -> 0.07070289044
B49: TOTAL FUNDING FOR CENTRAL EXPENDITURE | N49: 486049 | O49: =SUM(O43:O48) -> 0.07070289044
B51: EY s251 Notes
B52: All Childminders rates are the same as PV's, all hours relating to Childminders are included in the 'PVI' group heading for base rates & supplements. Independent providers & Maintained Primary Nursery Classes receive the same rate for base & supplements. All Independent provider hours are included in the Primary Nursery Class group. Nursery schools are the only providers under EYSFF to receive a lump sum payment.Nursery schools do not trigger 'High' Deprivation supplements, therefore the units and total funding for this supplement is zero. All Nursery school staff & Leaders are deemed 'High' for Quality/qualifications and do not trigger 'Medium' or 'Low' supplements and the units & £'s are zero.

Sheet 865 (hidden)
C2: EY Table: FUNDING PERIOD (2013-14)
C3: Wiltshire | D3: 865
E5: Unit Value | I5: Number of Units | L5: Anticipated Budget
B6: Row Heading | C6: Description | D6: PVI | E6: Nursery School | F6: Primary Nursery Class | G6: UnitType | H6: PVI | I6: Nursery School | J6: Primary Nursery Class | K6: PVI | L6: Nursery School | M6: Primary Nursery Class | N6: Total Budget | O6: Proportion of Funding
B8: 1. EYSFF (three and four year olds) Base Rate(s) per hour, per provider type | C8: Non-childminder settings | D8: 3.71 | E8: 4.04 | F8: 0 | G8: PerHour | H8: 3387151 | I8: 158825 | J8: 1 | K8: 12566330.21 | L8: 641653 | N8: 13207983.21
C9: Childminders | D9: 6.5 | G9: PerHour | H9: 68548 | K9: 445562 | N9: 445562
C10: District Specialist centres | D10: 5.57 | E10: 0 | F10: 0 | G10: PerHour | H10: 20818 | I10: 1 | J10: 1 | K10: 115956.26 | N10: 115956.26
O11: =SUM(N8:N11)/16860089 -> 0.8166920987
B12: 2a. Supplements: Deprivation | C12: Deprivation supplement based on child level postcode - IDACI | D12: 0.43 | E12: 0.43 | G12: PerHour | H12: 660477 | I12: 38902 | K12: 284005.11 | L12: 16727.86 | N12: 300732.97
O13: =SUM(N12:N13)/16860089 -> 0.01783697405
B14: 2b. Supplements: Quality | C14: No budget lines entered
O15: =SUM(N14:N15)/16860089 -> 0
B16: 2c. Supplements: Flexibility | C16: No budget lines entered
O17: =SUM(N16:N17)/16860089 -> 0
B18: 2d. Supplements: Sustainability | C18: Rural hourly supplement paid to non-childminders settings only. Where applicable a childcare providers hourly rate will be increased by an anount per house where in the previous financil year they had fewer than nine children in attendance and there | D18: 0.5 | E18: 0 | G18: PerHour | H18: 75348 | I18: 1 | K18: 37674 | N18: 37674
O19: =SUM(N18:N19)/16860089 -> 0.002234507778
B20: 3. Other formula | C20: No budget lines entered
O21: =SUM(N20:N21)/16860089 -> 0
B22: 4. Additional funded free hours | C22: No budget lines entered
O23: =SUM(N22:N23)/16860089 -> 0
B24: TOTAL FUNDING FOR EARLY YEARS SINGLE FUNDING FORMULA (3s AND 4s) | K24: 13449527.58 | L24: 658380.86 | N24: 14107908.44 | O24: =SUM(O8:O23) -> 0.8367635805
E26: Unit Value | I26: Number of Units | L26: Anticipated Budget
B27: Row Heading | C27: Description | D27: PVI | E27: Nursery School | F27: Primary Nursery Class | H27: PVI | I27: Nursery School | J27: Primary Nursery Class | K27: PVI | L27: Nursery School | M27: Primary Nursery Class | N27: Total Budget | O27: Proportion of Funding
B28: 5. Two year old Base Rate(s) per hour, per provider type | C28: Non-childminder settings | D28: 5.43 | G28: PerHour | H28: 330000 | K28: 1791900 | N28: 1791900
C29: Childminders | D29: 6.5 | G29: PerHour | H29: 68548 | K29: 445562 | N29: 445562
C30: District specialist centres | D30: 2.72 | G30: PerHour | H30: 20818 | K30: 56624.96 | N30: 56624.96
B32: 6a. Two year old supplements Quality | C32: No budget lines entered
B34: 6b. Other supplements | C34: For 2013-2014 only PVI Providers will receive an additional £0.25 per hour as start up rate | D34: 0.25 | E34: 0 | G34: PerHour | H34: 330000 | I34: 1 | K34: 82500 | N34: 82500
B36: TOTAL FUNDING FOR EARLY YEARS SINGLE FUNDING FORMULA FOR 2 YEAR OLDs | K36: 2376586.96 | N36: 2376586.96
B39: Row Heading | E39: Description | L39: Anticipated Total Budget | O39: Proportion of Funding
B40: 7. Early years contingency funding | C40: Plus 2 year old development funding | N40: 808177
O41: =SUM(N40:N41)/16860089 -> 0.04793432585
B42: 8. Early years centrally retained spending | N42: 1944004
O43: =SUM(N42:N43)/16860089 -> 0.1153021197
B44: TOTAL FUNDING FOR CENTRAL EXPENDITURE | N44: 2752181 | O44: =SUM(O40:O43) -> 0.1632364455
B46: EY s251 Notes

Sheet 359 (hidden)
C2: EY Table: FUNDING PERIOD (2013-14)
C3: Wigan | D3: 359
E5: Unit Value | I5: Number of Units | L5: Anticipated Budget
B6: Row Heading | C6: Description | D6: PVI | E6: Nursery School | F6: Primary Nursery Class | G6: UnitType | H6: PVI | I6: Nursery School | J6: Primary Nursery Class | K6: PVI | L6: Nursery School | M6: Primary Nursery Class | N6: Total Budget | O6: Proportion of Funding
B8: 1. EYSFF (three and four year olds) Base Rate(s) per hour, per provider type | C8: All Settings | D8: 3.18 | E8: 4.95 | F8: 3.93 | G8: PerHour | H8: 1563281.25 | I8: 107124.23 | J8: 902621.2 | K8: 4971234.38 | L8: 530264.94 | M8: 3547301.32 | N8: 9048800.64
O9: =SUM(N8:N9)/9599202 -> 0.9426617588
B10: 2a. Supplements: Deprivation | C10: Economic Deprivation | D10: 0.33 | E10: 0.33 | F10: 0.33 | G10: PerHour | H10: 403526.17 | I10: 28629.25 | J10: 338826.8 | K10: 133163.64 | L10: 9447.65 | M10: 111812.84 | N10: 254424.13
C11: Deprivation - FSM | D11: 314 | E11: 314 | F11: 314 | G11: PerChild | H11: 38 | I11: 24.2 | J11: 116.66 | K11: 11932 | L11: 7598.8 | M11: 36631.24 | N11: 56162.04
O12: =SUM(N10:N12)/9599202 -> 0.03235541559
B13: 2b. Supplements: Quality | C13: No budget lines entered
O14: =SUM(N13:N14)/9599202 -> 0
B15: 2c. Supplements: Flexibility | C15: No budget lines entered
O16: =SUM(N15:N16)/9599202 -> 0
B17: 2d. Supplements: Sustainability | C17: No budget lines entered
O18: =SUM(N17:N18)/9599202 -> 0
B19: 3. Other formula | C19: Headteacher Quality Lump Sum | E19: 65000 | G19: LumpSum | I19: 2 | L19: 130000 | N19: 130000
O20: =SUM(N19:N20)/9599202 -> 0.01354279241
B21: 4. Additional funded free hours | C21: No budget lines entered
O22: =SUM(N21:N22)/9599202 -> 0
B23: TOTAL FUNDING FOR EARLY YEARS SINGLE FUNDING FORMULA (3s AND 4s) | K23: 5116330.02 | L23: 677311.39 | M23: 3695745.4 | N23: 9489386.81 | O23: =SUM(O8:O22) -> 0.9885599668
E25: Unit Value | I25: Number of Units | L25: Anticipated Budget
B26: Row Heading | C26: Description | D26: PVI | E26: Nursery School | F26: Primary Nursery Class | H26: PVI | I26: Nursery School | J26: Primary Nursery Class | K26: PVI | L26: Nursery School | M26: Primary Nursery Class | N26: Total Budget | O26: Proportion of Funding
B27: 5. Two year old Base Rate(s) per hour, per provider type | C27: Base Rate | D27: 4.9 | E27: 4.9 | F27: 4.9 | G27: PerHour | H27: 241845.37 | I27: 18302.13 | J27: 154887.5 | K27: 1185042.31 | L27: 89680.44 | M27: 758948.75 | N27: 2033671.5
C28: Summer Term Supplement | D28: 0.05 | E28: 0.05 | F28: 0.05 | G28: PerHour | H28: 66813.62 | I28: 5056.25 | J28: 42790.13 | K28: 3340.68 | L28: 252.81 | M28: 2139.51 | N28: 5733
B30: 6a. Two year old supplements Quality | C30: No budget lines entered
B32: 6b. Other supplements | C32: No budget lines entered
B34: TOTAL FUNDING FOR EARLY YEARS SINGLE FUNDING FORMULA FOR 2 YEAR OLDs | K34: 1188382.99 | L34: 89933.25 | M34: 761088.26 | N34: 2039404.5
B37: Row Heading | E37: Description | L37: Anticipated Total Budget | O37: Proportion of Funding
B38: 7. Early years contingency funding | C38: Contingency Funding | N38: 109815
O39: =SUM(N38:N39)/9599202 -> 0.01144001345
B40: 8. Early years centrally retained spending | C40: No budget lines entered
O41: =SUM(N40:N41)/9599202 -> 0
B42: TOTAL FUNDING FOR CENTRAL EXPENDITURE | N42: 109815 | O42: =SUM(O38:O41) -> 0.01144001345
B44: EY s251 Notes

Sheet 213 (hidden)
C2: EY Table: FUNDING PERIOD (2013-14)
C3: Westminster | D3: 213
E5: Unit Value | I5: Number of Units | L5: Anticipated Budget
B6: Row Heading | C6: Description | D6: PVI | E6: Nursery School | F6: Primary Nursery Class | G6: UnitType | H6: PVI | I6: Nursery School | J6: Primary Nursery Class | K6: PVI | L6: Nursery School | M6: Primary Nursery Class | N6: Total Budget | O6: Proportion of Funding
B8: 1. EYSFF (three and four year olds) Base Rate(s) per hour, per provider type | C8: Non Childminder settings - three and four year olds | D8: 3.09 | E8: 3.09 | F8: 3.09 | G8: PerHour | H8: 734360 | I8: 136800 | J8: 596790 | K8: 2269172.4 | L8: 422712 | M8: 1844081.1 | N8: 4535965.5
C9: Childminder settings - three and four year olds | D9: 5 | E9: 0 | F9: 0 | G9: PerHour | H9: 780 | I9: 0 | J9: 0 | K9: 3900 | N9: 3900
O10: =SUM(N8:N10)/14333446 -> 0.3167323127
B11: 2a. Supplements: Deprivation | C11: IDACI Score based on Pupil Postcode 86% to 100% | D11: 2.25 | E11: 2.25 | F11: 2.25 | G11: PerHour | H11: 0 | I11: 0 | J11: 0
C12: IDACI Score based on Pupil Postcode 76% to 85% | D12: 2 | E12: 2 | F12: 2 | G12: PerHour | H12: 0 | I12: 0 | J12: 68970 | M12: 137940 | N12: 137940
C13: IDACI Score based on Pupil Postcode 66% to 75% | D13: 1.75 | E13: 1.75 | F13: 1.75 | G13: PerHour | H13: 26958 | I13: 102600 | J13: 59850 | K13: 47176.5 | L13: 179550 | M13: 104737.5 | N13: 331464
C14: IDACI Score based on Pupil Postcode 56% to 65% | D14: 1.5 | E14: 1.5 | F14: 1.5 | G14: PerHour | H14: 75817 | I14: 0 | J14: 129960 | K14: 113725.5 | M14: 194940 | N14: 308665.5
C15: IDACI Score based on Pupil Postcode 46% to 55% | D15: 1.25 | E15: 1.25 | F15: 1.25 | G15: PerHour | H15: 40513 | I15: 0 | J15: 100320 | K15: 50641.25 | M15: 125400 | N15: 176041.25
C16: IDACI Score based on Pupil Postcode 36% to 45% | D16: 1 | E16: 1 | F16: 1 | G16: PerHour | H16: 37476 | I16: 0 | J16: 71250 | K16: 37476 | M16: 71250 | N16: 108726
C17: IDACI Score based on Pupil Postcode 26% to 35% | D17: 0.75 | E17: 0.75 | F17: 0.75 | G17: PerHour | H17: 179478 | I17: 34200 | J17: 106020 | K17: 134608.5 | L17: 25650 | M17: 79515 | N17: 239773.5
C18: IDACI Score based on Pupil Postcode 21% to 25% | D18: 0.6 | E18: 0.6 | F18: 0.6 | G18: PerHour | H18: 38653 | I18: 0 | J18: 60420 | K18: 23191.8 | M18: 36252 | N18: 59443.8
C19: IDACI Score based on Pupil Postcode 16% to 20% | D19: 0.4 | E19: 0.4 | F19: 0.4 | G19: PerHour | H19: 132556 | I19: 0 | J19: 0 | K19: 53022.4 | N19: 53022.4
C20: IDACI Score based on Pupil Postcode 0% to 15% | D20: 0 | E20: 0 | F20: 0 | G20: PerHour | H20: 202909 | I20: 0 | J20: 0
O21: =SUM(N11:N21)/14333446 -> 0.09872548793
B22: 2b. Supplements: Quality | C22: OFSTED Grade Band 1 | D22: 0.2 | E22: 0.2 | F22: 0.2 | G22: PerHour | H22: 147997 | I22: 102600 | J22: 151050 | K22: 29599.4 | L22: 20520 | M22: 30210 | N22: 80329.4
C23: OFSTED Grade Band 2 | D23: 0.15 | E23: 0.15 | F23: 0.15 | G23: PerHour | H23: 500951 | I23: 34200 | J23: 260490 | K23: 75142.65 | L23: 5130 | M23: 39073.5 | N23: 119346.15
C24: OFSTED Grade Band 3 | D24: 0.1 | E24: 0.1 | F24: 0.1 | G24: PerHour | H24: 34313 | I24: 0 | J24: 185250 | K24: 3431.3 | M24: 18525 | N24: 21956.3
C25: OFSTED Grade Band 4 | D25: 0 | E25: 0 | F25: 0 | G25: PerHour | H25: 51098 | I25: 0 | J25: 0
O26: =SUM(N22:N26)/14333446 -> 0.01546256567
B27: 2c. Supplements: Flexibility | C27: Flexibility Rate | D27: 0.35 | E27: 0.35 | F27: 0.35 | G27: PerHour | H27: 712692 | I27: 91200 | J27: 241110 | K27: 249442.2 | L27: 31920 | M27: 84388.5 | N27: 365750.7
C28: Flexibility Supplement | D28: 0.65 | E28: 0.65 | F28: 0.65 | G28: PerHour | H28: 219125 | I28: 0 | J28: 0 | K28: 142431.25 | N28: 142431.25
C29: Flexibility Lump Sum | D29: 3750 | E29: 3750 | F29: 3750 | G29: LumpSum | H29: 47 | I29: 4 | J29: 22 | K29: 176250 | L29: 15000 | M29: 82500 | N29: 273750
O30: =SUM(N27:N30)/14333446 -> 0.05455296305
B31: 2d. Supplements: Sustainability | C31: IMD Score Based on Setting Postcode 40 to 60 | D31: 0.25 | E31: 0.25 | F31: 0.25 | G31: PerHour | H31: 107844 | I31: 102600 | J31: 192660 | K31: 26961 | L31: 25650 | M31: 48165 | N31: 100776
C32: IMD Score Based on Setting Postcode 20 to 40 | D32: 0.1 | E32: 0.1 | F32: 0.1 | G32: PerHour | H32: 290315 | I32: 0 | J32: 233700 | K32: 29031.5 | M32: 23370 | N32: 52401.5
C33: IMD Score Based on Setting Postcode 0 to 20 | D33: 0 | E33: 0 | F33: 0 | G33: PerHour | H33: 336201 | I33: 34200 | J33: 170430
O34: =SUM(N31:N34)/14333446 -> 0.01068671832
B35: 3. Other formula | C35: SEN Funding | D35: 0 | E35: 121147 | F35: 0 | G35: LumpSum | H35: 0 | I35: 1 | J35: 0 | L35: 121147 | N35: 121147
C36: Nursery School Sustainability Funding | D36: 0 | E36: 1214099 | F36: 0 | G36: LumpSum | H36: 0 | I36: 1 | J36: 0 | L36: 1214099 | N36: 1214099
O37: =SUM(N35:N37)/14333446 -> 0.09315596543
B38: 4. Additional funded free hours | C38: Maintained Nursery School | D38: 0 | E38: 4.97 | F38: 0 | G38: PerHour | H38: 0 | I38: 38000 | J38: 0 | L38: 188860 | N38: 188860
C39: Maintained Primary Nursery Class | D39: 0 | E39: 4.61 | F39: 0 | G39: PerHour | H39: 0 | I39: 296400 | J39: 0 | L39: 1366404 | N39: 1366404
C40: Converted Academy Primary Nursery Class | D40: 4.39 | E40: 0 | F40: 0 | G40: PerHour | H40: 8550 | I40: 0 | J40: 0
O41: =SUM(N38:N41)/14333446 -> 0.1085059378
B42: TOTAL FUNDING FOR EARLY YEARS SINGLE FUNDING FORMULA (3s AND 4s) | K42: 3465203.65 | L42: 3616642 | M42: 2920347.6 | N42: 10002193.25 | O42: =SUM(O8:O41) -> 0.6978219508
E44: Unit Value | I44: Number of Units | L44: Anticipated Budget
B45: Row Heading | C45: Description | D45: PVI | E45: Nursery School | F45: Primary Nursery Class | H45: PVI | I45: Nursery School | J45: Primary Nursery Class | K45: PVI | L45: Nursery School | M45: Primary Nursery Class | N45: Total Budget | O45: Proportion of Funding
B46: 5. Two year old Base Rate(s) per hour, per provider type | C46: Two year old base rate | D46: 0 | E46: 0 | F46: 0 | G46: PerHour | H46: 0 | I46: 0 | J46: 0
B48: 6a. Two year old supplements Quality | G48: PerHour
C49: Two year old supplements - Quality | D49: 0 | E49: 0 | F49: 0 | G49: PerHour | H49: 0 | I49: 0 | J49: 0
B51: 6b. Other supplements | C51: Two year old supplements - Others | D51: 0 | E51: 0 | F51: 0 | G51: PerHour | H51: 0 | I51: 0 | J51: 0
B53: TOTAL FUNDING FOR EARLY YEARS SINGLE FUNDING FORMULA FOR 2 YEAR OLDs
B56: Row Heading | E56: Description | L56: Anticipated Total Budget | O56: Proportion of Funding
B57: 7. Early years contingency funding | C57: No budget lines entered
O58: =SUM(N57:N58)/14333446 -> 0
B59: 8. Early years centrally retained spending | C59: Additional hours in PVIs (from Section 4 above) | N59: 37534.5
C60: Early Years centrally retained spending | N60: 4293718
O61: =SUM(N59:N61)/14333446 -> 0.3021780317
B62: TOTAL FUNDING FOR CENTRAL EXPENDITURE | N62: 4331252.5 | O62: =SUM(O57:O61) -> 0.3021780317
B64: EY s251 Notes

Sheet 938 (hidden)
C2: EY Table: FUNDING PERIOD (2013-14)
C3: West Sussex | D3: 938
E5: Unit Value | I5: Number of Units | L5: Anticipated Budget
B6: Row Heading | C6: Description | D6: PVI | E6: Nursery School | F6: Primary Nursery Class | G6: UnitType | H6: PVI | I6: Nursery School | J6: Primary Nursery Class | K6: PVI | L6: Nursery School | M6: Primary Nursery Class | N6: Total Budget | O6: Proportion of Funding
B8: 1. EYSFF (three and four year olds) Base Rate(s) per hour, per provider type | C8: Basic Rate | D8: 3.77 | E8: 4.09 | F8: 3.94 | G8: PerHour | H8: 5954298 | I8: 282222 | J8: 224490 | K8: 22447703.46 | L8: 1154287.98 | M8: 884490.6 | N8: 24486482.04
O9: =SUM(N8:N9)/26894472 -> 0.9104652451
B10: 2a. Supplements: Deprivation | C10: Band 1 | D10: 0.23 | E10: 0.23 | F10: 0.23 | G10: PerHour | H10: 690608 | I10: 33105 | J10: 40963 | K10: 158839.84 | L10: 7614.15 | M10: 9421.49 | N10: 175875.48
C11: Band 2 | D11: 0.35 | E11: 0.35 | F11: 0.35 | G11: PerHour | H11: 553156 | I11: 52438 | J11: 57803 | K11: 193604.6 | L11: 18353.3 | M11: 20231.05 | N11: 232188.95
C12: Band 3 | D12: 0.69 | E12: 0.69 | F12: 0.69 | G12: PerHour | H12: 257857 | I12: 23648 | J12: 20730 | K12: 177921.33 | L12: 16317.12 | M12: 14303.7 | N12: 208542.15
C13: Band 4 | D13: 1.15 | E13: 1.15 | F13: 1.15 | G13: PerHour | H13: 115158 | I13: 6060 | J13: 6960 | K13: 132431.7 | L13: 6969 | M13: 8004 | N13: 147404.7
C14: Band 5 | D14: 1.61 | E14: 1.61 | F14: 1.61 | G14: PerHour | H14: 17451 | I14: 195 | J14: 7635 | K14: 28096.11 | L14: 313.95 | M14: 12292.35 | N14: 40702.41
O15: =SUM(N10:N15)/26894472 -> 0.02992115592
B16: 2b. Supplements: Quality | C16: No budget lines entered
O17: =SUM(N16:N17)/26894472 -> 0
B18: 2c. Supplements: Flexibility | C18: No budget lines entered
O19: =SUM(N18:N19)/26894472 -> 0
B20: 2d. Supplements: Sustainability | C20: No budget lines entered
O21: =SUM(N20:N21)/26894472 -> 0
B22: 3. Other formula | C22: Head Teacher Lump Sum | E22: 247636 | G22: LumpSum | I22: 1 | L22: 247636 | N22: 247636
C23: SEN Lump Sum | E23: 69474 | G23: LumpSum | I23: 1 | L23: 69474 | N23: 69474
C24: Lump Sum IT/Broadband | E24: 23240 | G24: LumpSum | I24: 1 | L24: 23240 | N24: 23240
C25: Former Grant Funding | E25: 185219 | F25: 25570 | G25: LumpSum | I25: 1 | J25: 1 | L25: 185219 | M25: 25570 | N25: 210789
C26: Rates | E26: 146700 | G26: LumpSum | I26: 1 | L26: 146700 | N26: 146700
C27: Deprivational transitional funding | E27: 438 | F27: 8780 | G27: LumpSum | I27: 1 | J27: 1 | L27: 438 | M27: 8780 | N27: 9218
C28: London Fringe - PVI | D28: 0.14 | G28: PerHour | H28: 1032279 | K28: 144519.06 | N28: 144519.06
C29: London Fringe - Pri | F29: 16600 | G29: LumpSum | J29: 1 | M29: 16600 | N29: 16600
O30: =SUM(N22:N30)/26894472 -> 0.03228083675
B31: 4. Additional funded free hours | C31: No budget lines entered
O32: =SUM(N31:N32)/26894472 -> 0
B33: TOTAL FUNDING FOR EARLY YEARS SINGLE FUNDING FORMULA (3s AND 4s) | K33: 23283116.1 | L33: 1876562.5 | M33: 999693.19 | N33: 26159371.79 | O33: =SUM(O8:O32) -> 0.9726672377
E35: Unit Value | I35: Number of Units | L35: Anticipated Budget
B36: Row Heading | C36: Description | D36: PVI | E36: Nursery School | F36: Primary Nursery Class | H36: PVI | I36: Nursery School | J36: Primary Nursery Class | K36: PVI | L36: Nursery School | M36: Primary Nursery Class | N36: Total Budget | O36: Proportion of Funding
B37: 5. Two year old Base Rate(s) per hour, per provider type | C37: Base Rate | D37: 4.85 | G37: PerHour | H37: 1023216 | K37: 4962597.6 | N37: 4962597.6
B39: 6a. Two year old supplements Quality | C39: No budget lines entered
B41: 6b. Other supplements | C41: No budget lines entered
B43: TOTAL FUNDING FOR EARLY YEARS SINGLE FUNDING FORMULA FOR 2 YEAR OLDs | K43: 4962597.6 | N43: 4962597.6
B46: Row Heading | E46: Description | L46: Anticipated Total Budget | O46: Proportion of Funding
B47: 7. Early years contingency funding | C47: No budget lines entered
O48: =SUM(N47:N48)/26894472 -> 0
B49: 8. Early years centrally retained spending | C49: SEN Support | N49: 735100
O50: =SUM(N49:N50)/26894472 -> 0.02733275448
B51: TOTAL FUNDING FOR CENTRAL EXPENDITURE | N51: 735100 | O51: =SUM(O47:O50) -> 0.02733275448
B53: EY s251 Notes

Sheet 869 (hidden)
C2: EY Table: FUNDING PERIOD (2013-14)
C3: West Berkshire | D3: 869
E5: Unit Value | I5: Number of Units | L5: Anticipated Budget
B6: Row Heading | C6: Description | D6: PVI | E6: Nursery School | F6: Primary Nursery Class | G6: UnitType | H6: PVI | I6: Nursery School | J6: Primary Nursery Class | K6: PVI | L6: Nursery School | M6: Primary Nursery Class | N6: Total Budget | O6: Proportion of Funding
B8: 1. EYSFF (three and four year olds) Base Rate(s) per hour, per provider type | C8: Base Rate 1 - PVI with sole use of property (owned or rented) | D8: 3.86 | E8: 0 | F8: 0 | G8: PerHour | H8: 271520 | I8: 0 | J8: 0 | K8: 1048067.2 | N8: 1048067.2
C9: Base Rate 2 - PVI with sole use of property (owned or rented) and outdoor space over 1/4 acre | D9: 3.96 | E9: 0 | F9: 0 | G9: PerHour | H9: 208802 | I9: 0 | J9: 0 | K9: 826855.92 | N9: 826855.92
C10: Base Rate 3 - PVI Other (village/community hall or similar) | D10: 3.7 | E10: 0 | F10: 0 | G10: PerHour | H10: 455124 | I10: 0 | J10: 0 | K10: 1683958.8 | N10: 1683958.8
C11: Base Rate 4 - Maintained Nursery School | D11: 0 | E11: 3.07 | F11: 0 | G11: PerHour | H11: 0 | I11: 118587 | J11: 0 | L11: 364062.09 | N11: 364062.09
C12: Base Rate 5 - Maintained Nursery Class within Mainstream School | D12: 0 | E12: 0 | F12: 3.19 | G12: PerHour | H12: 0 | I12: 0 | J12: 261207 | M12: 833250.33 | N12: 833250.33
O13: =SUM(N8:N13)/6389095 -> 0.744423794
B14: 2a. Supplements: Deprivation | C14: IDACI Band 1: 0.2 to 0.25 | D14: 200 | E14: 200 | F14: 200 | G14: PerChild | H14: 44.87 | I14: 20.48 | J14: 22.06 | K14: 8974 | L14: 4096 | M14: 4412 | N14: 17482
C15: IDACI Band 2: 0.25 to 0.3 | D15: 350 | E15: 350 | F15: 350 | G15: PerChild | H15: 65 | I15: 25.04 | J15: 67.77 | K15: 22750 | L15: 8764 | M15: 23719.5 | N15: 55233.5
C16: IDACI Band 3: 0.3 to 0.4 | D16: 550 | E16: 550 | F16: 550 | G16: PerChild | H16: 36.14 | I16: 3.71 | J16: 38.07 | K16: 19877 | L16: 2040.5 | M16: 20938.5 | N16: 42856
C17: IDACI Band 4: 0.4 to 0.5 | D17: 750 | E17: 750 | F17: 750 | G17: PerChild | H17: 8.4 | I17: 11.13 | J17: 1 | K17: 6300 | L17: 8347.5 | M17: 750 | N17: 15397.5
C18: IDACI Band 5: 0.5 to 1.0 | D18: 950 | E18: 950 | F18: 950 | G18: PerChild | H18: 0 | I18: 0 | J18: 0
O19: =SUM(N14:N19)/6389095 -> 0.02049883434
B20: 2b. Supplements: Quality | C20: Quality Rate 1 - At least 1 member of staff with level 4/trainee EYPS, other staff at least 50% at level 3 OR at least 75% of staff at level 3 | D20: 0.38 | E20: 0.38 | F20: 0.38 | G20: PerHour | H20: 246563.7 | I20: 0 | J20: 0 | K20: 93694.21 | N20: 93694.21
C21: Quality Rate 2 - At least 1 member of staff a qualified teacher or EYPS. Other staff at least 50% at level 3 | D21: 0.73 | E21: 0.73 | F21: 0.73 | G21: PerHour | H21: 127597.2 | I21: 0 | J21: 0 | K21: 93145.96 | N21: 93145.96
C22: Quality Rate 3 - At least 1 member of staff a qualified teacher or EYPS. Other staff at least 50% at level 3 or above, all other staff at level 2 | D22: 0.94 | E22: 0.94 | F22: 0.94 | G22: PerHour | H22: 141010.1 | I22: 0 | J22: 261207 | K22: 132549.49 | M22: 245534.58 | N22: 378084.07
C23: Quality Rate 4 - At least 1 member of staff a qualified teacher or EYPS both with 5 years relevant early years experience, next member of staff a qualified teacher or EYPS. All other staff at level 3 | D23: 1.56 | E23: 1.56 | F23: 1.56 | G23: PerHour | H23: 16430.8 | I23: 118586.6 | J23: 0 | K23: 25632.05 | L23: 184995.1 | N23: 210627.15
O24: =SUM(N20:N24)/6389095 -> 0.1213867363
B25: 2c. Supplements: Flexibility | C25: No budget lines entered
O26: =SUM(N25:N26)/6389095 -> 0
B27: 2d. Supplements: Sustainability | C27: No budget lines entered
O28: =SUM(N27:N28)/6389095 -> 0
B29: 3. Other formula | C29: Maintained Nursery School Lump Sum | E29: 127830 | G29: LumpSum | I29: 2 | L29: 255660 | N29: 255660
O30: =SUM(N29:N30)/6389095 -> 0.04001505691
B31: 4. Additional funded free hours | C31: No budget lines entered
O32: =SUM(N31:N32)/6389095 -> 0
B33: TOTAL FUNDING FOR EARLY YEARS SINGLE FUNDING FORMULA (3s AND 4s) | K33: 3961804.63 | L33: 827965.19 | M33: 1128604.91 | N33: 5918374.73 | O33: =SUM(O8:O32) -> 0.9263244215
E35: Unit Value | I35: Number of Units | L35: Anticipated Budget
B36: Row Heading | C36: Description | D36: PVI | E36: Nursery School | F36: Primary Nursery Class | H36: PVI | I36: Nursery School | J36: Primary Nursery Class | K36: PVI | L36: Nursery School | M36: Primary Nursery Class | N36: Total Budget | O36: Proportion of Funding
B37: 5. Two year old Base Rate(s) per hour, per provider type | C37: Flat hourly rate for 2 year olds | D37: 5.26 | E37: 5.26 | F37: 5.26 | G37: PerHour | H37: 101984 | I37: 12928 | J37: 28728 | K37: 536435.84 | L37: 68001.28 | M37: 151109.28 | N37: 755546.4
B39: 6a. Two year old supplements Quality | C39: No budget lines entered
B41: 6b. Other supplements | C41: No budget lines entered
B43: TOTAL FUNDING FOR EARLY YEARS SINGLE FUNDING FORMULA FOR 2 YEAR OLDs | K43: 536435.84 | L43: 68001.28 | M43: 151109.28 | N43: 755546.4
B46: Row Heading | E46: Description | L46: Anticipated Total Budget | O46: Proportion of Funding
B47: 7. Early years contingency funding | C47: Contingency | N47: 278000
O48: =SUM(N47:N48)/6389095 -> 0.04351163975
B49: 8. Early years centrally retained spending | C49: EY Centrally Retained | N49: 192720
O50: =SUM(N49:N50)/6389095 -> 0.03016389645
B51: TOTAL FUNDING FOR CENTRAL EXPENDITURE | N51: 470720 | O51: =SUM(O47:O50) -> 0.07367553621
B53: EY s251 Notes

Sheet 937 (hidden)
C2: EY Table: FUNDING PERIOD (2013-14)
C3: Warwickshire | D3: 937
E5: Unit Value | I5: Number of Units | L5: Anticipated Budget
B6: Row Heading | C6: Description | D6: PVI | E6: Nursery School | F6: Primary Nursery Class | G6: UnitType | H6: PVI | I6: Nursery School | J6: Primary Nursery Class | K6: PVI | L6: Nursery School | M6: Primary Nursery Class | N6: Total Budget | O6: Proportion of Funding
B8: 1. EYSFF (three and four year olds) Base Rate(s) per hour, per provider type | C8: Applies to Nursery Schools, Nursery Classes & PVI Providers | D8: 3.55 | E8: 5.54 | F8: 3.89 | G8: PerHour | H8: 3280149 | I8: 268664 | J8: 879511 | K8: 11644528.95 | L8: 1488398.56 | M8: 3421297.79 | N8: 16554225.3
O9: =SUM(N8:N9)/20652026 -> 0.8015787555
B10: 2a. Supplements: Deprivation | C10: Applies to Nursery Schools, Nursery Classes and PVI Providers | D10: 1.14 | E10: 1.14 | F10: 1.14 | G10: PerHour | H10: 374259 | I10: 61810 | J10: 313891 | K10: 426655.26 | L10: 70463.4 | M10: 357835.74 | N10: 854954.4
O11: =SUM(N10:N11)/20652026 -> 0.0413980885
B12: 2b. Supplements: Quality | C12: No budget lines entered
O13: =SUM(N12:N13)/20652026 -> 0
B14: 2c. Supplements: Flexibility | C14: No budget lines entered
O15: =SUM(N14:N15)/20652026 -> 0
B16: 2d. Supplements: Sustainability | C16: No budget lines entered
O17: =SUM(N16:N17)/20652026 -> 0
B18: 3. Other formula | C18: Rural Places Factor - Applies to nursery classes only | F18: 3.89 | G18: PerHour | J18: 5328 | M18: 20725.92 | N18: 20725.92
C19: TSF Grant Allocation - based on average weekly hours | E19: 32.56 | G19: PerHour | I19: 6878 | L19: 223947.68 | N19: 223947.68
C20: Early Years Adjustment - to deal with under/overfunding in previous year | E20: -6973 | F20: -151989 | G20: LumpSum | I20: 1 | J20: 1 | L20: -6973 | M20: -151989 | N20: -158962
C21: Early Years Deduction - to avoid double-funding nursery classes | F21: -337.11 | G21: PerChild | J21: 1511 | M21: -509373.21 | N21: -509373.21
C22: Delegated funding - new delegation to Maintained Nursery Schools based on average pupil hours | E22: 0.4 | G22: PerHour | I22: 6878 | L22: 2751.2 | N22: 2751.2
O23: =SUM(N18:N23)/20652026 -> -0.02038107109
B24: 4. Additional funded free hours | C24: Special School Funded Places | F24: 9017 | G24: PerChild | J24: 76 | M24: 685292 | N24: 685292
O25: =SUM(N24:N25)/20652026 -> 0.03318279766
B26: TOTAL FUNDING FOR EARLY YEARS SINGLE FUNDING FORMULA (3s AND 4s) | K26: 12071184.21 | L26: 1778587.84 | M26: 3823789.24 | N26: 17673561.29 | O26: =SUM(O8:O25) -> 0.8557785706
E28: Unit Value | I28: Number of Units | L28: Anticipated Budget
B29: Row Heading | C29: Description | D29: PVI | E29: Nursery School | F29: Primary Nursery Class | H29: PVI | I29: Nursery School | J29: Primary Nursery Class | K29: PVI | L29: Nursery School | M29: Primary Nursery Class | N29: Total Budget | O29: Proportion of Funding
B30: 5. Two year old Base Rate(s) per hour, per provider type | C30: 2 year old base rate - all providers regardless of sector (units are estimates) | D30: 4.95 | E30: 4.95 | F30: 4.95 | G30: PerHour | H30: 424538.6 | I30: 50000 | J30: 50000 | K30: 2101466.07 | L30: 247500 | M30: 247500 | N30: 2596466.07
B32: 6a. Two year old supplements Quality | C32: No budget lines entered
B34: 6b. Other supplements | C34: No budget lines entered
B36: TOTAL FUNDING FOR EARLY YEARS SINGLE FUNDING FORMULA FOR 2 YEAR OLDs | K36: 2101466.07 | L36: 247500 | M36: 247500 | N36: 2596466.07
B39: Row Heading | E39: Description | L39: Anticipated Total Budget | O39: Proportion of Funding
B40: 7. Early years contingency funding | C40: No budget lines entered
O41: =SUM(N40:N41)/20652026 -> 0
B42: 8. Early years centrally retained spending | C42: Funding for children under 5 inc. 1.02m trajectory funding for Disadvantaged 2 yo Places | N42: 2978465
O43: =SUM(N42:N43)/20652026 -> 0.1442214435
B44: TOTAL FUNDING FOR CENTRAL EXPENDITURE | N44: 2978465 | O44: =SUM(O40:O43) -> 0.1442214435
B46: EY s251 Notes

Sheet 877 (hidden)
C2: EY Table: FUNDING PERIOD (2013-14)
C3: Warrington | D3: 877
E5: Unit Value | I5: Number of Units | L5: Anticipated Budget
B6: Row Heading | C6: Description | D6: PVI | E6: Nursery School | F6: Primary Nursery Class | G6: UnitType | H6: PVI | I6: Nursery School | J6: Primary Nursery Class | K6: PVI | L6: Nursery School | M6: Primary Nursery Class | N6: Total Budget | O6: Proportion of Funding
B8: 1. EYSFF (three and four year olds) Base Rate(s) per hour, per provider type | C8: Base Rate-Maintained&Nursery | E8: 4.18 | F8: 5.46 | G8: PerHour | I8: 622649 | J8: 55821 | L8: 2602672.82 | M8: 304782.66 | N8: 2907455.48
C9: Base Rate - Voluntary | D9: 3.22 | G9: PerHour | H9: 402559 | K9: 1296239.98 | N9: 1296239.98
C10: Base Rate - Private & Childminder | D10: 3.32 | G10: PerHour | H10: 674124 | K10: 2238091.68 | N10: 2238091.68
O11: =SUM(N8:N11)/8338934 -> 0.7724952782
B12: 2a. Supplements: Deprivation | C12: Deprivation - All | D12: 0.05 | E12: 0.05 | F12: 0.05 | G12: PerHour | H12: 1076683 | I12: 622649 | J12: 55821 | K12: 53834.15 | L12: 31132.45 | M12: 2791.05 | N12: 87757.65
O13: =SUM(N12:N13)/8338934 -> 0.01052384513
B14: 2b. Supplements: Quality | C14: Quality - All if eligible | D14: 1500 | E14: 1500 | F14: 1500 | G14: LumpSum | H14: 72 | I14: 20 | J14: 1 | K14: 108000 | L14: 30000 | M14: 1500 | N14: 139500
O15: =SUM(N14:N15)/8338934 -> 0.01672875694
B16: 2c. Supplements: Flexibility | C16: No budget lines entered
O17: =SUM(N16:N17)/8338934 -> 0
B18: 2d. Supplements: Sustainability | C18: No budget lines entered
O19: =SUM(N18:N19)/8338934 -> 0
B20: 3. Other formula | C20: SEN | D20: 0.05 | E20: 0.05 | F20: 0.05 | G20: PerHour | H20: 1076683 | I20: 622649 | J20: 55821 | K20: 53834.15 | L20: 31132.45 | M20: 2791.05 | N20: 87757.65
O21: =SUM(N20:N21)/8338934 -> 0.01052384513
B22: 4. Additional funded free hours | C22: No budget lines entered
O23: =SUM(N22:N23)/8338934 -> 0
B24: TOTAL FUNDING FOR EARLY YEARS SINGLE FUNDING FORMULA (3s AND 4s) | K24: 3749999.96 | L24: 2694937.72 | M24: 311864.76 | N24: 6756802.44 | O24: =SUM(O8:O23) -> 0.8102717254
E26: Unit Value | I26: Number of Units | L26: Anticipated Budget
B27: Row Heading | C27: Description | D27: PVI | E27: Nursery School | F27: Primary Nursery Class | H27: PVI | I27: Nursery School | J27: Primary Nursery Class | K27: PVI | L27: Nursery School | M27: Primary Nursery Class | N27: Total Budget | O27: Proportion of Funding
B28: 5. Two year old Base Rate(s) per hour, per provider type | C28: No budget lines entered
B30: 6a. Two year old supplements Quality | C30: No budget lines entered
B32: 6b. Other supplements | C32: No budget lines entered
B34: TOTAL FUNDING FOR EARLY YEARS SINGLE FUNDING FORMULA FOR 2 YEAR OLDs
B37: Row Heading | E37: Description | L37: Anticipated Total Budget | O37: Proportion of Funding
B38: 7. Early years contingency funding | C38: No budget lines entered
O39: =SUM(N38:N39)/8338934 -> 0
B40: 8. Early years centrally retained spending | C40: Tree Maintenance (maintained settings) | N40: 540
C41: Staff Supply Costs (maintained settings) | N41: 4025
C42: Support to Schools Forum | N42: 176
C43: Financial System Licences (maintained settings) | N43: 1454
C44: Unallocated 2 year old funding (presently under review) | N44: 1575937
O45: =SUM(N40:N45)/8338934 -> 0.1897283274
B46: TOTAL FUNDING FOR CENTRAL EXPENDITURE | N46: 1582132 | O46: =SUM(O38:O45) -> 0.1897283274
B48: EY s251 Notes

Sheet 212 (hidden)
C2: EY Table: FUNDING PERIOD (2013-14)
C3: Wandsworth | D3: 212
E5: Unit Value | I5: Number of Units | L5: Anticipated Budget
B6: Row Heading | C6: Description | D6: PVI | E6: Nursery School | F6: Primary Nursery Class | G6: UnitType | H6: PVI | I6: Nursery School | J6: Primary Nursery Class | K6: PVI | L6: Nursery School | M6: Primary Nursery Class | N6: Total Budget | O6: Proportion of Funding
B8: 1. EYSFF (three and four year olds) Base Rate(s) per hour, per provider type | C8: Base Rate (15 hours) | D8: 4 | E8: 6.17 | F8: 5.07 | G8: PerHour | H8: 1602308 | I8: 129960 | J8: 731310 | K8: 6409232 | L8: 801853.2 | M8: 3707741.7 | N8: 10918826.9
O9: =SUM(N8:N9)/18452605 -> 0.5917227893
B10: 2a. Supplements: Deprivation | C10: IDACI bands 4-5 | D10: 0.37 | E10: 0.37 | F10: 0.37 | G10: PerHour | H10: 93480 | I10: 28500 | J10: 300580 | K10: 34587.6 | L10: 10545 | M10: 111214.6 | N10: 156347.2
C11: IDACI band 5 -6 | D11: 0.46 | E11: 0.46 | F11: 0.46 | G11: PerHour | H11: 59850 | I11: 47500 | J11: 315400 | K11: 27531 | L11: 21850 | M11: 145084 | N11: 194465
C12: IDACI above band 6 | D12: 0.55 | E12: 0.55 | F12: 0.55 | G12: PerHour | H12: 35910 | I12: 9500 | J12: 229900 | K12: 19750.5 | L12: 5225 | M12: 126445 | N12: 151420.5
O13: =SUM(N10:N13)/18452605 -> 0.02721744166
B14: 2b. Supplements: Quality | C14: No budget lines entered
O15: =SUM(N14:N15)/18452605 -> 0
B16: 2c. Supplements: Flexibility | C16: No budget lines entered
O17: =SUM(N16:N17)/18452605 -> 0
B18: 2d. Supplements: Sustainability | C18: Sustainability | E18: 28009.63 | G18: LumpSum | I18: 3 | L18: 84028.89 | N18: 84028.89
O19: =SUM(N18:N19)/18452605 -> 0.004553768425
B20: 3. Other formula | C20: Lump Sum maintained nurseries | E20: 150000 | G20: LumpSum | I20: 3 | L20: 450000 | N20: 450000
O21: =SUM(N20:N21)/18452605 -> 0.02438680067
B22: 4. Additional funded free hours | C22: Extra 10 hours | E22: 6.17 | F22: 4.09 | G22: PerHour | I22: 38380 | J22: 341240 | L22: 236804.6 | M22: 1395671.6 | N22: 1632476.2
C23: Extra 10hrs above std intake | F23: 1.02 | G23: PerHour | J23: 22040 | M23: 22480.8 | N23: 22480.8
O24: =SUM(N22:N24)/18452605 -> 0.08968690329
B25: TOTAL FUNDING FOR EARLY YEARS SINGLE FUNDING FORMULA (3s AND 4s) | K25: 6491101.1 | L25: 1610306.69 | M25: 5508637.7 | N25: 13610045.49 | O25: =SUM(O8:O24) -> 0.7375677033
E27: Unit Value | I27: Number of Units | L27: Anticipated Budget
B28: Row Heading | C28: Description | D28: PVI | E28: Nursery School | F28: Primary Nursery Class | H28: PVI | I28: Nursery School | J28: Primary Nursery Class | K28: PVI | L28: Nursery School | M28: Primary Nursery Class | N28: Total Budget | O28: Proportion of Funding
B29: 5. Two year old Base Rate(s) per hour, per provider type | C29: No budget lines entered
B31: 6a. Two year old supplements Quality | C31: No budget lines entered
B33: 6b. Other supplements | C33: No budget lines entered
B35: TOTAL FUNDING FOR EARLY YEARS SINGLE FUNDING FORMULA FOR 2 YEAR OLDs
B38: Row Heading | E38: Description | L38: Anticipated Total Budget | O38: Proportion of Funding
B39: 7. Early years contingency funding | C39: Additional Places | N39: 19624
O40: =SUM(N39:N40)/18452605 -> 0.001063481281
B41: 8. Early years centrally retained spending | C41: 2yr old funding yet to be allocated to providers | N41: 4308000
C42: Early years and childcare unit | N42: 300170
C43: No budget lines entered
C44: No budget lines entered
C45: No budget lines entered
C46: No budget lines entered
C47: No budget lines entered
C48: Other Overheads | N48: 214766
O49: =SUM(N41:N49)/18452605 -> 0.261368842
B50: TOTAL FUNDING FOR CENTRAL EXPENDITURE | N50: 4842560 | O50: =SUM(O39:O49) -> 0.2624323232
B52: EY s251 Notes
B53: 1.3.1 includes the new 2 year old funding which has yet to be allocated.

Sheet 320 (hidden)
C2: EY Table: FUNDING PERIOD (2013-14)
C3: Waltham Forest | D3: 320
E5: Unit Value | I5: Number of Units | L5: Anticipated Budget
B6: Row Heading | C6: Description | D6: PVI | E6: Nursery School | F6: Primary Nursery Class | G6: UnitType | H6: PVI | I6: Nursery School | J6: Primary Nursery Class | K6: PVI | L6: Nursery School | M6: Primary Nursery Class | N6: Total Budget | O6: Proportion of Funding
B8: 1. EYSFF (three and four year olds) Base Rate(s) per hour, per provider type | C8: Base Funding | D8: 3.9 | E8: 5.84 | F8: 3.75 | G8: PerHour | H8: 1127226 | I8: 163490 | J8: 1551625 | K8: 4396181.4 | L8: 954781.6 | M8: 5818593.75 | N8: 11169556.75
O9: =SUM(N8:N9)/13821764 -> 0.808113693
B10: 2a. Supplements: Deprivation | C10: IDACI 4 | D10: 0.25 | E10: 0.25 | F10: 0.25 | G10: PerHour | H10: 219325 | I10: 35057 | J10: 350655 | K10: 54831.25 | L10: 8764.25 | M10: 87663.75 | N10: 151259.25
C11: IDACI 5 | D11: 0.7 | E11: 0.7 | F11: 0.7 | G11: PerHour | H11: 109083 | I11: 50782 | J11: 219510 | K11: 76358.1 | L11: 35547.4 | M11: 153657 | N11: 265562.5
C12: IDACI 6 | D12: 1 | E12: 1 | F12: 1 | G12: PerHour | H12: 63488 | I12: 4690 | J12: 101815 | K12: 63488 | L12: 4690 | M12: 101815 | N12: 169993
O13: =SUM(N10:N13)/13821764 -> 0.04245585079
B14: 2b. Supplements: Quality | G14: PerHour
C15: Quality Medium | D15: 0.18 | F15: 0.18 | G15: PerHour | H15: 232282 | J15: 51750 | K15: 41810.76 | M15: 9315 | N15: 51125.76
C16: Quality-High | D16: 0.35 | F16: 0.35 | G16: PerHour | H16: 105271 | J16: 132159 | K16: 36844.85 | M16: 46255.65 | N16: 83100.5
C17: Quality Premium | D17: 0.42 | E17: 0.42 | F17: 0.42 | G17: PerHour | H17: 275983 | I17: 163490 | J17: 1267261 | K17: 115912.86 | L17: 68665.8 | M17: 532249.62 | N17: 716828.28
O18: =SUM(N14:N18)/13821764 -> 0.06157351117
B19: 2c. Supplements: Flexibility | D19: 0 | E19: 0 | F19: 0 | G19: PerHour | H19: 0 | I19: 0 | J19: 0
G20: PerHour
G21: PerHour
G22: PerHour
O23: =SUM(N19:N23)/13821764 -> 0
B24: 2d. Supplements: Sustainability | C24: 0 | D24: 0 | E24: 0 | F24: 0 | G24: PerHour | H24: 0 | I24: 0 | J24: 0
G25: PerHour
O26: =SUM(N24:N26)/13821764 -> 0
B27: 3. Other formula | C27: Business Rates | E27: 1 | I27: 45759.95 | L27: 45759.95 | N27: 45759.95
O28: =SUM(N27:N28)/13821764 -> 0.003310717069
B29: 4. Additional funded free hours | D29: 0 | E29: 0 | F29: 0 | G29: PerHour | H29: 0 | I29: 0 | J29: 0
G30: PerHour
O31: =SUM(N29:N31)/13821764 -> 0
B32: TOTAL FUNDING FOR EARLY YEARS SINGLE FUNDING FORMULA (3s AND 4s) | K32: 4785427.22 | L32: 1118209 | M32: 6749549.77 | N32: 12653185.99 | O32: =SUM(O8:O31) -> 0.915453772
E34: Unit Value | I34: Number of Units | L34: Anticipated Budget
B35: Row Heading | C35: Description | D35: PVI | E35: Nursery School | F35: Primary Nursery Class | H35: PVI | I35: Nursery School | J35: Primary Nursery Class | K35: PVI | L35: Nursery School | M35: Primary Nursery Class | N35: Total Budget | O35: Proportion of Funding
B36: 5. Two year old Base Rate(s) per hour, per provider type | D36: 6 | E36: 6 | F36: 6 | G36: PerHour | H36: 408163 | I36: 73148 | J36: 78999 | K36: 2448978 | L36: 438888 | M36: 473994 | N36: 3361860
B38: 6a. Two year old supplements Quality | D38: 0 | E38: 0 | F38: 0 | G38: PerHour | H38: 0 | I38: 0 | J38: 0
G39: PerHour
G40: PerHour
B42: 6b. Other supplements | D42: 0 | E42: 0 | F42: 0 | G42: PerHour | H42: 0 | I42: 0 | J42: 0
G43: PerHour
B45: TOTAL FUNDING FOR EARLY YEARS SINGLE FUNDING FORMULA FOR 2 YEAR OLDs | K45: 2448978 | L45: 438888 | M45: 473994 | N45: 3361860
B48: Row Heading | E48: Description | L48: Anticipated Total Budget | O48: Proportion of Funding
B49: 7. Early years contingency funding | C49: Retained for place building for two year olds | N49: 625493
O50: =SUM(N49:N50)/13821764 -> 0.04525420923
B51: 8. Early years centrally retained spending | C51: Centrally Retained for in-year growth in numbers | N51: 543085
O52: =SUM(N51:N52)/13821764 -> 0.03929201801
B53: TOTAL FUNDING FOR CENTRAL EXPENDITURE | N53: 1168578 | O53: =SUM(O49:O52) -> 0.08454622724
B55: EY s251 Notes
B56: Quality: Currently a supplement is paid on the basis of the quality of staff employed in a setting. The current hourly rates are set out in Table 5 below: Table 5: Supplement for Quality of Staff: Band Rate per hour Number of PVIs Number of Schools A – medium 18p 12 2 B – high 35p 6 5 C - premium 42p 11 36 There is a description for each band and settings are classified according to how well they meet these descriptors. In addition, there are 39 PVIs and 3 schools at base quality funding. For deprivation the pupil figures are calculated using current data of 2,846 FTe three and four year old pupils funded for free education in 2012/13. The rate applied to each band is the same as for primary schools augmented by 25% to reflect the fact that primary schools also receive additional deprivation funding based on free school meals. This has then been converted into an hourly rate which has then been rounded for simplicity.

Sheet 335 (hidden)
C2: EY Table: FUNDING PERIOD (2013-14)
C3: Walsall | D3: 335
E5: Unit Value | I5: Number of Units | L5: Anticipated Budget
B6: Row Heading | C6: Description | D6: PVI | E6: Nursery School | F6: Primary Nursery Class | G6: UnitType | H6: PVI | I6: Nursery School | J6: Primary Nursery Class | K6: PVI | L6: Nursery School | M6: Primary Nursery Class | N6: Total Budget | O6: Proportion of Funding
B8: 1. EYSFF (three and four year olds) Base Rate(s) per hour, per provider type | C8: Base rates in PVIs - 3.71 to Independent school, 3.74 to Children Centre's, Private & Voluntary and Childminders. Nursery classes - 4.04 to classes whose capacity is upto 26 and 2.98 to nursery classes over 26. Nursery schools rate 4.80 | D8: 3.71 | E8: 4.8 | F8: 2.98 | G8: PerHour | H8: 45795 | I8: 385803 | J8: 1366898 | K8: 169899.45 | L8: 1851854.4 | M8: 4073356.04 | N8: 6095109.89
C9: Base rates in PVIs - 3.71 to independent schools, 3.74 to Children's Centre, Private & Voluntary and Childminders. Nursery Classes whose capacity is upto 26 - 4.04 p/hr, nursery classes with a capcacity of more than 26 2.98. Nursery school rate 4.80 | D9: 3.74 | F9: 4.04 | G9: PerHour | H9: 435275 | J9: 256638 | K9: 1627928.5 | M9: 1036817.52 | N9: 2664746.02
O10: =SUM(N8:N10)/14385024 -> 0.608956642
B11: 2a. Supplements: Deprivation | C11: The number of pupils on May 2012 census/headcount multiplied by the average IDACI score of pupils recorded on census/headcount. | D11: 342.33 | E11: 342.33 | F11: 342.33 | G11: PerChild | H11: 313.65 | I11: 276.93 | J11: 1006.91 | K11: 107371.8 | L11: 94801.45 | M11: 344695.5 | N11: 546868.75
O12: =SUM(N11:N12)/14385024 -> 0.03801653372
B13: 2b. Supplements: Quality | C13: No supplement applied | D13: 0 | E13: 0 | F13: 0 | H13: 0 | I13: 0 | J13: 0
C14: No supplement applied | D14: 0 | E14: 0 | F14: 0 | H14: 0 | I14: 0 | J14: 0
O15: =SUM(N13:N15)/14385024 -> 0
B16: 2c. Supplements: Flexibility | C16: No Supplement applied | D16: 0 | E16: 0 | F16: 0 | H16: 0 | I16: 0 | J16: 0
O17: =SUM(N16:N17)/14385024 -> 0
B18: 2d. Supplements: Sustainability | C18: No supplement applied | D18: 0 | E18: 0 | F18: 0 | H18: 0 | I18: 0 | J18: 0
O19: =SUM(N18:N19)/14385024 -> 0
B20: 3. Other formula | C20: Nursery schools attract at lump sum of £96,020 | E20: 96020 | G20: LumpSum | I20: 8 | L20: 768160 | N20: 768160
C21: Business Rates for Nursery schools | E21: 0.46 | G21: PerChild | I21: 76341 | L21: 35116.86 | N21: 35116.86
O22: =SUM(N20:N22)/14385024 -> 0.05584119012
B23: 4. Additional funded free hours | C23: No budget lines entered
O24: =SUM(N23:N24)/14385024 -> 0
B25: TOTAL FUNDING FOR EARLY YEARS SINGLE FUNDING FORMULA (3s AND 4s) | K25: 1905199.75 | L25: 2749932.71 | M25: 5454869.06 | N25: 10110001.52 | O25: =SUM(O8:O24) -> 0.7028143658
E27: Unit Value | I27: Number of Units | L27: Anticipated Budget
B28: Row Heading | C28: Description | D28: PVI | E28: Nursery School | F28: Primary Nursery Class | H28: PVI | I28: Nursery School | J28: Primary Nursery Class | K28: PVI | L28: Nursery School | M28: Primary Nursery Class | N28: Total Budget | O28: Proportion of Funding
B29: 5. Two year old Base Rate(s) per hour, per provider type | C29: No budget lines entered
B31: 6a. Two year old supplements Quality | C31: No budget lines entered
B33: 6b. Other supplements | C33: No budget lines entered
B35: TOTAL FUNDING FOR EARLY YEARS SINGLE FUNDING FORMULA FOR 2 YEAR OLDs
B38: Row Heading | E38: Description | L38: Anticipated Total Budget | O38: Proportion of Funding
B39: 7. Early years contingency funding | C39: Childminders on directory requested not to be funded on indicative numbers but only on actuals. Contingency is to meet the costs for childminders and increases in termly hours following reconciliation of estimates to actual headcount | N39: 300000
C40: Trajectory fund 2 yr old - not yet allocated | N40: 1033187
C41: Two year old offer not yet allocated | N41: 2631835
O42: =SUM(N39:N42)/14385024 -> 0.2756354108
B43: 8. Early years centrally retained spending | C43: Expenditure of Children under 5 | N43: 310000
O44: =SUM(N43:N44)/14385024 -> 0.02155018998
B45: TOTAL FUNDING FOR CENTRAL EXPENDITURE | N45: 4275022 | O45: =SUM(O39:O44) -> 0.2971856008
B47: EY s251 Notes

Sheet 384 (hidden)
C2: EY Table: FUNDING PERIOD (2013-14)
C3: Wakefield | D3: 384
E5: Unit Value | I5: Number of Units | L5: Anticipated Budget
B6: Row Heading | C6: Description | D6: PVI | E6: Nursery School | F6: Primary Nursery Class | G6: UnitType | H6: PVI | I6: Nursery School | J6: Primary Nursery Class | K6: PVI | L6: Nursery School | M6: Primary Nursery Class | N6: Total Budget | O6: Proportion of Funding
B8: 1. EYSFF (three and four year olds) Base Rate(s) per hour, per provider type | C8: Basic Rate | D8: 3.91 | F8: 3.91 | G8: PerHour | H8: 680367 | J8: 2151664 | K8: 2660234.97 | M8: 8413006.24 | N8: 11073241.21
C9: Basic Rate for small settings | E9: 7.85 | G9: PerHour | I9: 18450 | L9: 144832.5 | N9: 144832.5
C10: Basic Rate for small settings | E10: 6.76 | G10: PerHour | I10: 97918 | L10: 661925.68 | N10: 661925.68
O11: =SUM(N8:N11)/12015640 -> 0.9887113287
B12: 2a. Supplements: Deprivation | C12: Deprivation Supplement - IDACI bandings 4/5/6 | D12: 0.28 | E12: 0.28 | F12: 0.28 | G12: PerHour | H12: 80370 | I12: 379620 | J12: 23370 | K12: 22503.6 | L12: 106293.6 | M12: 6543.6 | N12: 135340.8
O13: =SUM(N12:N13)/12015640 -> 0.01126371962
B14: 2b. Supplements: Quality | C14: No budget lines entered
O15: =SUM(N14:N15)/12015640 -> 0
B16: 2c. Supplements: Flexibility | C16: No budget lines entered
O17: =SUM(N16:N17)/12015640 -> 0
B18: 2d. Supplements: Sustainability | C18: No budget lines entered
O19: =SUM(N18:N19)/12015640 -> 0
B20: 3. Other formula | C20: Nominal rate for settings exceeding their allowable nursery size | E20: 0.02 | F20: 0.02 | G20: PerHour | I20: 2850 | J20: 12150 | L20: 57 | M20: 243 | N20: 300
O21: =SUM(N20:N21)/12015640 -> 2.496745908e-05
B22: 4. Additional funded free hours | C22: No budget lines entered
O23: =SUM(N22:N23)/12015640 -> 0
B24: TOTAL FUNDING FOR EARLY YEARS SINGLE FUNDING FORMULA (3s AND 4s) | K24: 2682738.57 | L24: 913108.78 | M24: 8419792.84 | N24: 12015640.19 | O24: =SUM(O8:O23) -> 1.000000016
E26: Unit Value | I26: Number of Units | L26: Anticipated Budget
B27: Row Heading | C27: Description | D27: PVI | E27: Nursery School | F27: Primary Nursery Class | H27: PVI | I27: Nursery School | J27: Primary Nursery Class | K27: PVI | L27: Nursery School | M27: Primary Nursery Class | N27: Total Budget | O27: Proportion of Funding
B28: 5. Two year old Base Rate(s) per hour, per provider type | D28: 4.85 | G28: PerHour | H28: 644577.32 | K28: 3126200 | N28: 3126200
B30: 6a. Two year old supplements Quality | C30: No budget lines entered
B32: 6b. Other supplements | C32: No budget lines entered
B34: TOTAL FUNDING FOR EARLY YEARS SINGLE FUNDING FORMULA FOR 2 YEAR OLDs | K34: 3126200 | N34: 3126200
B37: Row Heading | E37: Description | L37: Anticipated Total Budget | O37: Proportion of Funding
B38: 7. Early years contingency funding | C38: No budget lines entered
O39: =SUM(N38:N39)/12015640 -> 0
B40: 8. Early years centrally retained spending | C40: No budget lines entered
O41: =SUM(N40:N41)/12015640 -> 0
B42: TOTAL FUNDING FOR CENTRAL EXPENDITURE | O42: =SUM(O38:O41) -> 0
B44: EY s251 Notes

Sheet 358 (hidden)
C2: EY Table: FUNDING PERIOD (2013-14)
C3: Trafford | D3: 358
E5: Unit Value | I5: Number of Units | L5: Anticipated Budget
B6: Row Heading | C6: Description | D6: PVI | E6: Nursery School | F6: Primary Nursery Class | G6: UnitType | H6: PVI | I6: Nursery School | J6: Primary Nursery Class | K6: PVI | L6: Nursery School | M6: Primary Nursery Class | N6: Total Budget | O6: Proportion of Funding
B8: 1. EYSFF (three and four year olds) Base Rate(s) per hour, per provider type | D8: 2120.4 | E8: 0 | F8: 1683.54 | G8: PerChild | H8: 1601.63 | I8: 0 | J8: 2265 | K8: 3396096.25 | M8: 3813218.1 | N8: 7209314.35
O9: =SUM(N8:N9)/9819955 -> 0.7341494284
B10: 2a. Supplements: Deprivation | G10: PerChild
C12: unit amount | D12: 360.36 | F12: 360.36 | G12: PerChild | H12: 562 | J12: 659 | K12: 202522.32 | M12: 237477.24 | N12: 439999.56
O13: =SUM(N10:N13)/9819955 -> 0.04480667783
B14: 2b. Supplements: Quality | C14: lump sum | D14: 2500 | G14: LumpSum | H14: 30.7 | K14: 76750 | N14: 76750
O15: =SUM(N14:N15)/9819955 -> 0.007815718096
B16: 2c. Supplements: Flexibility
O17: =SUM(N16:N17)/9819955 -> 0
B18: 2d. Supplements: Sustainability | C18: No budget lines entered
O19: =SUM(N18:N19)/9819955 -> 0
B20: 3. Other formula | C20: EAL £100k split over required units | D20: 189.39 | E20: 189.39 | G20: PerChild | H20: 151 | I20: 377 | K20: 28597.89 | L20: 71400.03 | N20: 99997.92
O21: =SUM(N20:N21)/9819955 -> 0.01018313424
B22: 4. Additional funded free hours | C22: No budget lines entered
O23: =SUM(N22:N23)/9819955 -> 0
B24: TOTAL FUNDING FOR EARLY YEARS SINGLE FUNDING FORMULA (3s AND 4s) | K24: 3703966.46 | L24: 71400.03 | M24: 4050695.34 | N24: 7826061.83 | O24: =SUM(O8:O23) -> 0.7969549586
E26: Unit Value | I26: Number of Units | L26: Anticipated Budget
B27: Row Heading | C27: Description | D27: PVI | E27: Nursery School | F27: Primary Nursery Class | H27: PVI | I27: Nursery School | J27: Primary Nursery Class | K27: PVI | L27: Nursery School | M27: Primary Nursery Class | N27: Total Budget | O27: Proportion of Funding
B28: 5. Two year old Base Rate(s) per hour, per provider type | C28: No budget lines entered
B30: 6a. Two year old supplements Quality | C30: No budget lines entered
B32: 6b. Other supplements | C32: No budget lines entered
B34: TOTAL FUNDING FOR EARLY YEARS SINGLE FUNDING FORMULA FOR 2 YEAR OLDs
B37: Row Heading | E37: Description | L37: Anticipated Total Budget | O37: Proportion of Funding
B38: 7. Early years contingency funding | C38: No budget lines entered
C39: No budget lines entered
O40: =SUM(N38:N40)/9819955 -> 0
B41: 8. Early years centrally retained spending | C41: 2 year old funding to be allocated £1806m, £187893 central | N41: 1993893
O42: =SUM(N41:N42)/9819955 -> 0.2030450241
B43: TOTAL FUNDING FOR CENTRAL EXPENDITURE | N43: 1993893 | O43: =SUM(O38:O42) -> 0.2030450241
B45: EY s251 Notes

Sheet 211 (hidden)
C2: EY Table: FUNDING PERIOD (2013-14)
C3: Tower Hamlets | D3: 211
E5: Unit Value | I5: Number of Units | L5: Anticipated Budget
B6: Row Heading | C6: Description | D6: PVI | E6: Nursery School | F6: Primary Nursery Class | G6: UnitType | H6: PVI | I6: Nursery School | J6: Primary Nursery Class | K6: PVI | L6: Nursery School | M6: Primary Nursery Class | N6: Total Budget | O6: Proportion of Funding
B8: 1. EYSFF (three and four year olds) Base Rate(s) per hour, per provider type | C8: EYSFF April 13-August 13 | D8: 3.93 | E8: 6.56 | F8: 3.93 | G8: PerHour | H8: 178410 | I8: 145440 | J8: 917640 | K8: 701151.3 | L8: 954086.4 | M8: 3606325.2 | N8: 5261562.9
C9: Nursery N2 April 13- August 13 | E9: 7.46 | G9: PerHour | I9: 21600 | L9: 161136 | N9: 161136
C10: EYSFF Sept13-March 14 | D10: 4.72 | E10: 7.87 | F10: 4.72 | G10: PerHour | H10: 356820 | I10: 279630 | J10: 1614692 | K10: 1684190.4 | L10: 2200688.1 | M10: 7621346.24 | N10: 11506224.74
C11: Nursery N2 Sept 13 - March 14 | E11: 8.95 | G11: PerHour | I11: 41600 | L11: 372320 | N11: 372320
O12: =SUM(N8:N12)/21331298 -> 0.8110731771
B13: 2a. Supplements: Deprivation | C13: Deprivation PVI (IDAC) Nurseries (90% rate) Primary (FMS6) April 13-August 13 | D13: 0.38 | E13: 0.38 | F13: 0.67 | G13: PerHour | H13: 160569 | I13: 150336 | J13: 516707 | K13: 61016.22 | L13: 57127.68 | M13: 346193.69 | N13: 464337.59
C14: Deprivation PVI (IDAC) Nurseries (90% rate) Primary (FMS6) Sept 13-March 13 | D14: 0.46 | E14: 0.46 | F14: 0.8 | G14: PerHour | H14: 321138 | I14: 289107 | J14: 895430 | K14: 147723.48 | L14: 132989.22 | M14: 716344 | N14: 997056.7
O15: =SUM(N13:N15)/21331298 -> 0.06850939357
B16: 2b. Supplements: Quality | C16: No budget lines entered
O17: =SUM(N16:N17)/21331298 -> 0
B18: 2c. Supplements: Flexibility | C18: No budget lines entered
O19: =SUM(N18:N19)/21331298 -> 0
B20: 2d. Supplements: Sustainability | C20: No budget lines entered
O21: =SUM(N20:N21)/21331298 -> 0
B22: 3. Other formula | C22: Other Factors in Nurseries N1 April 13-August 13 | E22: 1.12 | G22: PerHour | I22: 145440 | L22: 162892.8 | N22: 162892.8
C23: Other Factors in Nurseries N1 Sept 13-March 14 | E23: 1.34 | G23: PerHour | I23: 279630 | L23: 374704.2 | N23: 374704.2
C24: Other Factors in Nursery N2 April 13-August 13 | E24: 1.19 | G24: PerHour | I24: 21600 | L24: 25704 | N24: 25704
C25: Other Factors in Nursery N2 Sept 13-March 14 | E25: 1.43 | G25: PerHour | I25: 41600 | L25: 59488 | N25: 59488
C26: PFI Nursery 1 | E26: 10366 | G26: LumpSum | I26: 1 | L26: 10366 | N26: 10366
C27: PFI Nursery 2 | E27: 14767 | G27: LumpSum | I27: 1 | L27: 14767 | N27: 14767
C28: PFI Nursery 3 | E28: 15647 | G28: LumpSum | I28: 1 | L28: 15647 | N28: 15647
C29: PFI Nursery 4 | E29: 21809 | G29: LumpSum | I29: 1 | L29: 21809 | N29: 21809
O30: =SUM(N22:N30)/21331298 -> 0.03213015917
B31: 4. Additional funded free hours | C31: No budget lines entered
O32: =SUM(N31:N32)/21331298 -> 0
B33: TOTAL FUNDING FOR EARLY YEARS SINGLE FUNDING FORMULA (3s AND 4s) | K33: 2594081.4 | L33: 4563725.4 | M33: 12290209.13 | N33: 19448015.93 | O33: =SUM(O8:O32) -> 0.9117127298
E35: Unit Value | I35: Number of Units | L35: Anticipated Budget
B36: Row Heading | C36: Description | D36: PVI | E36: Nursery School | F36: Primary Nursery Class | H36: PVI | I36: Nursery School | J36: Primary Nursery Class | K36: PVI | L36: Nursery School | M36: Primary Nursery Class | N36: Total Budget | O36: Proportion of Funding
B37: 5. Two year old Base Rate(s) per hour, per provider type | C37: 2 year old Entitlement | D37: 6 | G37: PerHour | H37: 944468 | K37: 5666808 | N37: 5666808
B39: 6a. Two year old supplements Quality | C39: No budget lines entered
B41: 6b. Other supplements | C41: No budget lines entered
B43: TOTAL FUNDING FOR EARLY YEARS SINGLE FUNDING FORMULA FOR 2 YEAR OLDs | K43: 5666808 | N43: 5666808
B46: Row Heading | E46: Description | L46: Anticipated Total Budget | O46: Proportion of Funding
B47: 7. Early years contingency funding | C47: No budget lines entered
O48: =SUM(N47:N48)/21331298 -> 0
B49: 8. Early years centrally retained spending | C49: Centrally retained spending | N49: 1883282
O50: =SUM(N49:N50)/21331298 -> 0.08828726691
B51: TOTAL FUNDING FOR CENTRAL EXPENDITURE | N51: 1883282 | O51: =SUM(O47:O50) -> 0.08828726691
B53: EY s251 Notes

Sheet 880 (hidden)
C2: EY Table: FUNDING PERIOD (2013-14)
C3: Torbay | D3: 880
E5: Unit Value | I5: Number of Units | L5: Anticipated Budget
B6: Row Heading | C6: Description | D6: PVI | E6: Nursery School | F6: Primary Nursery Class | G6: UnitType | H6: PVI | I6: Nursery School | J6: Primary Nursery Class | K6: PVI | L6: Nursery School | M6: Primary Nursery Class | N6: Total Budget | O6: Proportion of Funding
B8: 1. EYSFF (three and four year olds) Base Rate(s) per hour, per provider type | D8: 4 | E8: 0 | F8: 3.58 | G8: PerHour | H8: 602500 | I8: 0 | J8: 377448 | K8: 2410000 | M8: 1351263.84 | N8: 3761263.84
O9: =SUM(N8:N9)/5062447 -> 0.7429734751
B10: 2a. Supplements: Deprivation | C10: deprivation | D10: 194.02 | F10: 194.02 | G10: PerChild | H10: 447 | J10: 334 | K10: 86726.94 | M10: 64802.68 | N10: 151529.62
O11: =SUM(N10:N11)/5062447 -> 0.02993209015
B12: 2b. Supplements: Quality | C12: No budget lines entered
O13: =SUM(N12:N13)/5062447 -> 0
B14: 2c. Supplements: Flexibility | C14: No budget lines entered
O15: =SUM(N14:N15)/5062447 -> 0
B16: 2d. Supplements: Sustainability | C16: No budget lines entered
O17: =SUM(N16:N17)/5062447 -> 0
B18: 3. Other formula | C18: No budget lines entered
O19: =SUM(N18:N19)/5062447 -> 0
B20: 4. Additional funded free hours | C20: No budget lines entered
O21: =SUM(N20:N21)/5062447 -> 0
B22: TOTAL FUNDING FOR EARLY YEARS SINGLE FUNDING FORMULA (3s AND 4s) | K22: 2496726.94 | M22: 1416066.52 | N22: 3912793.46 | O22: =SUM(O8:O21) -> 0.7729055652
E24: Unit Value | I24: Number of Units | L24: Anticipated Budget
B25: Row Heading | C25: Description | D25: PVI | E25: Nursery School | F25: Primary Nursery Class | H25: PVI | I25: Nursery School | J25: Primary Nursery Class | K25: PVI | L25: Nursery School | M25: Primary Nursery Class | N25: Total Budget | O25: Proportion of Funding
B26: 5. Two year old Base Rate(s) per hour, per provider type | C26: No budget lines entered
B28: 6a. Two year old supplements Quality | C28: No budget lines entered
B30: 6b. Other supplements | C30: No budget lines entered
B32: TOTAL FUNDING FOR EARLY YEARS SINGLE FUNDING FORMULA FOR 2 YEAR OLDs
B35: Row Heading | E35: Description | L35: Anticipated Total Budget | O35: Proportion of Funding
B36: 7. Early years contingency funding | C36: No budget lines entered
O37: =SUM(N36:N37)/5062447 -> 0
B38: 8. Early years centrally retained spending | N38: 1149654
O39: =SUM(N38:N39)/5062447 -> 0.2270945256
B40: TOTAL FUNDING FOR CENTRAL EXPENDITURE | N40: 1149654 | O40: =SUM(O36:O39) -> 0.2270945256
B42: EY s251 Notes
B43: These tables have not been completed in full

Sheet 883 (hidden)
C2: EY Table: FUNDING PERIOD (2013-14)
C3: Thurrock | D3: 883
E5: Unit Value | I5: Number of Units | L5: Anticipated Budget
B6: Row Heading | C6: Description | D6: PVI | E6: Nursery School | F6: Primary Nursery Class | G6: UnitType | H6: PVI | I6: Nursery School | J6: Primary Nursery Class | K6: PVI | L6: Nursery School | M6: Primary Nursery Class | N6: Total Budget | O6: Proportion of Funding
B8: 1. EYSFF (three and four year olds) Base Rate(s) per hour, per provider type | C8: Basic allocation per hour | D8: 3.65 | F8: 3.65 | G8: PerHour | H8: 866858 | J8: 670159 | K8: 3164031.7 | M8: 2446080.35 | N8: 5610112.05
O9: =SUM(N8:N9)/6599680 -> 0.8500581922
B10: 2a. Supplements: Deprivation | C10: Deprivation supplement | D10: 88050 | F10: 63479 | G10: LumpSum | H10: 1 | J10: 1 | K10: 88050 | M10: 63479 | N10: 151529
O11: =SUM(N10:N11)/6599680 -> 0.02296005261
B12: 2b. Supplements: Quality | C12: Quality Supplemrnt | D12: 113659 | F12: 64080 | G12: LumpSum | H12: 1 | J12: 1 | K12: 113659 | M12: 64080 | N12: 177739
O13: =SUM(N12:N13)/6599680 -> 0.02693145728
B14: 2c. Supplements: Flexibility | C14: No budget lines entered
O15: =SUM(N14:N15)/6599680 -> 0
B16: 2d. Supplements: Sustainability | C16: No budget lines entered
O17: =SUM(N16:N17)/6599680 -> 0
B18: 3. Other formula | C18: No budget lines entered
O19: =SUM(N18:N19)/6599680 -> 0
B20: 4. Additional funded free hours | C20: No budget lines entered
O21: =SUM(N20:N21)/6599680 -> 0
B22: TOTAL FUNDING FOR EARLY YEARS SINGLE FUNDING FORMULA (3s AND 4s) | K22: 3365740.7 | M22: 2573639.35 | N22: 5939380.05 | O22: =SUM(O8:O21) -> 0.8999497021
E24: Unit Value | I24: Number of Units | L24: Anticipated Budget
B25: Row Heading | C25: Description | D25: PVI | E25: Nursery School | F25: Primary Nursery Class | H25: PVI | I25: Nursery School | J25: Primary Nursery Class | K25: PVI | L25: Nursery School | M25: Primary Nursery Class | N25: Total Budget | O25: Proportion of Funding
B26: 5. Two year old Base Rate(s) per hour, per provider type | C26: Two year old base rate | D26: 4.85 | G26: PerHour | H26: 267900 | K26: 1299315 | N26: 1299315
B28: 6a. Two year old supplements Quality | C28: No budget lines entered
B30: 6b. Other supplements | C30: No budget lines entered
B32: TOTAL FUNDING FOR EARLY YEARS SINGLE FUNDING FORMULA FOR 2 YEAR OLDs | K32: 1299315 | N32: 1299315
B35: Row Heading | E35: Description | L35: Anticipated Total Budget | O35: Proportion of Funding
B36: 7. Early years contingency funding | C36: contingingency for 2 and 3 year olds | N36: 660300
O37: =SUM(N36:N37)/6599680 -> 0.1000503055
B38: 8. Early years centrally retained spending | C38: No budget lines entered
O39: =SUM(N38:N39)/6599680 -> 0
B40: TOTAL FUNDING FOR CENTRAL EXPENDITURE | N40: 660300 | O40: =SUM(O36:O39) -> 0.1000503055
B42: EY s251 Notes

Sheet 894 (hidden)
C2: EY Table: FUNDING PERIOD (2013-14)
C3: Telford and Wrekin | D3: 894
E5: Unit Value | I5: Number of Units | L5: Anticipated Budget
B6: Row Heading | C6: Description | D6: PVI | E6: Nursery School | F6: Primary Nursery Class | G6: UnitType | H6: PVI | I6: Nursery School | J6: Primary Nursery Class | K6: PVI | L6: Nursery School | M6: Primary Nursery Class | N6: Total Budget | O6: Proportion of Funding
B8: 1. EYSFF (three and four year olds) Base Rate(s) per hour, per provider type | C8: Basic Rate | D8: 3.4 | E8: 3.4 | F8: 3.4 | G8: PerHour | H8: 10625.08 | I8: 80755.37 | J8: 1444857.2 | K8: 36125.27 | L8: 274568.26 | M8: 4912514.48 | N8: 5223208.01
O9: =SUM(N8:N9)/6871469 -> 0.7601297495
B10: 2a. Supplements: Deprivation | C10: Tax Credit Data | D10: 0.38 | E10: 0.38 | F10: 0.38 | G10: PerHour | H10: 4332.05 | I10: 48176.05 | J10: 834533.55 | K10: 1646.18 | L10: 18306.9 | M10: 317122.75 | N10: 337075.83
O11: =SUM(N10:N11)/6871469 -> 0.04905440598
B12: 2b. Supplements: Quality | C12: No budget lines entered
O13: =SUM(N12:N13)/6871469 -> 0
B14: 2c. Supplements: Flexibility | C14: Flexibility | D14: 0.36 | E14: 0.36 | F14: 0.36 | G14: PerHour | H14: 10589.47 | I14: 41497.33 | J14: 1005118.19 | K14: 3812.21 | L14: 14939.04 | M14: 361842.55 | N14: 380593.8
O15: =SUM(N14:N15)/6871469 -> 0.05538754523
B16: 2d. Supplements: Sustainability | C16: No budget lines entered
O17: =SUM(N16:N17)/6871469 -> 0
B18: 3. Other formula | C18: Lump Sum | E18: 145420.79 | G18: LumpSum | I18: 2 | L18: 290841.58 | N18: 290841.58
O19: =SUM(N18:N19)/6871469 -> 0.04232596844
B20: 4. Additional funded free hours | C20: No budget lines entered
O21: =SUM(N20:N21)/6871469 -> 0
B22: TOTAL FUNDING FOR EARLY YEARS SINGLE FUNDING FORMULA (3s AND 4s) | K22: 41583.66 | L22: 598655.78 | M22: 5591479.78 | N22: 6231719.22 | O22: =SUM(O8:O21) -> 0.9068976692
E24: Unit Value | I24: Number of Units | L24: Anticipated Budget
B25: Row Heading | C25: Description | D25: PVI | E25: Nursery School | F25: Primary Nursery Class | H25: PVI | I25: Nursery School | J25: Primary Nursery Class | K25: PVI | L25: Nursery School | M25: Primary Nursery Class | N25: Total Budget | O25: Proportion of Funding
B26: 5. Two year old Base Rate(s) per hour, per provider type | C26: Basic Rate | D26: 4.85 | E26: 4.85 | F26: 4.85 | G26: PerHour | H26: 285000 | I26: 0 | J26: 0 | K26: 1382250 | N26: 1382250
B28: 6a. Two year old supplements Quality | C28: No budget lines entered
B30: 6b. Other supplements | C30: No budget lines entered
B32: TOTAL FUNDING FOR EARLY YEARS SINGLE FUNDING FORMULA FOR 2 YEAR OLDs | K32: 1382250 | N32: 1382250
B35: Row Heading | E35: Description | L35: Anticipated Total Budget | O35: Proportion of Funding
B36: 7. Early years contingency funding | C36: No budget lines entered
O37: =SUM(N36:N37)/6871469 -> 0
B38: 8. Early years centrally retained spending | C38: Trajectory Funding | N38: 245750
C39: Inclusion | N39: 75000
C40: Early Intervention Support Team | N40: 299000
C41: Moderation/Quality | N41: 20000
O42: =SUM(N38:N42)/6871469 -> 0.09310236283
B43: TOTAL FUNDING FOR CENTRAL EXPENDITURE | N43: 639750 | O43: =SUM(O36:O42) -> 0.09310236283
B45: EY s251 Notes

Sheet 357 (hidden)
C2: EY Table: FUNDING PERIOD (2013-14)
C3: Tameside | D3: 357
E5: Unit Value | I5: Number of Units | L5: Anticipated Budget
B6: Row Heading | C6: Description | D6: PVI | E6: Nursery School | F6: Primary Nursery Class | G6: UnitType | H6: PVI | I6: Nursery School | J6: Primary Nursery Class | K6: PVI | L6: Nursery School | M6: Primary Nursery Class | N6: Total Budget | O6: Proportion of Funding
B8: 1. EYSFF (three and four year olds) Base Rate(s) per hour, per provider type | D8: 3.09 | E8: 3.09 | F8: 3.09 | G8: PerHour | H8: 833436 | I8: 0 | J8: 1297350 | K8: 2575317.24 | M8: 4008811.5 | N8: 6584128.74
O9: =SUM(N8:N9)/7867416 -> 0.8368858009
B10: 2a. Supplements: Deprivation | D10: 0.25 | E10: 0.25 | F10: 0.25 | G10: PerHour | H10: 234364 | I10: 0 | J10: 346920 | K10: 58591 | M10: 86730 | N10: 145321
D11: 0.45 | E11: 0.45 | F11: 0.45 | G11: PerHour | H11: 213536 | I11: 0 | J11: 490710 | K11: 96091.2 | M11: 220819.5 | N11: 316910.7
O12: =SUM(N10:N12)/7867416 -> 0.05875267051
B13: 2b. Supplements: Quality | C13: No budget lines entered
O14: =SUM(N13:N14)/7867416 -> 0
B15: 2c. Supplements: Flexibility | C15: No budget lines entered
O16: =SUM(N15:N16)/7867416 -> 0
B17: 2d. Supplements: Sustainability | C17: No budget lines entered
O18: =SUM(N17:N18)/7867416 -> 0
B19: 3. Other formula | C19: No budget lines entered
O20: =SUM(N19:N20)/7867416 -> 0
B21: 4. Additional funded free hours | C21: No budget lines entered
O22: =SUM(N21:N22)/7867416 -> 0
B23: TOTAL FUNDING FOR EARLY YEARS SINGLE FUNDING FORMULA (3s AND 4s) | K23: 2729999.44 | M23: 4316361 | N23: 7046360.44 | O23: =SUM(O8:O22) -> 0.8956384714
E25: Unit Value | I25: Number of Units | L25: Anticipated Budget
B26: Row Heading | C26: Description | D26: PVI | E26: Nursery School | F26: Primary Nursery Class | H26: PVI | I26: Nursery School | J26: Primary Nursery Class | K26: PVI | L26: Nursery School | M26: Primary Nursery Class | N26: Total Budget | O26: Proportion of Funding
B27: 5. Two year old Base Rate(s) per hour, per provider type | D27: 4.85 | E27: 4.85 | F27: 4.85 | G27: PerHour | H27: 400710 | I27: 0 | J27: 0 | K27: 1943443.5 | N27: 1943443.5
B29: 6a. Two year old supplements Quality | C29: No budget lines entered
B31: 6b. Other supplements | C31: No budget lines entered
B33: TOTAL FUNDING FOR EARLY YEARS SINGLE FUNDING FORMULA FOR 2 YEAR OLDs | K33: 1943443.5 | N33: 1943443.5
B36: Row Heading | E36: Description | L36: Anticipated Total Budget | O36: Proportion of Funding
B37: 7. Early years contingency funding | C37: No budget lines entered
O38: =SUM(N37:N38)/7867416 -> 0
B39: 8. Early years centrally retained spending | N39: 821056.5
O40: =SUM(N39:N40)/7867416 -> 0.1043616481
B41: TOTAL FUNDING FOR CENTRAL EXPENDITURE | N41: 821056.5 | O41: =SUM(O37:O40) -> 0.1043616481
B43: EY s251 Notes

Sheet 866 (hidden)
C2: EY Table: FUNDING PERIOD (2013-14)
C3: Swindon | D3: 866
E5: Unit Value | I5: Number of Units | L5: Anticipated Budget
B6: Row Heading | C6: Description | D6: PVI | E6: Nursery School | F6: Primary Nursery Class | G6: UnitType | H6: PVI | I6: Nursery School | J6: Primary Nursery Class | K6: PVI | L6: Nursery School | M6: Primary Nursery Class | N6: Total Budget | O6: Proportion of Funding
B8: 1. EYSFF (three and four year olds) Base Rate(s) per hour, per provider type | C8: Base Rate 1 | D8: 3.75 | E8: 3.75 | F8: 0 | G8: PerHour | H8: 1050781 | I8: 457140 | J8: 0 | K8: 3940428.75 | L8: 1714275 | N8: 5654703.75
C9: Base Rate 2 (settings open over 38 wks) | D9: 3.91 | G9: PerHour | H9: 422737 | K9: 1652901.67 | N9: 1652901.67
O10: =SUM(N8:N10)/7438605 -> 0.9823892276
B11: 2a. Supplements: Deprivation | C11: Deprivation- Each setting has an average based upon pupils FSM settings | D11: 49198 | E11: 20802 | G11: LumpSum | H11: 1 | I11: 1 | K11: 49198 | L11: 20802 | N11: 70000
O12: =SUM(N11:N12)/7438605 -> 0.009410366594
B13: 2b. Supplements: Quality | C13: Setting has staff with certain Qualification | D13: 52500 | E13: 8500 | G13: LumpSum | H13: 1 | I13: 1 | K13: 52500 | L13: 8500 | N13: 61000
O14: =SUM(N13:N14)/7438605 -> 0.008200462318
B15: 2c. Supplements: Flexibility | C15: No budget lines entered
O16: =SUM(N15:N16)/7438605 -> 0
B17: 2d. Supplements: Sustainability | C17: No budget lines entered
O18: =SUM(N17:N18)/7438605 -> 0
B19: 3. Other formula | C19: No budget lines entered
O20: =SUM(N19:N20)/7438605 -> 0
B21: 4. Additional funded free hours | C21: No budget lines entered
O22: =SUM(N21:N22)/7438605 -> 0
B23: TOTAL FUNDING FOR EARLY YEARS SINGLE FUNDING FORMULA (3s AND 4s) | K23: 5695028.42 | L23: 1743577 | N23: 7438605.42 | O23: =SUM(O8:O22) -> 1.000000056
E25: Unit Value | I25: Number of Units | L25: Anticipated Budget
B26: Row Heading | C26: Description | D26: PVI | E26: Nursery School | F26: Primary Nursery Class | H26: PVI | I26: Nursery School | J26: Primary Nursery Class | K26: PVI | L26: Nursery School | M26: Primary Nursery Class | N26: Total Budget | O26: Proportion of Funding
B27: 5. Two year old Base Rate(s) per hour, per provider type | C27: 20% | D27: 4.95 | G27: PerHour | H27: 223606 | K27: 1106849.7 | N27: 1106849.7
B29: 6a. Two year old supplements Quality | C29: No budget lines entered
B31: 6b. Other supplements | C31: No budget lines entered
B33: TOTAL FUNDING FOR EARLY YEARS SINGLE FUNDING FORMULA FOR 2 YEAR OLDs | K33: 1106849.7 | N33: 1106849.7
B36: Row Heading | E36: Description | L36: Anticipated Total Budget | O36: Proportion of Funding
B37: 7. Early years contingency funding | C37: No budget lines entered
O38: =SUM(N37:N38)/7438605 -> 0
B39: 8. Early years centrally retained spending | C39: No budget lines entered
O40: =SUM(N39:N40)/7438605 -> 0
B41: TOTAL FUNDING FOR CENTRAL EXPENDITURE | O41: =SUM(O37:O40) -> 0
B43: EY s251 Notes

Sheet 319 (hidden)
C2: EY Table: FUNDING PERIOD (2013-14)
C3: Sutton | D3: 319
E5: Unit Value | I5: Number of Units | L5: Anticipated Budget
B6: Row Heading | C6: Description | D6: PVI | E6: Nursery School | F6: Primary Nursery Class | G6: UnitType | H6: PVI | I6: Nursery School | J6: Primary Nursery Class | K6: PVI | L6: Nursery School | M6: Primary Nursery Class | N6: Total Budget | O6: Proportion of Funding
B8: 1. EYSFF (three and four year olds) Base Rate(s) per hour, per provider type | C8: Basic rate | D8: 3.62 | E8: 7.25 | F8: 4.18 | G8: PerHour | H8: 810332 | I8: 92040 | J8: 803800 | K8: 2933401.84 | L8: 667290 | M8: 3359884 | N8: 6960575.84
C9: Deprivation | D9: 0 | E9: 0 | F9: 0 | G9: PerHour | H9: 0 | I9: 0 | J9: 0
C10: Flexibility | D10: 0 | E10: 0 | F10: 0 | G10: PerHour | H10: 0 | I10: 0 | J10: 0
D11: 0 | E11: 0 | F11: 0 | G11: PerHour | H11: 1 | I11: 1 | J11: 1
O12: =SUM(N8:N12)/9093589 -> 0.765437699
B13: 2a. Supplements: Deprivation | C13: Each pupil's postcode is checked to obtain the relevant IDACI score and then a weighted is applied that is tapered so that the most deprived attracts the highest level of funding. This is time lagged by one year. | D13: 50.7 | E13: 50.7 | F13: 50.7 | G13: PerHour | H13: 357.06 | I13: 22.2 | J13: 323.71 | K13: 18102.94 | L13: 1125.54 | M13: 16412.1 | N13: 35640.58
O14: =SUM(N13:N14)/9093589 -> 0.003919308427
B15: 2b. Supplements: Quality | C15: No budget lines entered
O16: =SUM(N15:N16)/9093589 -> 0
B17: 2c. Supplements: Flexibility | C17: Flexibility | D17: 0.25 | E17: 0.25 | F17: 0.25 | G17: PerHour | H17: 757586 | I17: 92040 | J17: 294600 | K17: 189396.5 | L17: 23010 | M17: 73650 | N17: 286056.5
O18: =SUM(N17:N18)/9093589 -> 0.03145694181
B19: 2d. Supplements: Sustainability | C19: No budget lines entered
O20: =SUM(N19:N20)/9093589 -> 0
B21: 3. Other formula | C21: Maintained Nursery Schools Less Than 30 pupils | D21: 0 | E21: 127270 | F21: 0 | G21: LumpSum | H21: 0 | I21: 1 | J21: 0 | L21: 127270 | N21: 127270
O22: =SUM(N21:N22)/9093589 -> 0.01399557424
B23: 4. Additional funded free hours | C23: No budget lines entered
O24: =SUM(N23:N24)/9093589 -> 0
B25: TOTAL FUNDING FOR EARLY YEARS SINGLE FUNDING FORMULA (3s AND 4s) | K25: 3140901.28 | L25: 818695.54 | M25: 3449946.1 | N25: 7409542.92 | O25: =SUM(O8:O24) -> 0.8148095235
E27: Unit Value | I27: Number of Units | L27: Anticipated Budget
B28: Row Heading | C28: Description | D28: PVI | E28: Nursery School | F28: Primary Nursery Class | H28: PVI | I28: Nursery School | J28: Primary Nursery Class | K28: PVI | L28: Nursery School | M28: Primary Nursery Class | N28: Total Budget | O28: Proportion of Funding
B29: 5. Two year old Base Rate(s) per hour, per provider type | C29: 2 year old free entitlement | D29: 5.34 | E29: 5.34 | F29: 5.34 | G29: PerHour | H29: 262517 | I29: 0 | J29: 0 | K29: 1401840.78 | N29: 1401840.78
B31: 6a. Two year old supplements Quality | C31: Two Year Old - Quality | D31: 0 | E31: 0 | F31: 0 | G31: PerHour | H31: 1 | I31: 1 | J31: 1
B33: 6b. Other supplements | C33: Two Year Old - Other Supplements | D33: 0 | E33: 0 | F33: 0 | G33: PerHour | H33: 1 | I33: 1 | J33: 1
B35: TOTAL FUNDING FOR EARLY YEARS SINGLE FUNDING FORMULA FOR 2 YEAR OLDs | K35: 1401840.78 | N35: 1401840.78
B38: Row Heading | E38: Description | L38: Anticipated Total Budget | O38: Proportion of Funding
B39: 7. Early years contingency funding | C39: reserve for increase in take-up summer and autumn terms | N39: 400000
O40: =SUM(N39:N40)/9093589 -> 0.04398703306
B41: 8. Early years centrally retained spending | C41: 2year old contingency and Early Years central staffing including quality and inclusion | N41: 1284046
O42: =SUM(N41:N42)/9093589 -> 0.1412034346
B43: TOTAL FUNDING FOR CENTRAL EXPENDITURE | N43: 1684046 | O43: =SUM(O39:O42) -> 0.1851904677
B45: EY s251 Notes

Sheet 936 (hidden)
C2: EY Table: FUNDING PERIOD (2013-14)
C3: Surrey | D3: 936
E5: Unit Value | I5: Number of Units | L5: Anticipated Budget
B6: Row Heading | C6: Description | D6: PVI | E6: Nursery School | F6: Primary Nursery Class | G6: UnitType | H6: PVI | I6: Nursery School | J6: Primary Nursery Class | K6: PVI | L6: Nursery School | M6: Primary Nursery Class | N6: Total Budget | O6: Proportion of Funding
B8: 1. EYSFF (three and four year olds) Base Rate(s) per hour, per provider type | C8: An hourly rate which depends on the category of provider | D8: 4.04 | E8: 4.26 | F8: 3.93 | G8: PerHour | H8: 7659174 | I8: 182340 | J8: 1524863 | K8: 30943062.96 | L8: 776768.4 | M8: 5992711.59 | N8: 37712542.95
O9: =SUM(N8:N9)/44330406 -> 0.8507150363
B10: 2a. Supplements: Deprivation | C10: Tier 1 Providers ranked in top ten for % of children from the 15% most deprived LSOAs in Surrey (or equivalent) | D10: 0.8 | E10: 1.04 | F10: 1.04 | G10: PerHour | H10: 48222 | I10: 0 | J10: 233795 | K10: 38577.6 | M10: 243146.8 | N10: 281724.4
C11: Tier 2Providers ranked 11-20 for % of children from the 15% most deprived LSOAs in Surrey (or equivalent) | D11: 0.6 | E11: 0.78 | F11: 0.78 | G11: PerHour | H11: 108516 | I11: 0 | J11: 124260 | K11: 65109.6 | M11: 96922.8 | N11: 162032.4
C12: Tier 3 Providers ranked 21-45 for % of children from the 15% most deprived LSOAs in Surrey (or equivalent) | D12: 0.4 | E12: 0.52 | F12: 0.52 | G12: PerHour | H12: 247101 | I12: 94810 | J12: 246544 | K12: 98840.4 | L12: 49301.2 | M12: 128202.88 | N12: 276344.48
C13: Tier 4 Providers ranked 46-60 for % of children from the 15% most deprived LSOAs in Surrey (or equivalent) OR 25% of children come from areas within the 30% most deprived nationally | D13: 0.3 | E13: 0.39 | F13: 0.39 | G13: PerHour | H13: 175096 | I13: 55860 | J13: 193515 | K13: 52528.8 | L13: 21785.4 | M13: 75470.85 | N13: 149785.05
C14: Child eligible for FSM attending free entitlement before and after lunch (maintained only) | D14: 0 | E14: 1.66 | F14: 1.66 | G14: PerChild | H14: 0 | I14: 418 | J14: 0 | L14: 693.88 | N14: 693.88
C15: Looked after children-an hourly rate supplement for looked after children Rate differs between sectors based on staff cost assumptions Allocated in year (none in base) | D15: 0.79 | E15: 1.66 | F15: 1.66 | G15: PerHour | H15: 0 | I15: 0 | J15: 0
O16: =SUM(N10:N16)/44330406 -> 0.01963844432
B17: 2b. Supplements: Quality | C17: No budget lines entered
O18: =SUM(N17:N18)/44330406 -> 0
B19: 2c. Supplements: Flexibility | C19: No budget lines entered
O20: =SUM(N19:N20)/44330406 -> 0
B21: 2d. Supplements: Sustainability | C21: No budget lines entered
O22: =SUM(N21:N22)/44330406 -> 0
B23: 3. Other formula | C23: Nursery school flat rate-recognising additional flxed costs of maintained nursery schools eg headteacher and additional premises costs | D23: 0 | E23: 125000 | F23: 0 | G23: LumpSum | H23: 600 | I23: 4 | J23: 62 | L23: 500000 | N23: 500000
C24: Split site (maintained nursery school) Recognising additional staffing and infrastructure costs £10040.95 per additional site plus 18.67p/hr x distance from main site in miles per child on additional site NB Entered as lump sum but LS+per pupil | D24: 0 | E24: 26360 | F24: 0 | G24: LumpSum | H24: 600 | I24: 1 | J24: 62 | L24: 26360 | N24: 26360
C25: Increase in PVI hourly rate from Sept 2013 £4.04 to £4.15 per hr | D25: 0.11 | E25: 0 | F25: 0 | G25: PerHour | H25: 0 | I25: 0 | J25: 0
C26: Place funding for SEN places (actually per agreed place not per child) | D26: 0 | E26: 10000 | F26: 10000 | G26: PerChild | H26: 0 | I26: 37 | J26: 20 | L26: 370000 | M26: 200000 | N26: 570000
C27: Non domestic rates are funded at cost for maintained nursery schools only (NB for maintained nursery classes they are funded through the rates factor in the main fornula) | D27: 0 | E27: 1 | F27: 0 | G27: LumpSum | H27: 0 | I27: 94097 | J27: 0 | L27: 94097 | N27: 94097
O28: =SUM(N23:N28)/44330406 -> 0.02685418672
B29: 4. Additional funded free hours | C29: Extra hours above 15 for full time places in nursery schools | D29: 0 | E29: 4.26 | F29: 0 | G29: PerHour | H29: 0 | I29: 22780 | J29: 0 | L29: 97042.8 | N29: 97042.8
O30: =SUM(N29:N30)/44330406 -> 0.002189079883
B31: TOTAL FUNDING FOR EARLY YEARS SINGLE FUNDING FORMULA (3s AND 4s) | K31: 31198119.36 | L31: 1936048.68 | M31: 6736454.92 | N31: 39870622.96 | O31: =SUM(O8:O30) -> 0.8993967472
E33: Unit Value | I33: Number of Units | L33: Anticipated Budget
B34: Row Heading | C34: Description | D34: PVI | E34: Nursery School | F34: Primary Nursery Class | H34: PVI | I34: Nursery School | J34: Primary Nursery Class | K34: PVI | L34: Nursery School | M34: Primary Nursery Class | N34: Total Budget | O34: Proportion of Funding
B35: 5. Two year old Base Rate(s) per hour, per provider type | C35: A single rate per hour Currently this applies only to PVI providers because the 2 yr free entitlement is not currently available in maintained providers No allocations yet made to individual providers | D35: 6 | E35: 0 | F35: 0 | G35: PerHour | H35: 721500 | I35: 0 | J35: 0 | K35: 4329000 | N35: 4329000
B37: 6a. Two year old supplements Quality | C37: No budget lines entered
B39: 6b. Other supplements | C39: No budget lines entered
B41: TOTAL FUNDING FOR EARLY YEARS SINGLE FUNDING FORMULA FOR 2 YEAR OLDs | K41: 4329000 | N41: 4329000
B44: Row Heading | E44: Description | L44: Anticipated Total Budget | O44: Proportion of Funding
B45: 7. Early years contingency funding | C45: Other funding for free entitlement for disadvantaged 2 year olds-to fund (5) above £61,333 Adjustments to 3-year old free entitlement formula during the year (maintained + non maintained) £3,088,032 Capacity building 2yos £1044352 | N45: 4193718
O46: =SUM(N45:N46)/44330406 -> 0.09460138939
B47: 8. Early years centrally retained spending | C47: Funding for advisory support for PVI providers £126065 Funding for managing development of supply for 2-year old free entitlement £140,000 | N47: 266065
O48: =SUM(N47:N48)/44330406 -> 0.006001862469
B49: TOTAL FUNDING FOR CENTRAL EXPENDITURE | N49: 4459783 | O49: =SUM(O45:O48) -> 0.1006032519
B51: EY s251 Notes
B52: We have a number of early years factors where the funding is allocated during the year and is not included in the initial illustrative budgets For these factors we have shown funding rates but not the number of units We thought this helpful because it will allow funding rates to be included in any comparative data analysis. We also have some factors which cannot be described as per child or per hour or lump sum (eg split site factor which depends partly on child hours on second site and is partly a flat rate Where we think one of the three options available is misleading we have not chosen a description. For the avoidance of doubt academies are funded on the same basis as LA maintained schools Initial allocation shown for two year olds (£4.329m) is our initial estimate of funded hours This funding was NOT allocated to individual providers at 1 April 2013.

Sheet 394 (hidden)
C2: EY Table: FUNDING PERIOD (2013-14)
C3: Sunderland | D3: 394
E5: Unit Value | I5: Number of Units | L5: Anticipated Budget
B6: Row Heading | C6: Description | D6: PVI | E6: Nursery School | F6: Primary Nursery Class | G6: UnitType | H6: PVI | I6: Nursery School | J6: Primary Nursery Class | K6: PVI | L6: Nursery School | M6: Primary Nursery Class | N6: Total Budget | O6: Proportion of Funding
B8: 1. EYSFF (three and four year olds) Base Rate(s) per hour, per provider type | C8: Nursery Class Rate for primary schools and academies | F8: 2.69 | G8: PerHour | J8: 1474782 | M8: 3967163.58 | N8: 3967163.58
C9: Nursery school base rate | E9: 3.7 | G9: PerHour | I9: 381780 | L9: 1412586 | N9: 1412586
C10: PVI base rate for providers where a QTS or EYPS is leading EYFS practice, 75% of all other staff have a full and relevent L3 qulaification and the manager has a minimum L4 qulaification | D10: 3.28 | G10: PerHour | H10: 293297.19 | K10: 962014.78 | N10: 962014.78
C11: PVI base rate for all providers where a Graduate L6 is leading EYFS practice, 50-74% of all other staff hold a full and relevent L3 qualification and the manager has a minimum L4 qualification | D11: 2.77 | G11: PerHour | H11: 38416 | K11: 106412.32 | N11: 106412.32
C12: PVI base rate for all providers where a practitioner is working towards a foundation degree or graduate L5, 50% of all other staff hold a full and relevent L3 qualification and the manager has a minimum L3 qualification | D12: 2.66 | G12: PerHour | H12: 55181.38 | K12: 146782.47 | N12: 146782.47
C13: PVI base rate where the manager holds a full and relevent L3 qualification and 50% of all other staff hold a full and relevent L2 qualification | D13: 2.51 | G13: PerHour | H13: 0
O14: =SUM(N8:N14)/14031500 -> 0.470010986
B15: 2a. Supplements: Deprivation | C15: Children with an IDACI score between 0.20 - 0.25 | D15: 166.7 | E15: 166.7 | F15: 166.7 | G15: PerChild | H15: 75 | I15: 264 | J15: 47 | K15: 12502.5 | L15: 44008.8 | M15: 7834.9 | N15: 64346.2
C16: Children with an IDACI score between 0.25 - 0.30 | D16: 166.7 | E16: 166.7 | F16: 166.7 | G16: PerChild | H16: 67 | I16: 288 | J16: 92 | K16: 11168.9 | L16: 48009.6 | M16: 15336.4 | N16: 74514.9
C17: Children with an IDACI score between 0.30 - 0.40 | D17: 333.4 | E17: 333.4 | F17: 333.4 | G17: PerChild | H17: 122 | I17: 512 | J17: 135 | K17: 40674.8 | L17: 170700.8 | M17: 45009 | N17: 256384.6
C18: Children with an IDCAI score between 0.40 - 0.50 | D18: 500.1 | E18: 500.1 | F18: 500.1 | G18: PerChild | H18: 104 | I18: 471 | J18: 162 | K18: 52010.4 | L18: 235547.1 | M18: 81016.2 | N18: 368573.7
C19: Children with an IDACI score between 0.50 - 0.60 | D19: 666.8 | E19: 666.8 | F19: 666.8 | G19: PerChild | H19: 14 | I19: 107 | J19: 24 | K19: 9335.2 | L19: 71347.6 | M19: 16003.2 | N19: 96686
C20: Children with an IDACI score > 0.60 | D20: 833.5 | E20: 833.5 | F20: 833.5 | G20: PerChild | H20: 9 | I20: 87 | J20: 17 | K20: 7501.5 | L20: 72514.5 | M20: 14169.5 | N20: 94185.5
O21: =SUM(N15:N21)/14031500 -> 0.06803911912
B22: 2b. Supplements: Quality | C22: No budget lines entered
O23: =SUM(N22:N23)/14031500 -> 0
B24: 2c. Supplements: Flexibility | C24: Based on the average actual number of children taking up their entitlement across the previous three terms multiplied by a rate per pupil per hour. Funding applies only to settings that offer flexibility as defined in the provider agreement | D24: 0.88 | E24: 0.88 | F24: 0.88 | G24: PerHour | H24: 342612 | I24: 386080 | J24: 817127 | K24: 301498.56 | L24: 339750.4 | M24: 719071.76 | N24: 1360320.72
O25: =SUM(N24:N25)/14031500 -> 0.09694763354
B26: 2d. Supplements: Sustainability | C26: Rural schools protection based on the difference between the actual take up each term and the minimum number of places required for the setting to remain viable | F26: 11951.58 | G26: LumpSum | J26: 1 | M26: 11951.58 | N26: 11951.58
O27: =SUM(N26:N27)/14031500 -> 0.0008517678081
B28: 3. Other formula | C28: management lump sum based on an annual fixed allocation | D28: 5928.71 | E28: 64923.45 | F28: 6995.13 | G28: LumpSum | H28: 29 | I28: 9 | J28: 63 | K28: 171932.59 | L28: 584311.05 | M28: 440693.19 | N28: 1196936.83
C29: Business rate allocation based on estimated actual costs which applies to nursery schools schools and PVI providers only. Nursery classes in maintained schools and academies are funded via the schools block for 100% of their rates allocation | D29: 56343.76 | E29: 54866.3 | G29: LumpSum | H29: 1 | I29: 1 | K29: 56343.76 | L29: 54866.3 | N29: 111210.06
C30: Support for pupils with additional special educational needs identified at early years action plus and allocated on a termly basis | D30: 2350 | E30: 2350 | F30: 2350 | G30: PerChild | H30: 13.69 | I30: 31.62 | J30: 57.73 | K30: 32171.5 | L30: 74307 | M30: 135665.5 | N30: 242144
O31: =SUM(N28:N31)/14031500 -> 0.110486469
B32: 4. Additional funded free hours | C32: No budget lines entered
O33: =SUM(N32:N33)/14031500 -> 0
B34: TOTAL FUNDING FOR EARLY YEARS SINGLE FUNDING FORMULA (3s AND 4s) | K34: 1910349.28 | L34: 3107949.15 | M34: 5453914.81 | N34: 10472213.24 | O34: =SUM(O8:O33) -> 0.7463359755
E36: Unit Value | I36: Number of Units | L36: Anticipated Budget
B37: Row Heading | C37: Description | D37: PVI | E37: Nursery School | F37: Primary Nursery Class | H37: PVI | I37: Nursery School | J37: Primary Nursery Class | K37: PVI | L37: Nursery School | M37: Primary Nursery Class | N37: Total Budget | O37: Proportion of Funding
B38: 5. Two year old Base Rate(s) per hour, per provider type | C38: Single base rate applied across all providers | D38: 4.84 | E38: 4.84 | F38: 4.84 | G38: PerHour | H38: 418950 | I38: 37620 | J38: 9120 | K38: 2027718 | L38: 182080.8 | M38: 44140.8 | N38: 2253939.6
B40: 6a. Two year old supplements Quality | C40: No budget lines entered
B42: 6b. Other supplements | C42: No budget lines entered
B44: TOTAL FUNDING FOR EARLY YEARS SINGLE FUNDING FORMULA FOR 2 YEAR OLDs | K44: 2027718 | L44: 182080.8 | M44: 44140.8 | N44: 2253939.6
B47: Row Heading | E47: Description | L47: Anticipated Total Budget | O47: Proportion of Funding
B48: 7. Early years contingency funding | C48: Trajectory funding for 2 year old offer and contingency for anticipated adjustments for 2013 early years pupil numbers | N48: 1196600
O49: =SUM(N48:N49)/14031500 -> 0.08527954958
B50: 8. Early years centrally retained spending | C50: Childcare teams (locality based working) & LA social care nursery provision | N50: 2362687
O51: =SUM(N50:N51)/14031500 -> 0.168384492
B52: TOTAL FUNDING FOR CENTRAL EXPENDITURE | N52: 3559287 | O52: =SUM(O48:O51) -> 0.2536640416
B54: EY s251 Notes

Sheet 935 (hidden)
C2: EY Table: FUNDING PERIOD (2013-14)
C3: Suffolk | D3: 935
E5: Unit Value | I5: Number of Units | L5: Anticipated Budget
B6: Row Heading | C6: Description | D6: PVI | E6: Nursery School | F6: Primary Nursery Class | G6: UnitType | H6: PVI | I6: Nursery School | J6: Primary Nursery Class | K6: PVI | L6: Nursery School | M6: Primary Nursery Class | N6: Total Budget | O6: Proportion of Funding
B8: 1. EYSFF (three and four year olds) Base Rate(s) per hour, per provider type | C8: School QTS / EYP (A) | E8: 3.7 | F8: 3.7 | G8: PerHour | I8: 59280 | J8: 1896268.38 | L8: 219336 | M8: 7016193.01 | N8: 7235529.01
C9: PVI Level 3 (D) | D9: 3.1 | G9: PerHour | H9: 3909352 | K9: 12118991.2 | N9: 12118991.2
O10: =SUM(N8:N10)/31824070 -> 0.6081723742
B11: 2a. Supplements: Deprivation | C11: Acorn Deprivation | D11: 210 | E11: 210 | F11: 210 | G11: PerChild | H11: 2199.65 | I11: 22 | J11: 1265 | K11: 461926.5 | L11: 4620 | M11: 265650 | N11: 732196.5
O12: =SUM(N11:N12)/31824070 -> 0.02300763227
B13: 2b. Supplements: Quality | C13: PVI Level 4/3 (CD) | D13: 0.1 | G13: PerHour | H13: 103613 | K13: 10361.3 | N13: 10361.3
C14: PVI Level 4 (C) | D14: 0.2 | G14: PerHour | H14: 862479 | K14: 172495.8 | N14: 172495.8
C15: PVI Level 5/3 (BD) | D15: 0.2 | G15: PerHour | H15: 38701 | K15: 7740.2 | N15: 7740.2
C16: PVI 5/4 (BC) | D16: 0.3 | G16: PerHour | H16: 47555 | K16: 14266.5 | N16: 14266.5
C17: PVI Level 5 or 6 (B) | D17: 0.4 | G17: PerHour | H17: 917856 | K17: 367142.4 | N17: 367142.4
C18: PVI Level QTS or EYP/3 (AD) | D18: 0.3 | G18: PerHour | H18: 68523 | K18: 20556.9 | N18: 20556.9
C19: PVI Level QTS or EYP/4 (AC) | D19: 0.4 | G19: PerHour | H19: 66690 | K19: 26676 | N19: 26676
C20: PVI Level QTS or EYP/5 (AB) | D20: 0.5 | G20: PerHour | H20: 107518 | K20: 53759 | N20: 53759
C21: School QTS or EYP (A) | D21: 0.6 | G21: PerHour | H21: 853900 | K21: 512340 | N21: 512340
O22: =SUM(N13:N22)/31824070 -> 0.0372465904
B23: 2c. Supplements: Flexibility | C23: No budget lines entered
O24: =SUM(N23:N24)/31824070 -> 0
B25: 2d. Supplements: Sustainability | C25: No budget lines entered
O26: =SUM(N25:N26)/31824070 -> 0
B27: 3. Other formula | C27: PVI @ School Site | D27: 1035 | G27: LumpSum | H27: 82 | K27: 84870 | N27: 84870
C28: PVI @ Non School Site | D28: 2070 | G28: LumpSum | H28: 214 | K28: 442980 | N28: 442980
C29: Accredited Child Minder | D29: 216 | G29: LumpSum | H29: 28 | K29: 6048 | N29: 6048
C30: Highfield Nursery Lump Sum | E30: 114000 | G30: LumpSum | I30: 1 | L30: 114000 | N30: 114000
O31: =SUM(N27:N31)/31824070 -> 0.02035874104
B32: 4. Additional funded free hours | C32: No budget lines entered
O33: =SUM(N32:N33)/31824070 -> 0
B34: TOTAL FUNDING FOR EARLY YEARS SINGLE FUNDING FORMULA (3s AND 4s) | K34: 14300153.8 | L34: 337956 | M34: 7281843.01 | N34: 21919952.81 | O34: =SUM(O8:O33) -> 0.688785338
E36: Unit Value | I36: Number of Units | L36: Anticipated Budget
B37: Row Heading | C37: Description | D37: PVI | E37: Nursery School | F37: Primary Nursery Class | H37: PVI | I37: Nursery School | J37: Primary Nursery Class | K37: PVI | L37: Nursery School | M37: Primary Nursery Class | N37: Total Budget | O37: Proportion of Funding
B38: 5. Two year old Base Rate(s) per hour, per provider type | C38: No budget lines entered
B40: 6a. Two year old supplements Quality | C40: No budget lines entered
B42: 6b. Other supplements | C42: No budget lines entered
B44: TOTAL FUNDING FOR EARLY YEARS SINGLE FUNDING FORMULA FOR 2 YEAR OLDs
B47: Row Heading | E47: Description | L47: Anticipated Total Budget | O47: Proportion of Funding
B48: 7. Early years contingency funding | C48: No budget lines entered
O49: =SUM(N48:N49)/31824070 -> 0
B50: 8. Early years centrally retained spending | C50: EY staff costs to support providers £3.0m, SEN funding £1.7m, 2yo funding which is allocated to providers during the year £5.0m and additional support (vulnerable children) £0.2m | N50: 9904117
O51: =SUM(N50:N51)/31824070 -> 0.3112146561
B52: TOTAL FUNDING FOR CENTRAL EXPENDITURE | N52: 9904117 | O52: =SUM(O48:O51) -> 0.3112146561
B54: EY s251 Notes

Sheet 861 (hidden)
C2: EY Table: FUNDING PERIOD (2013-14)
C3: Stoke-on-Trent | D3: 861
E5: Unit Value | I5: Number of Units | L5: Anticipated Budget
B6: Row Heading | C6: Description | D6: PVI | E6: Nursery School | F6: Primary Nursery Class | G6: UnitType | H6: PVI | I6: Nursery School | J6: Primary Nursery Class | K6: PVI | L6: Nursery School | M6: Primary Nursery Class | N6: Total Budget | O6: Proportion of Funding
B8: 1. EYSFF (three and four year olds) Base Rate(s) per hour, per provider type | D8: 3.7 | E8: 5.26 | F8: 2.39 | G8: PerHour | H8: 671460 | I8: 188100 | J8: 1528170 | K8: 2484402 | L8: 989406 | M8: 3652326.3 | N8: 7126134.3
O9: =SUM(N8:N9)/16645971 -> 0.4280996465
B10: 2a. Supplements: Deprivation | D10: 130 | E10: 130 | F10: 130 | G10: PerChild | H10: 2647 | I10: 249 | J10: 1522 | K10: 344110 | L10: 32370 | M10: 197860 | N10: 574340
O11: =SUM(N10:N11)/16645971 -> 0.03450324406
B12: 2b. Supplements: Quality | C12: No budget lines entered
O13: =SUM(N12:N13)/16645971 -> 0
B14: 2c. Supplements: Flexibility | C14: No budget lines entered
O15: =SUM(N14:N15)/16645971 -> 0
B16: 2d. Supplements: Sustainability | C16: No budget lines entered
O17: =SUM(N16:N17)/16645971 -> 0
B18: 3. Other formula | C18: Low cost high incidence SEN | D18: 0.92 | E18: 0.92 | F18: 0.92 | G18: PerChild | H18: 34200 | I18: 61560 | J18: 154470 | K18: 31464 | L18: 56635.2 | M18: 142112.4 | N18: 230211.6
C19: Rates | D19: 0 | E19: 1 | F19: 0 | G19: LumpSum | H19: 1 | I19: 19693 | J19: 1 | L19: 19693 | N19: 19693
C20: MFG | D20: 0 | E20: 6369 | F20: -6370 | G20: LumpSum | H20: 0 | I20: 1 | J20: 1 | L20: 6369 | M20: -6370 | N20: -1
O21: =SUM(N18:N21)/16645971 -> 0.01501285807
B22: 4. Additional funded free hours | C22: Additional Basic Funding | D22: 0 | E22: 5.26 | F22: 2.39 | G22: PerHour | H22: 0 | I22: 125400 | J22: 1018780 | L22: 659604 | M22: 2434884.2 | N22: 3094488.2
C23: Additional Funding Low cost high incidence SEN | D23: 0 | E23: 0.92 | F23: 0.92 | G23: PerHour | H23: 0 | I23: 41040 | J23: 102980 | L23: 37756.8 | M23: 94741.6 | N23: 132498.4
O24: =SUM(N22:N24)/16645971 -> 0.1938599196
B25: TOTAL FUNDING FOR EARLY YEARS SINGLE FUNDING FORMULA (3s AND 4s) | K25: 2859976 | L25: 1801834 | M25: 6515554.5 | N25: 11177364.5 | O25: =SUM(O8:O24) -> 0.6714756682
E27: Unit Value | I27: Number of Units | L27: Anticipated Budget
B28: Row Heading | C28: Description | D28: PVI | E28: Nursery School | F28: Primary Nursery Class | H28: PVI | I28: Nursery School | J28: Primary Nursery Class | K28: PVI | L28: Nursery School | M28: Primary Nursery Class | N28: Total Budget | O28: Proportion of Funding
B29: 5. Two year old Base Rate(s) per hour, per provider type | C29: No budget lines entered
B31: 6a. Two year old supplements Quality | C31: No budget lines entered
B33: 6b. Other supplements | C33: No budget lines entered
B35: TOTAL FUNDING FOR EARLY YEARS SINGLE FUNDING FORMULA FOR 2 YEAR OLDs
B38: Row Heading | E38: Description | L38: Anticipated Total Budget | O38: Proportion of Funding
B39: 7. Early years contingency funding | C39: No budget lines entered
O40: =SUM(N39:N40)/16645971 -> 0
B41: 8. Early years centrally retained spending | C41: Central Expenditure | N41: 5468607
O42: =SUM(N41:N42)/16645971 -> 0.3285243618
B43: TOTAL FUNDING FOR CENTRAL EXPENDITURE | N43: 5468607 | O43: =SUM(O39:O42) -> 0.3285243618
B45: EY s251 Notes

Sheet 808 (hidden)
C2: EY Table: FUNDING PERIOD (2013-14)
C3: Stockton-on-Tees | D3: 808
E5: Unit Value | I5: Number of Units | L5: Anticipated Budget
B6: Row Heading | C6: Description | D6: PVI | E6: Nursery School | F6: Primary Nursery Class | G6: UnitType | H6: PVI | I6: Nursery School | J6: Primary Nursery Class | K6: PVI | L6: Nursery School | M6: Primary Nursery Class | N6: Total Budget | O6: Proportion of Funding
B8: 1. EYSFF (three and four year olds) Base Rate(s) per hour, per provider type | C8: EYSFF Base Rate | D8: 3.41 | F8: 3.41 | G8: PerHour | H8: 263811 | J8: 1501429 | K8: 899595.51 | M8: 5119872.89 | N8: 6019468.4
O9: =SUM(N8:N9)/7287755 -> 0.8259701925
B10: 2a. Supplements: Deprivation | C10: Deprivation | D10: 152 | F10: 152 | G10: PerChild | H10: 241.8 | J10: 2049.64 | K10: 36753.6 | M10: 311545.28 | N10: 348298.88
O11: =SUM(N10:N11)/7287755 -> 0.04779234209
B12: 2b. Supplements: Quality | C12: Quality | D12: 0.1 | F12: 0.1 | G12: PerHour | H12: 211137 | J12: 1501429 | K12: 21113.7 | M12: 150142.9 | N12: 171256.6
O13: =SUM(N12:N13)/7287755 -> 0.02349922576
B14: 2c. Supplements: Flexibility | C14: Part flexibility (within school day) | D14: 0.1 | F14: 0.1 | G14: PerHour | H14: 427 | J14: 233098 | K14: 42.7 | M14: 23309.8 | N14: 23352.5
C15: Full flexibility | D15: 0.15 | F15: 0.15 | G15: PerHour | H15: 237443 | J15: 64973 | K15: 35616.45 | M15: 9745.95 | N15: 45362.4
O16: =SUM(N14:N16)/7287755 -> 0.00942881587
B17: 2d. Supplements: Sustainability | C17: Sustainability | F17: 1.15 | G17: PerHour | J17: 7174 | M17: 8250.1 | N17: 8250.1
O18: =SUM(N17:N18)/7287755 -> 0.001132049582
B19: 3. Other formula | C19: Quality Lump Sum | D19: 2007.71 | F19: 2007.71 | G19: LumpSum | H19: 26 | J19: 59 | K19: 52200.46 | M19: 118454.89 | N19: 170655.35
C20: Prior-year Adjustments | F20: 1 | G20: LumpSum | J20: 64881 | M20: 64881 | N20: 64881
O21: =SUM(N19:N21)/7287755 -> 0.03231946601
B22: 4. Additional funded free hours | C22: No budget lines entered
O23: =SUM(N22:N23)/7287755 -> 0
B24: TOTAL FUNDING FOR EARLY YEARS SINGLE FUNDING FORMULA (3s AND 4s) | K24: 1045322.42 | M24: 5806202.81 | N24: 6851525.23 | O24: =SUM(O8:O23) -> 0.9401420918
E26: Unit Value | I26: Number of Units | L26: Anticipated Budget
B27: Row Heading | C27: Description | D27: PVI | E27: Nursery School | F27: Primary Nursery Class | H27: PVI | I27: Nursery School | J27: Primary Nursery Class | K27: PVI | L27: Nursery School | M27: Primary Nursery Class | N27: Total Budget | O27: Proportion of Funding
B28: 5. Two year old Base Rate(s) per hour, per provider type | C28: No budget lines entered
B30: 6a. Two year old supplements Quality | C30: No budget lines entered
B32: 6b. Other supplements | C32: No budget lines entered
B34: TOTAL FUNDING FOR EARLY YEARS SINGLE FUNDING FORMULA FOR 2 YEAR OLDs
B37: Row Heading | E37: Description | L37: Anticipated Total Budget | O37: Proportion of Funding
B38: 7. Early years contingency funding | C38: Early Years Contingency | N38: 46501
C39: Centrally Retained | N39: 389729
O40: =SUM(N38:N40)/7287755 -> 0.05985793979
B41: 8. Early years centrally retained spending | C41: No budget lines entered
O42: =SUM(N41:N42)/7287755 -> 0
B43: TOTAL FUNDING FOR CENTRAL EXPENDITURE | N43: 436230 | O43: =SUM(O38:O42) -> 0.05985793979
B45: EY s251 Notes

Sheet 356 (hidden)
C2: EY Table: FUNDING PERIOD (2013-14)
C3: Stockport | D3: 356
E5: Unit Value | I5: Number of Units | L5: Anticipated Budget
B6: Row Heading | C6: Description | D6: PVI | E6: Nursery School | F6: Primary Nursery Class | G6: UnitType | H6: PVI | I6: Nursery School | J6: Primary Nursery Class | K6: PVI | L6: Nursery School | M6: Primary Nursery Class | N6: Total Budget | O6: Proportion of Funding
B8: 1. EYSFF (three and four year olds) Base Rate(s) per hour, per provider type | C8: Base Rate Funding | D8: 4.23 | E8: 6.68 | F8: 4.23 | G8: PerHour | H8: 1065573 | I8: 251370 | J8: 1065558 | K8: 4507373.79 | L8: 1679151.6 | M8: 4507310.34 | N8: 10693835.73
D9: 4.65 | F9: 4.65 | G9: PerHour | H9: 47828 | J9: 27930 | K9: 222400.2 | M9: 129874.5 | N9: 352274.7
O10: =SUM(N8:N10)/13772139 -> 0.8020620784
B11: 2a. Supplements: Deprivation | C11: Deprivation | D11: 0.31 | E11: 0.31 | F11: 0.31 | G11: PerHour | H11: 87210 | I11: 40470 | J11: 214890 | K11: 27035.1 | L11: 12545.7 | M11: 66615.9 | N11: 106196.7
O12: =SUM(N11:N12)/13772139 -> 0.007710980843
B13: 2b. Supplements: Quality | C13: No budget lines entered
O14: =SUM(N13:N14)/13772139 -> 0
B15: 2c. Supplements: Flexibility | C15: No budget lines entered
O16: =SUM(N15:N16)/13772139 -> 0
B17: 2d. Supplements: Sustainability | C17: No budget lines entered
O18: =SUM(N17:N18)/13772139 -> 0
B19: 3. Other formula | C19: Lumpsum | E19: 34122 | G19: LumpSum | I19: 5 | L19: 170610 | N19: 170610
O20: =SUM(N19:N20)/13772139 -> 0.01238805388
B21: 4. Additional funded free hours | C21: No budget lines entered
O22: =SUM(N21:N22)/13772139 -> 0
B23: TOTAL FUNDING FOR EARLY YEARS SINGLE FUNDING FORMULA (3s AND 4s) | K23: 4756809.09 | L23: 1862307.3 | M23: 4703800.74 | N23: 11322917.13 | O23: =SUM(O8:O22) -> 0.8221611131
E25: Unit Value | I25: Number of Units | L25: Anticipated Budget
B26: Row Heading | C26: Description | D26: PVI | E26: Nursery School | F26: Primary Nursery Class | H26: PVI | I26: Nursery School | J26: Primary Nursery Class | K26: PVI | L26: Nursery School | M26: Primary Nursery Class | N26: Total Budget | O26: Proportion of Funding
B27: 5. Two year old Base Rate(s) per hour, per provider type
B29: 6a. Two year old supplements Quality | C29: No budget lines entered
B31: 6b. Other supplements | C31: No budget lines entered
B33: TOTAL FUNDING FOR EARLY YEARS SINGLE FUNDING FORMULA FOR 2 YEAR OLDs
B36: Row Heading | E36: Description | L36: Anticipated Total Budget | O36: Proportion of Funding
B37: 7. Early years contingency funding | C37: Resource for increase in participation | N37: 113230
O38: =SUM(N37:N38)/13772139 -> 0.008221671303
B39: 8. Early years centrally retained spending | C39: Portage | N39: 202952
C40: 2 year old offer unallocated | N40: 2133040
O41: =SUM(N39:N41)/13772139 -> 0.169617225
B42: TOTAL FUNDING FOR CENTRAL EXPENDITURE | N42: 2449222 | O42: =SUM(O37:O41) -> 0.1778388963
B44: EY s251 Notes

Sheet 860 (hidden)
C2: EY Table: FUNDING PERIOD (2013-14)
C3: Staffordshire | D3: 860
E5: Unit Value | I5: Number of Units | L5: Anticipated Budget
B6: Row Heading | C6: Description | D6: PVI | E6: Nursery School | F6: Primary Nursery Class | G6: UnitType | H6: PVI | I6: Nursery School | J6: Primary Nursery Class | K6: PVI | L6: Nursery School | M6: Primary Nursery Class | N6: Total Budget | O6: Proportion of Funding
B8: 1. EYSFF (three and four year olds) Base Rate(s) per hour, per provider type | C8: Private and Independent Base Rate | D8: 3.3 | G8: PerHour | H8: 2614479 | K8: 8627780.7 | N8: 8627780.7
C9: Voluntary Base Rate | D9: 3.2 | G9: PerHour | H9: 1294690 | K9: 4143008 | N9: 4143008
C10: Governor Run Base Rate | D10: 3.86 | G10: PerHour | H10: 474783 | K10: 1832662.38 | N10: 1832662.38
C11: Childminder Base Rate | D11: 3.58 | G11: PerHour | H11: 26565 | K11: 95102.7 | N11: 95102.7
C12: Nursery Base Rate | E12: 2.07 | F12: 2.9 | G12: PerHour | I12: 35317.8 | J12: 2224208 | L12: 73107.85 | M12: 6450203.2 | N12: 6523311.05
O13: =SUM(N8:N13)/29242045 -> 0.7257312144
B14: 2a. Supplements: Deprivation | C14: IDACI 20% Most deprived supplement historic average - up to 25% | D14: 0.16 | G14: PerHour | H14: 2203249 | K14: 352519.84 | N14: 352519.84
C15: IDACI 20% Most deprived supplement historic average - up to 50% | D15: 0.36 | G15: PerHour | H15: 422344 | K15: 152043.84 | N15: 152043.84
C16: IDACI 20% Most deprived supplement historic average - up to 75% | D16: 0.62 | G16: PerHour | H16: 95737 | K16: 59356.94 | N16: 59356.94
C17: IDACI 20% Most deprived supplement historic average - up to 100% | D17: 0.92 | G17: PerHour | H17: 29798 | K17: 27414.16 | N17: 27414.16
C18: FSM Deprivation supplement - Weighted deprivation unit - not per hour | F18: 0.74 | G18: PerHour | J18: 363185.31 | M18: 268757.13 | N18: 268757.13
O19: =SUM(N14:N19)/29242045 -> 0.02941285091
B20: 2b. Supplements: Quality | C20: No budget lines entered
O21: =SUM(N20:N21)/29242045 -> 0
B22: 2c. Supplements: Flexibility | C22: No budget lines entered
O23: =SUM(N22:N23)/29242045 -> 0
B24: 2d. Supplements: Sustainability | C24: No budget lines entered
O25: =SUM(N24:N25)/29242045 -> 0
B26: 3. Other formula | C26: Lump Sum | E26: 110500 | G26: LumpSum | I26: 2 | L26: 221000 | N26: 221000
C27: Rates | E27: 2365 | G27: LumpSum | I27: 1 | L27: 2365 | N27: 2365
O28: =SUM(N26:N28)/29242045 -> 0.007638487664
B29: 4. Additional funded free hours | C29: No budget lines entered
O30: =SUM(N29:N30)/29242045 -> 0
B31: TOTAL FUNDING FOR EARLY YEARS SINGLE FUNDING FORMULA (3s AND 4s) | K31: 15289888.56 | L31: 296472.85 | M31: 6718960.33 | N31: 22305321.74 | O31: =SUM(O8:O30) -> 0.762782553
E33: Unit Value | I33: Number of Units | L33: Anticipated Budget
B34: Row Heading | C34: Description | D34: PVI | E34: Nursery School | F34: Primary Nursery Class | H34: PVI | I34: Nursery School | J34: Primary Nursery Class | K34: PVI | L34: Nursery School | M34: Primary Nursery Class | N34: Total Budget | O34: Proportion of Funding
B35: 5. Two year old Base Rate(s) per hour, per provider type | C35: Flat Rate funding | D35: 4.85 | G35: PerHour | H35: 311059.13 | K35: 1508636.78 | N35: 1508636.78
B37: 6a. Two year old supplements Quality | C37: No budget lines entered
B39: 6b. Other supplements | C39: No budget lines entered
B41: TOTAL FUNDING FOR EARLY YEARS SINGLE FUNDING FORMULA FOR 2 YEAR OLDs | K41: 1508636.78 | N41: 1508636.78
B44: Row Heading | E44: Description | L44: Anticipated Total Budget | O44: Proportion of Funding
B45: 7. Early years contingency funding | C45: Unallocated funding for 2 year olds | N45: 2540653
C46: Trajectory funding for 2 year old places | N46: 1589640
C47: Centrally retained funding for early years including early years SENCOs, quality improvement and support, and other centrally funded costs. | N47: 2806430
O48: =SUM(N45:N48)/29242045 -> 0.2372174381
B49: 8. Early years centrally retained spending | C49: No budget lines entered
O50: =SUM(N49:N50)/29242045 -> 0
B51: TOTAL FUNDING FOR CENTRAL EXPENDITURE | N51: 6936723 | O51: =SUM(O45:O50) -> 0.2372174381
B53: EY s251 Notes

Sheet 342 (hidden)
C2: EY Table: FUNDING PERIOD (2013-14)
C3: St. Helens | D3: 342
E5: Unit Value | I5: Number of Units | L5: Anticipated Budget
B6: Row Heading | C6: Description | D6: PVI | E6: Nursery School | F6: Primary Nursery Class | G6: UnitType | H6: PVI | I6: Nursery School | J6: Primary Nursery Class | K6: PVI | L6: Nursery School | M6: Primary Nursery Class | N6: Total Budget | O6: Proportion of Funding
B8: 1. EYSFF (three and four year olds) Base Rate(s) per hour, per provider type | C8: Nursery Schools | F8: 3.42 | G8: PerHour | J8: 45405 | M8: 155285.1 | N8: 155285.1
C9: Maintained Nuseries | E9: 2.86 | G9: PerHour | I9: 736838 | L9: 2107356.68 | N9: 2107356.68
C10: PVI Nurseries | D10: 3.37 | G10: PerHour | H10: 481967 | K10: 1624228.79 | N10: 1624228.79
C11: PVI Playgroups | D11: 3.32 | G11: PerHour | H11: 228653 | K11: 759127.96 | N11: 759127.96
O12: =SUM(N8:N12)/7530566 -> 0.6169521029
B13: 2a. Supplements: Deprivation | C13: Quartile 1 - top 25% most deprived | D13: 0.2 | E13: 0.2 | G13: PerHour | H13: 99734 | I13: 291360 | K13: 19946.8 | L13: 58272 | N13: 78218.8
C14: Quartile 2 - mid 25% most deprived settings | D14: 0.15 | E14: 0.15 | G14: PerHour | H14: 152488.5 | I14: 165840 | K14: 22873.28 | L14: 24876 | N14: 47749.28
C15: Quarter 3 - mid 25% most deprived settings | D15: 0.1 | E15: 0.1 | G15: PerHour | H15: 165449.5 | I15: 224700 | K15: 16544.95 | L15: 22470 | N15: 39014.95
C16: Quarter 4 - bottom 25% most deprived settings | D16: 0.05 | E16: 0.05 | F16: 0.05 | G16: PerHour | H16: 396269.75 | I16: 74880 | J16: 45405 | K16: 19813.49 | L16: 3744 | M16: 2270.25 | N16: 25827.74
O17: =SUM(N13:N17)/7530566 -> 0.02533817113
B18: 2b. Supplements: Quality | C18: 0 | D18: 0 | E18: 0 | F18: 0 | H18: 0 | I18: 0 | J18: 0
O19: =SUM(N18:N19)/7530566 -> 0
B20: 2c. Supplements: Flexibility | C20: 0 | D20: 0 | E20: 0 | F20: 0 | H20: 0 | I20: 0 | J20: 0
O21: =SUM(N20:N21)/7530566 -> 0
B22: 2d. Supplements: Sustainability | D22: 0 | E22: 0 | F22: 0 | H22: 0 | I22: 0 | J22: 0
O23: =SUM(N22:N23)/7530566 -> 0
B24: 3. Other formula | D24: 0 | E24: 0 | F24: 0 | H24: 0 | I24: 0 | J24: 0
O25: =SUM(N24:N25)/7530566 -> 0
B26: 4. Additional funded free hours | D26: 0 | E26: 0 | F26: 0 | H26: 0 | I26: 0 | J26: 0
O27: =SUM(N26:N27)/7530566 -> 0
B28: TOTAL FUNDING FOR EARLY YEARS SINGLE FUNDING FORMULA (3s AND 4s) | K28: 2462535.27 | L28: 2216718.68 | M28: 157555.35 | N28: 4836809.3 | O28: =SUM(O8:O27) -> 0.6422902741
E30: Unit Value | I30: Number of Units | L30: Anticipated Budget
B31: Row Heading | C31: Description | D31: PVI | E31: Nursery School | F31: Primary Nursery Class | H31: PVI | I31: Nursery School | J31: Primary Nursery Class | K31: PVI | L31: Nursery School | M31: Primary Nursery Class | N31: Total Budget | O31: Proportion of Funding
B32: 5. Two year old Base Rate(s) per hour, per provider type | C32: All providers | D32: 4.85 | G32: PerHour | H32: 207000 | K32: 1003950 | N32: 1003950
B34: 6a. Two year old supplements Quality | D34: 0 | E34: 0 | F34: 0 | H34: 0 | I34: 0 | J34: 0
B36: 6b. Other supplements | D36: 0 | E36: 0 | F36: 0 | H36: 0 | I36: 0 | J36: 0
B38: TOTAL FUNDING FOR EARLY YEARS SINGLE FUNDING FORMULA FOR 2 YEAR OLDs | K38: 1003950 | N38: 1003950
B41: Row Heading | E41: Description | L41: Anticipated Total Budget | O41: Proportion of Funding
B42: 7. Early years contingency funding
O43: =SUM(N42:N43)/7530566 -> 0
B44: 8. Early years centrally retained spending | C44: Early Years centrally retained | N44: 2693757
O45: =SUM(N44:N45)/7530566 -> 0.3577097658
B46: TOTAL FUNDING FOR CENTRAL EXPENDITURE | N46: 2693757 | O46: =SUM(O42:O45) -> 0.3577097658
B48: EY s251 Notes

Sheet 210 (hidden)
C2: EY Table: FUNDING PERIOD (2013-14)
C3: Southwark | D3: 210
E5: Unit Value | I5: Number of Units | L5: Anticipated Budget
B6: Row Heading | C6: Description | D6: PVI | E6: Nursery School | F6: Primary Nursery Class | G6: UnitType | H6: PVI | I6: Nursery School | J6: Primary Nursery Class | K6: PVI | L6: Nursery School | M6: Primary Nursery Class | N6: Total Budget | O6: Proportion of Funding
B8: 1. EYSFF (three and four year olds) Base Rate(s) per hour, per provider type | C8: EYSFF Base Rates (3 and 4 year olds) | D8: 4.1 | E8: 6.43 | F8: 4.95 | G8: PerHour | H8: 973327.37 | I8: 341340 | J8: 1420170 | K8: 3990642.22 | L8: 2194816.2 | M8: 7029841.5 | N8: 13215299.92
O9: =SUM(N8:N9)/20118966 -> 0.6568578087
B10: 2a. Supplements: Deprivation | C10: Deprivation based on Weighted IDACI score | D10: 0.4 | E10: 1.17 | F10: 0.64 | G10: PerHour | H10: 532211.94 | I10: 342327.65 | J10: 1420597.67 | K10: 212884.78 | L10: 400523.35 | M10: 909182.51 | N10: 1522590.64
O11: =SUM(N10:N11)/20118966 -> 0.07567936841
B12: 2b. Supplements: Quality | C12: No budget lines entered
O13: =SUM(N12:N13)/20118966 -> 0
B14: 2c. Supplements: Flexibility | C14: No budget lines entered
O15: =SUM(N14:N15)/20118966 -> 0
B16: 2d. Supplements: Sustainability | C16: No budget lines entered
O17: =SUM(N16:N17)/20118966 -> 0
B18: 3. Other formula | C18: Lump Sum | E18: 200000 | G18: LumpSum | I18: 5 | L18: 1000000 | N18: 1000000
C19: EAL funding | E19: 299.72 | G19: PerChild | I19: 180.23 | L19: 54018.54 | N19: 54018.54
C20: Funding to match rates | E20: 56676.82 | G20: LumpSum | I20: 1 | L20: 56676.82 | N20: 56676.82
O21: =SUM(N18:N21)/20118966 -> 0.05520638387
B22: 4. Additional funded free hours | C22: No budget lines entered
O23: =SUM(N22:N23)/20118966 -> 0
B24: TOTAL FUNDING FOR EARLY YEARS SINGLE FUNDING FORMULA (3s AND 4s) | K24: 4203527 | L24: 3706034.91 | M24: 7939024.01 | N24: 15848585.92 | O24: =SUM(O8:O23) -> 0.787743561
E26: Unit Value | I26: Number of Units | L26: Anticipated Budget
B27: Row Heading | C27: Description | D27: PVI | E27: Nursery School | F27: Primary Nursery Class | H27: PVI | I27: Nursery School | J27: Primary Nursery Class | K27: PVI | L27: Nursery School | M27: Primary Nursery Class | N27: Total Budget | O27: Proportion of Funding
B28: 5. Two year old Base Rate(s) per hour, per provider type | C28: 2 yr old base rates, per hour, per provider type | D28: 6 | E28: 6 | G28: PerHour | H28: 656895.17 | I28: 93866.67 | K28: 3941371.02 | L28: 563200.02 | N28: 4504571.04
B30: 6a. Two year old supplements Quality | C30: No budget lines entered
B32: 6b. Other supplements | C32: School Forum agreed trajectory funding targeted at 2 yr olds | E32: 1768373 | G32: LumpSum | I32: 1 | L32: 1768373 | N32: 1768373
B34: TOTAL FUNDING FOR EARLY YEARS SINGLE FUNDING FORMULA FOR 2 YEAR OLDs | K34: 3941371.02 | L34: 2331573.02 | N34: 6272944.04
B37: Row Heading | E37: Description | L37: Anticipated Total Budget | O37: Proportion of Funding
B38: 7. Early years contingency funding | C38: Early years contingency funding | N38: 888729
O39: =SUM(N38:N39)/20118966 -> 0.04417369163
B40: 8. Early years centrally retained spending | C40: Early years centrally retained spending | N40: 3381651
O41: =SUM(N40:N41)/20118966 -> 0.1680827434
B42: TOTAL FUNDING FOR CENTRAL EXPENDITURE | N42: 4270380 | O42: =SUM(O38:O41) -> 0.212256435
B44: EY s251 Notes

Sheet 882 (hidden)
C2: EY Table: FUNDING PERIOD (2013-14)
C3: Southend-on-Sea | D3: 882
E5: Unit Value | I5: Number of Units | L5: Anticipated Budget
B6: Row Heading | C6: Description | D6: PVI | E6: Nursery School | F6: Primary Nursery Class | G6: UnitType | H6: PVI | I6: Nursery School | J6: Primary Nursery Class | K6: PVI | L6: Nursery School | M6: Primary Nursery Class | N6: Total Budget | O6: Proportion of Funding
B8: 1. EYSFF (three and four year olds) Base Rate(s) per hour, per provider type | C8: Base rate for Primary Nursery Class | F8: 4.55 | G8: PerHour | J8: 466519 | M8: 2122661.45 | N8: 2122661.45
C9: Base rate for Independent Schools | D9: 4.02 | G9: PerHour | H9: 76627 | K9: 308040.54 | N9: 308040.54
C10: Base rate for Childminders | D10: 4.02 | G10: PerHour | H10: 7772 | K10: 31243.44 | N10: 31243.44
C11: Base rate for Day Nurseries | D11: 4.08 | G11: PerHour | H11: 503916 | K11: 2055977.28 | N11: 2055977.28
C12: Base rate for Pre-Schools | D12: 3.85 | G12: PerHour | H12: 461962 | K12: 1778553.7 | N12: 1778553.7
O13: =SUM(N8:N13)/7025279 -> 0.8962599791
B14: 2a. Supplements: Deprivation | C14: Deprivation for all 3&4 YO Settings | D14: 0.46 | F14: 0.46 | G14: PerHour | H14: 271739 | J14: 225657 | K14: 124999.94 | M14: 103802.22 | N14: 228802.16
O15: =SUM(N14:N15)/7025279 -> 0.03256840903
B16: 2b. Supplements: Quality | C16: No budget lines entered
O17: =SUM(N16:N17)/7025279 -> 0
B18: 2c. Supplements: Flexibility | C18: No budget lines entered
O19: =SUM(N18:N19)/7025279 -> 0
B20: 2d. Supplements: Sustainability | C20: No budget lines entered
O21: =SUM(N20:N21)/7025279 -> 0
B22: 3. Other formula | C22: No budget lines entered
O23: =SUM(N22:N23)/7025279 -> 0
B24: 4. Additional funded free hours | C24: No budget lines entered
O25: =SUM(N24:N25)/7025279 -> 0
B26: TOTAL FUNDING FOR EARLY YEARS SINGLE FUNDING FORMULA (3s AND 4s) | K26: 4298814.9 | M26: 2226463.67 | N26: 6525278.57 | O26: =SUM(O8:O25) -> 0.9288283882
E28: Unit Value | I28: Number of Units | L28: Anticipated Budget
B29: Row Heading | C29: Description | D29: PVI | E29: Nursery School | F29: Primary Nursery Class | H29: PVI | I29: Nursery School | J29: Primary Nursery Class | K29: PVI | L29: Nursery School | M29: Primary Nursery Class | N29: Total Budget | O29: Proportion of Funding
B30: 5. Two year old Base Rate(s) per hour, per provider type | C30: 2YO Base Rate for All Providers | D30: 5.1 | F30: 5.1 | G30: PerHour | H30: 345202 | J30: 7935 | K30: 1760530.2 | M30: 40468.5 | N30: 1800998.7
B32: 6a. Two year old supplements Quality | C32: No budget lines entered
B34: 6b. Other supplements | C34: No budget lines entered
B36: TOTAL FUNDING FOR EARLY YEARS SINGLE FUNDING FORMULA FOR 2 YEAR OLDs | K36: 1760530.2 | M36: 40468.5 | N36: 1800998.7
B39: Row Heading | E39: Description | L39: Anticipated Total Budget | O39: Proportion of Funding
B40: 7. Early years contingency funding | C40: No budget lines entered
O41: =SUM(N40:N41)/7025279 -> 0
B42: 8. Early years centrally retained spending | C42: Pre School Learning Alliance | N42: 220000
C43: National Child Minding Association | N43: 110000
C44: Speech & Language Support | N44: 30000
C45: SEN 1-2-1 Support | N45: 40000
C46: PVI Training | N46: 100000
O47: =SUM(N42:N47)/7025279 -> 0.07117155062
B48: TOTAL FUNDING FOR CENTRAL EXPENDITURE | N48: 500000 | O48: =SUM(O40:O47) -> 0.07117155062
B50: EY s251 Notes

Sheet 852 (hidden)
C2: EY Table: FUNDING PERIOD (2013-14)
C3: Southampton | D3: 852
E5: Unit Value | I5: Number of Units | L5: Anticipated Budget
B6: Row Heading | C6: Description | D6: PVI | E6: Nursery School | F6: Primary Nursery Class | G6: UnitType | H6: PVI | I6: Nursery School | J6: Primary Nursery Class | K6: PVI | L6: Nursery School | M6: Primary Nursery Class | N6: Total Budget | O6: Proportion of Funding
B8: 1. EYSFF (three and four year olds) Base Rate(s) per hour, per provider type | C8: Base rate | D8: 3.58 | E8: 4.04 | F8: 4.6 | G8: PerHour | H8: 886003.01 | I8: 54223 | J8: 286583 | K8: 3171890.78 | L8: 219060.92 | M8: 1318281.8 | N8: 4709233.5
C9: Base Rate | D9: 3.29 | G9: PerHour | H9: 325355.25 | K9: 1070418.77 | N9: 1070418.77
C10: Base Rate | D10: 3.2 | G10: PerHour | H10: 343064.75 | K10: 1097807.2 | N10: 1097807.2
O11: =SUM(N8:N11)/10444030 -> 0.6585062921
B12: 2a. Supplements: Deprivation | C12: Deprivation IDACI 0 to 0.10 | D12: 0.23 | G12: PerHour | H12: 24224.25 | K12: 5571.58 | N12: 5571.58
C13: Deprivation IDACI 0.11 to 0.20 | D13: 0.25 | E13: 0.25 | F13: 0.25 | G13: PerHour | H13: 316518.08 | I13: 0 | J13: 0 | K13: 79129.52 | N13: 79129.52
C14: Deprivation IDACI 0.21 to 0.30 | D14: 0.31 | F14: 0.31 | G14: PerHour | H14: 594718.29 | J14: 86175 | K14: 184362.67 | M14: 26714.25 | N14: 211076.92
C15: Deprivation IDACI 0.31 to 0.40 | D15: 0.39 | E15: 0.39 | F15: 0.39 | G15: PerHour | H15: 366300.39 | I15: 54223 | J15: 129593 | K15: 142857.15 | L15: 21146.97 | M15: 50541.27 | N15: 214545.39
C16: Deprivation IDACI 0.41 to 0.50 | D16: 0.42 | G16: PerHour | H16: 219476 | K16: 92179.92 | N16: 92179.92
C17: Deprivation 0.51 to 0.60 | D17: 0.45 | F17: 0.45 | G17: PerHour | H17: 33186 | J17: 70815 | K17: 14933.7 | M17: 31866.75 | N17: 46800.45
O18: =SUM(N12:N18)/10444030 -> 0.06216985014
B19: 2b. Supplements: Quality | C19: Qualifications Level 1 | D19: 0.45 | E19: 0.45 | F19: 0.45 | G19: PerHour | H19: 595712.42 | I19: 54223 | J19: 286583 | K19: 268070.59 | L19: 24400.35 | M19: 128962.35 | N19: 421433.29
C20: Qualifications Level 2 | D20: 0.36 | G20: PerHour | H20: 177970.54 | K20: 64069.39 | N20: 64069.39
C21: Qualifications Level 3 | D21: 0.24 | G21: PerHour | H21: 213565.5 | K21: 51255.72 | N21: 51255.72
C22: Qualifications Level 4 | D22: 0.18 | G22: PerHour | H22: 150342.5 | K22: 27061.65 | N22: 27061.65
C23: Qualifications Level 5 | D23: 0.09 | G23: PerHour | H23: 416832.05 | K23: 37514.88 | N23: 37514.88
O24: =SUM(N19:N24)/10444030 -> 0.05757690566
B25: 2c. Supplements: Flexibility | C25: Flexibility | D25: 0.05 | E25: 0.05 | F25: 0.05 | G25: PerHour | H25: 1554423 | I25: 54223 | J25: 286583 | K25: 77721.15 | L25: 2711.15 | M25: 14329.15 | N25: 94761.45
O26: =SUM(N25:N26)/10444030 -> 0.009073264822
B27: 2d. Supplements: Sustainability | C27: No budget lines entered
O28: =SUM(N27:N28)/10444030 -> 0
B29: 3. Other formula | C29: Lump sum to Maintained Nursery Provision | E29: 256200 | G29: LumpSum | I29: 1 | L29: 256200 | N29: 256200
O30: =SUM(N29:N30)/10444030 -> 0.02453076064
B31: 4. Additional funded free hours | C31: No budget lines entered
O32: =SUM(N31:N32)/10444030 -> 0
B33: TOTAL FUNDING FOR EARLY YEARS SINGLE FUNDING FORMULA (3s AND 4s) | K33: 6384844.67 | L33: 523519.39 | M33: 1570695.57 | N33: 8479059.63 | O33: =SUM(O8:O32) -> 0.8118570734
E35: Unit Value | I35: Number of Units | L35: Anticipated Budget
B36: Row Heading | C36: Description | D36: PVI | E36: Nursery School | F36: Primary Nursery Class | H36: PVI | I36: Nursery School | J36: Primary Nursery Class | K36: PVI | L36: Nursery School | M36: Primary Nursery Class | N36: Total Budget | O36: Proportion of Funding
B37: 5. Two year old Base Rate(s) per hour, per provider type | C37: Base Rate Only | D37: 4.85 | E37: 4.85 | F37: 4.85 | G37: PerHour | H37: 333702.07 | I37: 11640.54 | J37: 61523.37 | K37: 1618455.04 | L37: 56456.62 | M37: 298388.34 | N37: 1973300
B39: 6a. Two year old supplements Quality | C39: No budget lines entered
B41: 6b. Other supplements | C41: No budget lines entered
B43: TOTAL FUNDING FOR EARLY YEARS SINGLE FUNDING FORMULA FOR 2 YEAR OLDs | K43: 1618455.04 | L43: 56456.62 | M43: 298388.34 | N43: 1973300
B46: Row Heading | E46: Description | L46: Anticipated Total Budget | O46: Proportion of Funding
B47: 7. Early years contingency funding | C47: No budget lines entered
O48: =SUM(N47:N48)/10444030 -> 0
B49: 8. Early years centrally retained spending | N49: 1964970
O50: =SUM(N49:N50)/10444030 -> 0.1881428912
B51: TOTAL FUNDING FOR CENTRAL EXPENDITURE | N51: 1964970 | O51: =SUM(O47:O50) -> 0.1881428912
B53: EY s251 Notes

Sheet 393 (hidden)
C2: EY Table: FUNDING PERIOD (2013-14)
C3: South Tyneside | D3: 393
E5: Unit Value | I5: Number of Units | L5: Anticipated Budget
B6: Row Heading | C6: Description | D6: PVI | E6: Nursery School | F6: Primary Nursery Class | G6: UnitType | H6: PVI | I6: Nursery School | J6: Primary Nursery Class | K6: PVI | L6: Nursery School | M6: Primary Nursery Class | N6: Total Budget | O6: Proportion of Funding
B8: 1. EYSFF (three and four year olds) Base Rate(s) per hour, per provider type | C8: Standard Base rate | D8: 3 | E8: 3 | F8: 3 | G8: PerHour | H8: 194940 | I8: 190950 | J8: 809925 | K8: 584820 | L8: 572850 | M8: 2429775 | N8: 3587445
O9: =SUM(N8:N9)/5118511 -> 0.7008766807
B10: 2a. Supplements: Deprivation | C10: Setting Post code | D10: 0.05 | E10: 0.05 | F10: 0.05 | G10: PerHour | H10: 76380 | I10: 149910 | J10: 425220 | K10: 3819 | L10: 7495.5 | M10: 21261 | N10: 32575.5
C11: Pupil Post Code | D11: 0.45 | E11: 0.45 | F11: 0.45 | G11: PerHour | H11: 84930 | I11: 80641 | J11: 387770 | K11: 38218.5 | L11: 36288.45 | M11: 174496.5 | N11: 249003.45
O12: =SUM(N10:N12)/5118511 -> 0.05501188725
B13: 2b. Supplements: Quality | C13: Good | D13: 0.3 | E13: 0.3 | F13: 0.3 | G13: PerHour | H13: 127110 | I13: 60420 | J13: 517560 | K13: 38133 | L13: 18126 | M13: 155268 | N13: 211527
C14: Outstanding | E14: 0.5 | F14: 0.5 | G14: PerHour | I14: 89490 | J14: 65550 | L14: 44745 | M14: 32775 | N14: 77520
O15: =SUM(N13:N15)/5118511 -> 0.05647091508
B16: 2c. Supplements: Flexibility | C16: Partial Flexibility | E16: 0.3 | G16: PerHour | I16: 33060 | L16: 9918 | N16: 9918
C17: Fully Flexible | D17: 0.5 | E17: 0.5 | F17: 0.5 | G17: PerHour | H17: 169860 | I17: 86070 | J17: 42180 | K17: 84930 | L17: 43035 | M17: 21090 | N17: 149055
O18: =SUM(N16:N18)/5118511 -> 0.03105844649
B19: 2d. Supplements: Sustainability | C19: No budget lines entered
O20: =SUM(N19:N20)/5118511 -> 0
B21: 3. Other formula | C21: Lump Sum | E21: 100000 | G21: LumpSum | I21: 4 | L21: 400000 | N21: 400000
O22: =SUM(N21:N22)/5118511 -> 0.07814772695
B23: 4. Additional funded free hours | C23: No budget lines entered
O24: =SUM(N23:N24)/5118511 -> 0
B25: TOTAL FUNDING FOR EARLY YEARS SINGLE FUNDING FORMULA (3s AND 4s) | K25: 749920.5 | L25: 1132457.95 | M25: 2834665.5 | N25: 4717043.95 | O25: =SUM(O8:O24) -> 0.9215656565
E27: Unit Value | I27: Number of Units | L27: Anticipated Budget
B28: Row Heading | C28: Description | D28: PVI | E28: Nursery School | F28: Primary Nursery Class | H28: PVI | I28: Nursery School | J28: Primary Nursery Class | K28: PVI | L28: Nursery School | M28: Primary Nursery Class | N28: Total Budget | O28: Proportion of Funding
B29: 5. Two year old Base Rate(s) per hour, per provider type | C29: Standard base rate | D29: 4.85 | E29: 4.85 | G29: PerHour | H29: 260220 | I29: 45600 | K29: 1262067 | L29: 221160 | N29: 1483227
B31: 6a. Two year old supplements Quality | C31: No budget lines entered
B33: 6b. Other supplements | C33: SEN Provision | D33: 2 | E33: 2 | G33: PerHour | H33: 84930 | I33: 15390 | K33: 169860 | L33: 30780 | N33: 200640
B35: TOTAL FUNDING FOR EARLY YEARS SINGLE FUNDING FORMULA FOR 2 YEAR OLDs | K35: 1431927 | L35: 251940 | N35: 1683867
B38: Row Heading | E38: Description | L38: Anticipated Total Budget | O38: Proportion of Funding
B39: 7. Early years contingency funding | C39: Early Years contingency | N39: 75000
O40: =SUM(N39:N40)/5118511 -> 0.0146526988
B41: 8. Early years centrally retained spending | C41: Management and administration | N41: 326467
O42: =SUM(N41:N42)/5118511 -> 0.06378163493
B43: TOTAL FUNDING FOR CENTRAL EXPENDITURE | N43: 401467 | O43: =SUM(O39:O42) -> 0.07843433373
B45: EY s251 Notes

Sheet 933 (hidden)
C2: EY Table: FUNDING PERIOD (2013-14)
C3: Somerset | D3: 933
E5: Unit Value | I5: Number of Units | L5: Anticipated Budget
B6: Row Heading | C6: Description | D6: PVI | E6: Nursery School | F6: Primary Nursery Class | G6: UnitType | H6: PVI | I6: Nursery School | J6: Primary Nursery Class | K6: PVI | L6: Nursery School | M6: Primary Nursery Class | N6: Total Budget | O6: Proportion of Funding
B8: 1. EYSFF (three and four year olds) Base Rate(s) per hour, per provider type | C8: Based on number of hours accessed by children from a deprived household, averaged over 3 years | D8: 3.61 | F8: 3.61 | G8: PerHour | H8: 3296754 | J8: 369360 | K8: 11901281.94 | M8: 1333389.6 | N8: 13234671.54
O9: =SUM(N8:N9)/16016472 -> 0.8263162786
B10: 2a. Supplements: Deprivation | D10: 0.36 | F10: 0.36 | G10: PerHour | H10: 657370 | J10: 92340 | K10: 236653.2 | M10: 33242.4 | N10: 269895.6
O11: =SUM(N10:N11)/16016472 -> 0.01685112676
B12: 2b. Supplements: Quality | C12: Qualified Teacher in an LA and Academy nursery | F12: 0.78 | G12: PerHour | J12: 369360 | M12: 288100.8 | N12: 288100.8
C13: Early Years Professional | D13: 0.26 | G13: PerHour | H13: 657370 | K13: 170916.2 | N13: 170916.2
C14: Childminder | D14: 0.72 | G14: PerHour | H14: 16434 | K14: 11832.48 | N14: 11832.48
C15: Early Years qualified teacher | D15: 0.22 | G15: PerHour | H15: 493027 | K15: 108465.94 | N15: 108465.94
O16: =SUM(N12:N16)/16016472 -> 0.03616997676
B17: 2c. Supplements: Flexibility | C17: Open between 6 and 8 hours a day | D17: 0.1 | F17: 0.1 | G17: PerHour | H17: 2465136 | J17: 295488 | K17: 246513.6 | M17: 29548.8 | N17: 276062.4
C18: Open for 8 or more hours a day | D18: 0.1 | F18: 0.1 | G18: PerHour | H18: 1643424 | J18: 110808 | K18: 164342.4 | M18: 11080.8 | N18: 175423.2
O19: =SUM(N17:N19)/16016472 -> 0.0281888296
B20: 2d. Supplements: Sustainability | C20: No budget lines entered
O21: =SUM(N20:N21)/16016472 -> 0
B22: 3. Other formula | C22: Sparsity Supplement | D22: 0.31 | F22: 0.31 | G22: PerHour | H22: 65737 | J22: 18468 | K22: 20378.47 | M22: 5725.08 | N22: 26103.55
C23: Premises Supplement | D23: 0.05 | F23: 0.05 | G23: PerHour | H23: 1972109 | J23: 332424 | K23: 98605.45 | M23: 16621.2 | N23: 115226.65
O24: =SUM(N22:N24)/16016472 -> 0.008824053137
B25: 4. Additional funded free hours | C25: No budget lines entered
O26: =SUM(N25:N26)/16016472 -> 0
B27: TOTAL FUNDING FOR EARLY YEARS SINGLE FUNDING FORMULA (3s AND 4s) | K27: 12958989.68 | M27: 1717708.68 | N27: 14676698.36 | O27: =SUM(O8:O26) -> 0.9163502649
E29: Unit Value | I29: Number of Units | L29: Anticipated Budget
B30: Row Heading | C30: Description | D30: PVI | E30: Nursery School | F30: Primary Nursery Class | H30: PVI | I30: Nursery School | J30: Primary Nursery Class | K30: PVI | L30: Nursery School | M30: Primary Nursery Class | N30: Total Budget | O30: Proportion of Funding
B31: 5. Two year old Base Rate(s) per hour, per provider type | D31: 4.85 | G31: PerHour | H31: 515066 | K31: 2498070.1 | N31: 2498070.1
B33: 6a. Two year old supplements Quality | C33: No budget lines entered
B35: 6b. Other supplements | C35: No budget lines entered
B37: TOTAL FUNDING FOR EARLY YEARS SINGLE FUNDING FORMULA FOR 2 YEAR OLDs | K37: 2498070.1 | N37: 2498070.1
B40: Row Heading | E40: Description | L40: Anticipated Total Budget | O40: Proportion of Funding
B41: 7. Early years contingency funding | C41: No budget lines entered
O42: =SUM(N41:N42)/16016472 -> 0
B43: 8. Early years centrally retained spending | C43: Trajectory Building | N43: 1339774
O44: =SUM(N43:N44)/16016472 -> 0.08364975757
B45: TOTAL FUNDING FOR CENTRAL EXPENDITURE | N45: 1339774 | O45: =SUM(O41:O44) -> 0.08364975757
B47: EY s251 Notes

Sheet 334 (hidden)
C2: EY Table: FUNDING PERIOD (2013-14)
C3: Solihull | D3: 334
E5: Unit Value | I5: Number of Units | L5: Anticipated Budget
B6: Row Heading | C6: Description | D6: PVI | E6: Nursery School | F6: Primary Nursery Class | G6: UnitType | H6: PVI | I6: Nursery School | J6: Primary Nursery Class | K6: PVI | L6: Nursery School | M6: Primary Nursery Class | N6: Total Budget | O6: Proportion of Funding
B8: 1. EYSFF (three and four year olds) Base Rate(s) per hour, per provider type | C8: School Nursery 20 place | F8: 2.73 | G8: PerHour | J8: 70080 | M8: 191318.4 | N8: 191318.4
C9: School Nursery 30 place | F9: 2.47 | G9: PerHour | J9: 234630 | M9: 579536.1 | N9: 579536.1
C10: School Nursery 40 & 80 place | F10: 2.76 | G10: PerHour | J10: 212268 | M10: 585859.68 | N10: 585859.68
C11: School Nursery 50 place | F11: 2.6 | G11: PerHour | J11: 146010 | M11: 379626 | N11: 379626
C12: School Nursery 60 place | F12: 2.5 | G12: PerHour | J12: 492174 | M12: 1230435 | N12: 1230435
C13: School Nursery 70 place | F13: 2.43 | G13: PerHour | J13: 11700 | M13: 28431 | N13: 28431
C14: School Nursery 90 place | F14: 2.67 | G14: PerHour | J14: 16020 | M14: 42773.4 | N14: 42773.4
C15: PVI | D15: 3.5 | G15: PerHour | H15: 697399.14 | K15: 2440896.99 | N15: 2440896.99
O16: =SUM(N8:N16)/5630333 -> 0.9730999161
B17: 2a. Supplements: Deprivation | C17: Deprivation - School IDACI Band 1 | F17: 76.15 | G17: PerChild | J17: 97.36 | M17: 7413.96 | N17: 7413.96
C18: Deprivation - School IDACI Band 2 | F18: 91.38 | G18: PerChild | J18: 119.12 | M18: 10885.19 | N18: 10885.19
C19: Deprivation - School IDACI Band 3 | F19: 121.84 | G19: PerChild | J19: 165.27 | M19: 20136.5 | N19: 20136.5
C20: Deprivation - School IDACI Band 4 | F20: 152.3 | G20: PerChild | J20: 336.65 | M20: 51271.8 | N20: 51271.8
C21: Deprivation - School IDACI Band 5 | F21: 182.76 | G21: PerChild | J21: 25.61 | M21: 4680.48 | N21: 4680.48
C22: Deprivation - School IDACI Band 6 | F22: 304.6 | G22: PerChild | J22: 6.79 | M22: 2068.23 | N22: 2068.23
C23: Deprivation - PVI | D23: 251.52 | G23: PerChild | H23: 218.67 | K23: 54999.88 | N23: 54999.88
O24: =SUM(N17:N24)/5630333 -> 0.02690001462
B25: 2b. Supplements: Quality | C25: No budget lines entered
O26: =SUM(N25:N26)/5630333 -> 0
B27: 2c. Supplements: Flexibility | C27: No budget lines entered
O28: =SUM(N27:N28)/5630333 -> 0
B29: 2d. Supplements: Sustainability | C29: No budget lines entered
O30: =SUM(N29:N30)/5630333 -> 0
B31: 3. Other formula | C31: No budget lines entered
O32: =SUM(N31:N32)/5630333 -> 0
B33: 4. Additional funded free hours | C33: No budget lines entered
O34: =SUM(N33:N34)/5630333 -> 0
B35: TOTAL FUNDING FOR EARLY YEARS SINGLE FUNDING FORMULA (3s AND 4s) | K35: 2495896.87 | M35: 3134435.74 | N35: 5630332.61 | O35: =SUM(O8:O34) -> 0.9999999307
E37: Unit Value | I37: Number of Units | L37: Anticipated Budget
B38: Row Heading | C38: Description | D38: PVI | E38: Nursery School | F38: Primary Nursery Class | H38: PVI | I38: Nursery School | J38: Primary Nursery Class | K38: PVI | L38: Nursery School | M38: Primary Nursery Class | N38: Total Budget | O38: Proportion of Funding
B39: 5. Two year old Base Rate(s) per hour, per provider type | C39: Basic Rate - all providers | D39: 5 | G39: PerHour | H39: 318999 | K39: 1594995 | N39: 1594995
B41: 6a. Two year old supplements Quality | C41: No budget lines entered
B43: 6b. Other supplements | C43: No budget lines entered
B45: TOTAL FUNDING FOR EARLY YEARS SINGLE FUNDING FORMULA FOR 2 YEAR OLDs | K45: 1594995 | N45: 1594995
B48: Row Heading | E48: Description | L48: Anticipated Total Budget | O48: Proportion of Funding
B49: 7. Early years contingency funding | C49: No budget lines entered
O50: =SUM(N49:N50)/5630333 -> 0
B51: 8. Early years centrally retained spending | C51: No budget lines entered
O52: =SUM(N51:N52)/5630333 -> 0
B53: TOTAL FUNDING FOR CENTRAL EXPENDITURE | O53: =SUM(O49:O52) -> 0
B55: EY s251 Notes

Sheet 871 (hidden)
C2: EY Table: FUNDING PERIOD (2013-14)
C3: Slough | D3: 871
E5: Unit Value | I5: Number of Units | L5: Anticipated Budget
B6: Row Heading | C6: Description | D6: PVI | E6: Nursery School | F6: Primary Nursery Class | G6: UnitType | H6: PVI | I6: Nursery School | J6: Primary Nursery Class | K6: PVI | L6: Nursery School | M6: Primary Nursery Class | N6: Total Budget | O6: Proportion of Funding
B8: 1. EYSFF (three and four year olds) Base Rate(s) per hour, per provider type | C8: Large Providers | D8: 5.13 | E8: 5.7 | F8: 3.95 | G8: PerHour | H8: 199987 | I8: 333315 | J8: 579761 | K8: 1025933.31 | L8: 1899895.5 | M8: 2290055.95 | N8: 5215884.76
C9: Medium Providers | D9: 4.84 | F9: 3.74 | G9: PerHour | H9: 124329 | J9: 236710 | K9: 601752.36 | M9: 885295.4 | N9: 1487047.76
C10: Small Providers | D10: 4.55 | F10: 3.52 | G10: PerHour | H10: 133954 | J10: 15210 | K10: 609490.7 | M10: 53539.2 | N10: 663029.9
C11: Medium Childminder | D11: 3.64 | G11: PerHour | H11: 1800 | K11: 6552 | N11: 6552
O12: =SUM(N8:N12)/10659693 -> 0.6916253986
B13: 2a. Supplements: Deprivation | C13: FSM Eligibility | D13: 1 | E13: 1 | F13: 1 | G13: PerHour | H13: 0 | I13: 0 | J13: 0
O14: =SUM(N13:N14)/10659693 -> 0
B15: 2b. Supplements: Quality | C15: No budget lines entered
O16: =SUM(N15:N16)/10659693 -> 0
B17: 2c. Supplements: Flexibility | C17: No budget lines entered
O18: =SUM(N17:N18)/10659693 -> 0
B19: 2d. Supplements: Sustainability | C19: No budget lines entered
O20: =SUM(N19:N20)/10659693 -> 0
B21: 3. Other formula | C21: Minimum Funding Guarantee at 1.5% per hour compared to 2012-13 | D21: 91552 | E21: 628892 | F21: 227175 | G21: LumpSum | H21: 1 | I21: 1 | J21: 1 | K21: 91552 | L21: 628892 | M21: 227175 | N21: 947619
O22: =SUM(N21:N22)/10659693 -> 0.0888974007
B23: 4. Additional funded free hours | C23: No budget lines entered
O24: =SUM(N23:N24)/10659693 -> 0
B25: TOTAL FUNDING FOR EARLY YEARS SINGLE FUNDING FORMULA (3s AND 4s) | K25: 2335280.37 | L25: 2528787.5 | M25: 3456065.55 | N25: 8320133.42 | O25: =SUM(O8:O24) -> 0.7805227993
E27: Unit Value | I27: Number of Units | L27: Anticipated Budget
B28: Row Heading | C28: Description | D28: PVI | E28: Nursery School | F28: Primary Nursery Class | H28: PVI | I28: Nursery School | J28: Primary Nursery Class | K28: PVI | L28: Nursery School | M28: Primary Nursery Class | N28: Total Budget | O28: Proportion of Funding
B29: 5. Two year old Base Rate(s) per hour, per provider type | C29: The 2 year old formula has not been agreed yet. | D29: 0 | G29: LumpSum | H29: 0
B31: 6a. Two year old supplements Quality | C31: No budget lines entered
B33: 6b. Other supplements | C33: No budget lines entered
B35: TOTAL FUNDING FOR EARLY YEARS SINGLE FUNDING FORMULA FOR 2 YEAR OLDs
B38: Row Heading | E38: Description | L38: Anticipated Total Budget | O38: Proportion of Funding
B39: 7. Early years contingency funding | C39: Growth Contingency | N39: 159211
O40: =SUM(N39:N40)/10659693 -> 0.01493579599
B41: 8. Early years centrally retained spending | C41: EY Centrally Retained | N41: 2180349
O42: =SUM(N41:N42)/10659693 -> 0.2045414441
B43: TOTAL FUNDING FOR CENTRAL EXPENDITURE | N43: 2339560 | O43: =SUM(O39:O42) -> 0.2194772401
B45: EY s251 Notes

Sheet 893 (hidden)
C2: EY Table: FUNDING PERIOD (2013-14)
C3: Shropshire | D3: 893
E5: Unit Value | I5: Number of Units | L5: Anticipated Budget
B6: Row Heading | C6: Description | D6: PVI | E6: Nursery School | F6: Primary Nursery Class | G6: UnitType | H6: PVI | I6: Nursery School | J6: Primary Nursery Class | K6: PVI | L6: Nursery School | M6: Primary Nursery Class | N6: Total Budget | O6: Proportion of Funding
B8: 1. EYSFF (three and four year olds) Base Rate(s) per hour, per provider type | C8: PVI providers - staffing, admin, management time, equipment. Maintained - Staffing, admin, management time, equipment. | D8: 2.84 | F8: 3.5 | G8: PerHour | H8: 1538652 | J8: 658543.8 | K8: 4369771.68 | M8: 2304903.3 | N8: 6674674.98
O9: =SUM(N8:N9)/8352860 -> 0.7990885733
B10: 2a. Supplements: Deprivation | C10: IMD using pupil postcode data | D10: 0.13 | F10: 0.15 | G10: PerHour | H10: 1438462 | J10: 851323.5 | K10: 187000.06 | M10: 127698.53 | N10: 314698.59
O11: =SUM(N10:N11)/8352860 -> 0.03767554945
B12: 2b. Supplements: Quality | C12: Based on staff replacement costs to allow for CPD/training | D12: 0.05 | F12: 0.06 | G12: PerHour | H12: 1256430 | J12: 658544 | K12: 62821.5 | M12: 39512.64 | N12: 102334.14
O13: =SUM(N12:N13)/8352860 -> 0.01225138934
B14: 2c. Supplements: Flexibility | C14: No budget lines entered
O15: =SUM(N14:N15)/8352860 -> 0
B16: 2d. Supplements: Sustainability | C16: No budget lines entered
O17: =SUM(N16:N17)/8352860 -> 0
B18: 3. Other formula | C18: Sustainability funding based on individual circumstances of settings | D18: 4687.5 | F18: 18827.24 | G18: LumpSum | H18: 32 | J18: 21 | K18: 150000 | M18: 395372.04 | N18: 545372.04
O19: =SUM(N18:N19)/8352860 -> 0.0652916534
B20: 4. Additional funded free hours | C20: No budget lines entered
O21: =SUM(N20:N21)/8352860 -> 0
B22: TOTAL FUNDING FOR EARLY YEARS SINGLE FUNDING FORMULA (3s AND 4s) | K22: 4769593.24 | M22: 2867486.51 | N22: 7637079.75 | O22: =SUM(O8:O21) -> 0.9143071654
E24: Unit Value | I24: Number of Units | L24: Anticipated Budget
B25: Row Heading | C25: Description | D25: PVI | E25: Nursery School | F25: Primary Nursery Class | H25: PVI | I25: Nursery School | J25: Primary Nursery Class | K25: PVI | L25: Nursery School | M25: Primary Nursery Class | N25: Total Budget | O25: Proportion of Funding
B26: 5. Two year old Base Rate(s) per hour, per provider type | D26: 2.94 | G26: PerHour | H26: 340136.05 | K26: 999999.99 | N26: 999999.99
B28: 6a. Two year old supplements Quality | C28: No budget lines entered
B30: 6b. Other supplements | C30: No budget lines entered
B32: TOTAL FUNDING FOR EARLY YEARS SINGLE FUNDING FORMULA FOR 2 YEAR OLDs | K32: 999999.99 | N32: 999999.99
B35: Row Heading | E35: Description | L35: Anticipated Total Budget | O35: Proportion of Funding
B36: 7. Early years contingency funding | C36: Contingency for pupils with special educational needs | N36: 50000
O37: =SUM(N36:N37)/8352860 -> 0.005985973667
B38: 8. Early years centrally retained spending | C38: Staffing, admin, management time and equipment+ trajectory funding | N38: 665780
O39: =SUM(N38:N39)/8352860 -> 0.07970683095
B40: TOTAL FUNDING FOR CENTRAL EXPENDITURE | N40: 715780 | O40: =SUM(O36:O39) -> 0.08569280462
B42: EY s251 Notes

Sheet 373 (hidden)
C2: EY Table: FUNDING PERIOD (2013-14)
C3: Sheffield | D3: 373
E5: Unit Value | I5: Number of Units | L5: Anticipated Budget
B6: Row Heading | C6: Description | D6: PVI | E6: Nursery School | F6: Primary Nursery Class | G6: UnitType | H6: PVI | I6: Nursery School | J6: Primary Nursery Class | K6: PVI | L6: Nursery School | M6: Primary Nursery Class | N6: Total Budget | O6: Proportion of Funding
B8: 1. EYSFF (three and four year olds) Base Rate(s) per hour, per provider type | C8: EYSFF Base rate | D8: 3.62 | E8: 3.62 | F8: 3.62 | G8: PerHour | H8: 2441821.61 | I8: 87094.6 | J8: 2176501.51 | K8: 8839394.23 | L8: 315282.45 | M8: 7878935.47 | N8: 17033612.15
O9: =SUM(N8:N9)/23564152 -> 0.7228612407
B10: 2a. Supplements: Deprivation | C10: Deprivation of pupils on a termly basis | D10: 0.3 | E10: 0.3 | F10: 0.3 | G10: PerHour | H10: 815638.11 | I10: 48760.3 | J10: 1407173 | K10: 244691.43 | L10: 14628.09 | M10: 422151.9 | N10: 681471.42
O11: =SUM(N10:N11)/23564152 -> 0.02891983637
B12: 2b. Supplements: Quality | C12: Quality using minimum rate per hour (25%) plus weighting of 25% to 75% based on quality of setting, giving up to £0.20 per weighted hour | D12: 0.2 | E12: 0.2 | F12: 0.2 | G12: PerHour | H12: 1778373.19 | I12: 87094.6 | J12: 2176501.51 | K12: 355674.64 | L12: 17418.92 | M12: 435300.3 | N12: 808393.86
O13: =SUM(N12:N13)/23564152 -> 0.03430608748
B14: 2c. Supplements: Flexibility | C14: No budget lines entered
O15: =SUM(N14:N15)/23564152 -> 0
B16: 2d. Supplements: Sustainability | C16: No budget lines entered
O17: =SUM(N16:N17)/23564152 -> 0
B18: 3. Other formula | C18: Individual lump sum - Broomhall Nursery | E18: 50287.52 | G18: LumpSum | I18: 1 | L18: 50287.52 | N18: 50287.52
C19: Individual lump sum - Grace Owen Nursery | E19: 26466.45 | G19: LumpSum | I19: 1 | L19: 26466.45 | N19: 26466.45
O20: =SUM(N18:N20)/23564152 -> 0.003257234548
B21: 4. Additional funded free hours | C21: No budget lines entered
O22: =SUM(N21:N22)/23564152 -> 0
B23: TOTAL FUNDING FOR EARLY YEARS SINGLE FUNDING FORMULA (3s AND 4s) | K23: 9439760.3 | L23: 424083.43 | M23: 8736387.67 | N23: 18600231.4 | O23: =SUM(O8:O22) -> 0.7893443991
E25: Unit Value | I25: Number of Units | L25: Anticipated Budget
B26: Row Heading | C26: Description | D26: PVI | E26: Nursery School | F26: Primary Nursery Class | H26: PVI | I26: Nursery School | J26: Primary Nursery Class | K26: PVI | L26: Nursery School | M26: Primary Nursery Class | N26: Total Budget | O26: Proportion of Funding
B27: 5. Two year old Base Rate(s) per hour, per provider type | C27: Base rate per hour | D27: 4.85 | E27: 4.85 | F27: 4.85 | G27: PerHour | H27: 488490 | I27: 34200 | J27: 51300 | K27: 2369176.5 | L27: 165870 | M27: 248805 | N27: 2783851.5
B29: 6a. Two year old supplements Quality | C29: Quality using minimum rate per hour (25%) plus weighting of 25% to 75% based on quality of setting, giving up to £0.20 per weighted hour | D29: 0.2 | E29: 0.2 | F29: 0.2 | G29: PerHour | H29: 488490 | I29: 34200 | J29: 51300 | K29: 97698 | L29: 6840 | M29: 10260 | N29: 114798
B31: 6b. Other supplements | C31: No budget lines entered
B33: TOTAL FUNDING FOR EARLY YEARS SINGLE FUNDING FORMULA FOR 2 YEAR OLDs | K33: 2466874.5 | L33: 172710 | M33: 259065 | N33: 2898649.5
B36: Row Heading | E36: Description | L36: Anticipated Total Budget | O36: Proportion of Funding
B37: 7. Early years contingency funding | C37: Contingency for 2, 3 and 4 year old providers | N37: 1399769
O38: =SUM(N37:N38)/23564152 -> 0.05940247712
B39: 8. Early years centrally retained spending | C39: Expenditure on early years special educational needs; encouraging families to access provision; delivery staff for payment and audit; and transitional funds to ensure a flexible, accessible and quality service. | N39: 3564152
O40: =SUM(N39:N40)/23564152 -> 0.1512531408
B41: TOTAL FUNDING FOR CENTRAL EXPENDITURE | N41: 4963921 | O41: =SUM(O37:O40) -> 0.2106556179
B43: EY s251 Notes

Sheet 343 (hidden)
C2: EY Table: FUNDING PERIOD (2013-14)
C3: Sefton | D3: 343
E5: Unit Value | I5: Number of Units | L5: Anticipated Budget
B6: Row Heading | C6: Description | D6: PVI | E6: Nursery School | F6: Primary Nursery Class | G6: UnitType | H6: PVI | I6: Nursery School | J6: Primary Nursery Class | K6: PVI | L6: Nursery School | M6: Primary Nursery Class | N6: Total Budget | O6: Proportion of Funding
B8: 1. EYSFF (three and four year olds) Base Rate(s) per hour, per provider type | C8: EYSFF Base Rates Per Hour | D8: 3.39 | E8: 4.77 | F8: 3.65 | G8: PerHour | H8: 833753 | I8: 123693 | J8: 1091235 | K8: 2826422.67 | L8: 590015.61 | M8: 3983007.75 | N8: 7399446.03
C9: EYSFF Base Rate Independent/CC | D9: 3.65 | E9: 0 | F9: 0 | G9: PerHour | H9: 39285 | I9: 0 | J9: 0 | K9: 143390.25 | N9: 143390.25
O10: =SUM(N8:N10)/9407448 -> 0.8017940976
B11: 2a. Supplements: Deprivation | C11: Deprivation up to 25% | D11: 0.1 | E11: 0.1 | F11: 0.1 | G11: PerHour | H11: 409292 | I11: 37494 | J11: 339625 | K11: 40929.2 | L11: 3749.4 | M11: 33962.5 | N11: 78641.1
C12: Deprivation 26%-50% | D12: 0.15 | E12: 0.15 | F12: 0.15 | G12: PerHour | H12: 222209 | I12: 0 | J12: 241125 | K12: 33331.35 | M12: 36168.75 | N12: 69500.1
C13: Deprivation over 50% | D13: 0.2 | E13: 0.2 | F13: 0.2 | G13: PerHour | H13: 167670 | I13: 86199 | J13: 478192 | K13: 33534 | L13: 17239.8 | M13: 95638.4 | N13: 146412.2
O14: =SUM(N11:N14)/9407448 -> 0.03131065938
B15: 2b. Supplements: Quality | C15: Quality Good Ofsted | D15: 0.1 | E15: 0.1 | F15: 0.1 | G15: PerHour | H15: 593141 | I15: 67689 | J15: 611691 | K15: 59314.1 | L15: 6768.9 | M15: 61169.1 | N15: 127252.1
C16: Quality Outstanding Ofsted | D16: 0.2 | E16: 0.2 | F16: 0.2 | G16: PerHour | H16: 179515 | I16: 56004 | J16: 382446 | K16: 35903 | L16: 11200.8 | M16: 76489.2 | N16: 123593
O17: =SUM(N15:N17)/9407448 -> 0.02666452156
B18: 2c. Supplements: Flexibility | C18: No budget lines entered
O19: =SUM(N18:N19)/9407448 -> 0
B20: 2d. Supplements: Sustainability | C20: No budget lines entered
O21: =SUM(N20:N21)/9407448 -> 0
B22: 3. Other formula | C22: Quality Lump Sum | D22: 300 | E22: 300 | F22: 300 | G22: LumpSum | H22: 68 | I22: 4 | J22: 42 | K22: 20400 | L22: 1200 | M22: 12600 | N22: 34200
C23: Fixed Costs of Nursery Schools | E23: 105257 | G23: LumpSum | I23: 4 | L23: 421028 | N23: 421028
C24: Additional Delegation - Insurance | D24: 0 | E24: 2913 | F24: 0 | G24: LumpSum | H24: 0 | I24: 4 | J24: 0 | L24: 11652 | N24: 11652
O25: =SUM(N22:N25)/9407448 -> 0.04962876223
B26: 4. Additional funded free hours | C26: No budget lines entered
O27: =SUM(N26:N27)/9407448 -> 0
B28: TOTAL FUNDING FOR EARLY YEARS SINGLE FUNDING FORMULA (3s AND 4s) | K28: 3193224.57 | L28: 1062854.51 | M28: 4299035.7 | N28: 8555114.78 | O28: =SUM(O8:O27) -> 0.9093980408
E30: Unit Value | I30: Number of Units | L30: Anticipated Budget
B31: Row Heading | C31: Description | D31: PVI | E31: Nursery School | F31: Primary Nursery Class | H31: PVI | I31: Nursery School | J31: Primary Nursery Class | K31: PVI | L31: Nursery School | M31: Primary Nursery Class | N31: Total Budget | O31: Proportion of Funding
B32: 5. Two year old Base Rate(s) per hour, per provider type | C32: 2 Year Old Flat Rate | D32: 4.55 | E32: 4.55 | F32: 4.55 | G32: PerHour | H32: 336841.53 | I32: 0 | J32: 0 | K32: 1532628.96 | N32: 1532628.96
B34: 6a. Two year old supplements Quality | C34: No budget lines entered
B36: 6b. Other supplements | C36: No budget lines entered
B38: TOTAL FUNDING FOR EARLY YEARS SINGLE FUNDING FORMULA FOR 2 YEAR OLDs | K38: 1532628.96 | N38: 1532628.96
B41: Row Heading | E41: Description | L41: Anticipated Total Budget | O41: Proportion of Funding
B42: 7. Early years contingency funding | C42: Contingency for additional hours / 2 Year Old Trajectory Funding | N42: 601669
O43: =SUM(N42:N43)/9407448 -> 0.06395666497
B44: 8. Early years centrally retained spending | C44: Central Support / Portage / Fast | N44: 250664
O45: =SUM(N44:N45)/9407448 -> 0.02664527085
B46: TOTAL FUNDING FOR CENTRAL EXPENDITURE | N46: 852333 | O46: =SUM(O42:O45) -> 0.09060193583
B48: EY s251 Notes

Sheet 333 (hidden)
C2: EY Table: FUNDING PERIOD (2013-14)
C3: Sandwell | D3: 333
E5: Unit Value | I5: Number of Units | L5: Anticipated Budget
B6: Row Heading | C6: Description | D6: PVI | E6: Nursery School | F6: Primary Nursery Class | G6: UnitType | H6: PVI | I6: Nursery School | J6: Primary Nursery Class | K6: PVI | L6: Nursery School | M6: Primary Nursery Class | N6: Total Budget | O6: Proportion of Funding
B8: 1. EYSFF (three and four year olds) Base Rate(s) per hour, per provider type | C8: Basic Hourly Rate | D8: 3.35 | E8: 0 | F8: 3.4 | G8: PerHour | H8: 848768 | I8: 0 | J8: 2267827 | K8: 2843372.8 | M8: 7710611.8 | N8: 10553984.6
O9: =SUM(N8:N9)/13341499 -> 0.7910643774
B10: 2a. Supplements: Deprivation | C10: 10-30% of pupils in lowest super output areas | D10: 0.05 | E10: 0 | F10: 0.05 | G10: PerHour | H10: 204402 | I10: 0 | J10: 380203 | K10: 10220.1 | M10: 19010.15 | N10: 29230.25
C11: 31-70% of pupils in lowest super output areas | D11: 0.1 | F11: 0.1 | G11: PerHour | H11: 424992 | J11: 1085761 | K11: 42499.2 | M11: 108576.1 | N11: 151075.3
C12: 71-90% of pupils in lowest super output areas | D12: 0.2 | F12: 0.2 | G12: PerHour | H12: 164616 | J12: 517180 | K12: 32923.2 | M12: 103436 | N12: 136359.2
C13: 91-100% of pupils in lowest super output areas | D13: 0.25 | F13: 0.25 | G13: PerHour | H13: 1710 | J13: 227367 | K13: 427.5 | M13: 56841.75 | N13: 57269.25
O14: =SUM(N10:N14)/13341499 -> 0.02802788502
B15: 2b. Supplements: Quality | C15: No budget lines entered
O16: =SUM(N15:N16)/13341499 -> 0
B17: 2c. Supplements: Flexibility | C17: Additional funding if offer sessions other than 5 days x 3 hours | D17: 0.25 | E17: 0 | F17: 0.25 | G17: PerHour | H17: 699656 | I17: 0 | J17: 74860 | K17: 174914 | M17: 18715 | N17: 193629
O18: =SUM(N17:N18)/13341499 -> 0.0145132867
B19: 2d. Supplements: Sustainability | C19: No budget lines entered
O20: =SUM(N19:N20)/13341499 -> 0
B21: 3. Other formula | C21: No budget lines entered
O22: =SUM(N21:N22)/13341499 -> 0
B23: 4. Additional funded free hours | C23: No budget lines entered
O24: =SUM(N23:N24)/13341499 -> 0
B25: TOTAL FUNDING FOR EARLY YEARS SINGLE FUNDING FORMULA (3s AND 4s) | K25: 3104356.8 | M25: 8017190.8 | N25: 11121547.6 | O25: =SUM(O8:O24) -> 0.8336055491
E27: Unit Value | I27: Number of Units | L27: Anticipated Budget
B28: Row Heading | C28: Description | D28: PVI | E28: Nursery School | F28: Primary Nursery Class | H28: PVI | I28: Nursery School | J28: Primary Nursery Class | K28: PVI | L28: Nursery School | M28: Primary Nursery Class | N28: Total Budget | O28: Proportion of Funding
B29: 5. Two year old Base Rate(s) per hour, per provider type | C29: Two year old Base Rate(s) per hour, per provider type | D29: 4.85 | F29: 4.85 | G29: PerHour | H29: 484500 | J29: 85500 | K29: 2349825 | M29: 414675 | N29: 2764500
B31: 6a. Two year old supplements Quality | C31: No budget lines entered
B33: 6b. Other supplements | C33: No budget lines entered
B35: TOTAL FUNDING FOR EARLY YEARS SINGLE FUNDING FORMULA FOR 2 YEAR OLDs | K35: 2349825 | M35: 414675 | N35: 2764500
B38: Row Heading | E38: Description | L38: Anticipated Total Budget | O38: Proportion of Funding
B39: 7. Early years contingency funding | C39: This contingency includes funding that may potentially be held centrally, funding for increasing places for 2 year olds and childminder allocations. | N39: 2219951.33
O40: =SUM(N39:N40)/13341499 -> 0.1663944456
B41: 8. Early years centrally retained spending | C41: No Description
O42: =SUM(N41:N42)/13341499 -> 0
B43: TOTAL FUNDING FOR CENTRAL EXPENDITURE | N43: 2219951.33 | O43: =SUM(O39:O42) -> 0.1663944456
B45: EY s251 Notes

Sheet 355 (hidden)
C2: EY Table: FUNDING PERIOD (2013-14)
C3: Salford | D3: 355
E5: Unit Value | I5: Number of Units | L5: Anticipated Budget
B6: Row Heading | C6: Description | D6: PVI | E6: Nursery School | F6: Primary Nursery Class | G6: UnitType | H6: PVI | I6: Nursery School | J6: Primary Nursery Class | K6: PVI | L6: Nursery School | M6: Primary Nursery Class | N6: Total Budget | O6: Proportion of Funding
B8: 1. EYSFF (three and four year olds) Base Rate(s) per hour, per provider type | C8: Childminders | D8: 3 | G8: PerHour | H8: 5430 | K8: 16290 | N8: 16290
C9: Children's Centre | D9: 3.26 | G9: PerHour | H9: 61605 | K9: 200832.3 | N9: 200832.3
C10: Day Nursery | D10: 3.21 | G10: PerHour | H10: 447435 | K10: 1436266.35 | N10: 1436266.35
C11: Independent | D11: 3.21 | G11: PerHour | H11: 312735 | K11: 1003879.35 | N11: 1003879.35
C12: Playgroup | D12: 3.2 | G12: PerHour | H12: 109035 | K12: 348912 | N12: 348912
C13: Maintained | F13: 3.38 | G13: PerHour | J13: 1450080 | M13: 4901270.4 | N13: 4901270.4
O14: =SUM(N8:N14)/15951258 -> 0.4957258167
B15: 2a. Supplements: Deprivation | C15: IDACI (P0) | D15: 0 | F15: 0 | G15: PerHour | H15: 19830 | J15: 44390
C16: IDACI (P1) | D16: 0 | F16: 0 | G16: PerHour | H16: 11010 | J16: 88920
C17: IDACI (P2) | D17: 0.1 | F17: 0.1 | G17: PerHour | H17: 7095 | J17: 87210 | K17: 709.5 | M17: 8721 | N17: 9430.5
C18: IDACI (P3) | D18: 0.12 | F18: 0.12 | G18: PerHour | H18: 136920 | J18: 298110 | K18: 16430.4 | M18: 35773.2 | N18: 52203.6
C19: IDACI (P4) | D19: 0.16 | F19: 0.16 | G19: PerHour | H19: 80130 | J19: 147630 | K19: 12820.8 | M19: 23620.8 | N19: 36441.6
C20: IDACI (P5) | D20: 0.19 | F20: 0.19 | G20: PerHour | H20: 117330 | J20: 275310 | K20: 22292.7 | M20: 52308.9 | N20: 74601.6
C21: IDACI (P6) | D21: 0.22 | F21: 0.22 | G21: PerHour | H21: 563925 | J21: 138510 | K21: 124063.5 | M21: 30472.2 | N21: 154535.7
O22: =SUM(N15:N22)/15951258 -> 0.02051330372
B23: 2b. Supplements: Quality | C23: Engage with QIF (Stage 2)) | D23: 0.1 | F23: 0.1 | G23: PerHour | H23: 741960 | J23: 1099530 | K23: 74196 | M23: 109953 | N23: 184149
C24: Graduate Teacher | D24: 0.05 | F24: 0.05 | G24: PerHour | H24: 433470 | J24: 1450080 | K24: 21673.5 | M24: 72504 | N24: 94177.5
O25: =SUM(N23:N25)/15951258 -> 0.01744856111
B26: 2c. Supplements: Flexibility | C26: No budget lines entered
O27: =SUM(N26:N27)/15951258 -> 0
B28: 2d. Supplements: Sustainability | C28: No budget lines entered
O29: =SUM(N28:N29)/15951258 -> 0
B30: 3. Other formula | C30: No budget lines entered
O31: =SUM(N30:N31)/15951258 -> 0
B32: 4. Additional funded free hours | C32: Additional 10 Hours | F32: 3127727 | G32: LumpSum | J32: 1 | M32: 3127727 | N32: 3127727
O33: =SUM(N32:N33)/15951258 -> 0.1960802715
B34: TOTAL FUNDING FOR EARLY YEARS SINGLE FUNDING FORMULA (3s AND 4s) | K34: 3278366.4 | M34: 8362350.5 | N34: 11640716.9 | O34: =SUM(O8:O33) -> 0.7297679531
E36: Unit Value | I36: Number of Units | L36: Anticipated Budget
B37: Row Heading | C37: Description | D37: PVI | E37: Nursery School | F37: Primary Nursery Class | H37: PVI | I37: Nursery School | J37: Primary Nursery Class | K37: PVI | L37: Nursery School | M37: Primary Nursery Class | N37: Total Budget | O37: Proportion of Funding
B38: 5. Two year old Base Rate(s) per hour, per provider type | C38: All PVIs | D38: 4.85 | G38: PerHour | H38: 659723 | K38: 3199656.55 | N38: 3199656.55
B40: 6a. Two year old supplements Quality | C40: No budget lines entered
B42: 6b. Other supplements | C42: No budget lines entered
B44: TOTAL FUNDING FOR EARLY YEARS SINGLE FUNDING FORMULA FOR 2 YEAR OLDs | K44: 3199656.55 | N44: 3199656.55
B47: Row Heading | E47: Description | L47: Anticipated Total Budget | O47: Proportion of Funding
B48: 7. Early years contingency funding | N48: 245990
O49: =SUM(N48:N49)/15951258 -> 0.01542135423
B50: 8. Early years centrally retained spending | N50: 4064551
O51: =SUM(N50:N51)/15951258 -> 0.2548106864
B52: TOTAL FUNDING FOR CENTRAL EXPENDITURE | N52: 4310541 | O52: =SUM(O48:O51) -> 0.2702320406
B54: EY s251 Notes

Sheet 857 (hidden)
C2: EY Table: FUNDING PERIOD (2013-14)
C3: Rutland | D3: 857
E5: Unit Value | I5: Number of Units | L5: Anticipated Budget
B6: Row Heading | C6: Description | D6: PVI | E6: Nursery School | F6: Primary Nursery Class | G6: UnitType | H6: PVI | I6: Nursery School | J6: Primary Nursery Class | K6: PVI | L6: Nursery School | M6: Primary Nursery Class | N6: Total Budget | O6: Proportion of Funding
B8: 1. EYSFF (three and four year olds) Base Rate(s) per hour, per provider type | C8: Single base rate for all types of settings | D8: 4 | E8: 4 | F8: 4 | G8: PerHour | H8: 12000 | I8: 210000 | J8: 30000 | K8: 48000 | L8: 840000 | M8: 120000 | N8: 1008000
O9: =SUM(N8:N9)/1182900 -> 0.8521430383
B10: 2a. Supplements: Deprivation | C10: 50% most deprived children(IDACI bands 6 and 5) | D10: 0.11 | E10: 0.11 | F10: 0.11 | G10: PerHour | H10: 500 | I10: 15000 | J10: 2000 | K10: 55 | L10: 1650 | M10: 220 | N10: 1925
O11: =SUM(N10:N11)/1182900 -> 0.001627356497
B12: 2b. Supplements: Quality
O13: =SUM(N12:N13)/1182900 -> 0
B14: 2c. Supplements: Flexibility | C14: No budget lines entered
O15: =SUM(N14:N15)/1182900 -> 0
B16: 2d. Supplements: Sustainability | C16: No budget lines entered
O17: =SUM(N16:N17)/1182900 -> 0
B18: 3. Other formula | C18: No budget lines entered
O19: =SUM(N18:N19)/1182900 -> 0
B20: 4. Additional funded free hours | C20: No budget lines entered
O21: =SUM(N20:N21)/1182900 -> 0
B22: TOTAL FUNDING FOR EARLY YEARS SINGLE FUNDING FORMULA (3s AND 4s) | K22: 48055 | L22: 841650 | M22: 120220 | N22: 1009925 | O22: =SUM(O8:O21) -> 0.8537703948
E24: Unit Value | I24: Number of Units | L24: Anticipated Budget
B25: Row Heading | C25: Description | D25: PVI | E25: Nursery School | F25: Primary Nursery Class | H25: PVI | I25: Nursery School | J25: Primary Nursery Class | K25: PVI | L25: Nursery School | M25: Primary Nursery Class | N25: Total Budget | O25: Proportion of Funding
B26: 5. Two year old Base Rate(s) per hour, per provider type | C26: single rate for types of settings | D26: 4.85 | E26: 4.85 | F26: 4.85 | G26: PerHour | H26: 1700 | I26: 24300 | J26: 0 | K26: 8245 | L26: 117855 | N26: 126100
B28: 6a. Two year old supplements Quality | C28: No budget lines entered
B30: 6b. Other supplements | C30: No budget lines entered
B32: TOTAL FUNDING FOR EARLY YEARS SINGLE FUNDING FORMULA FOR 2 YEAR OLDs | K32: 8245 | L32: 117855 | N32: 126100
B35: Row Heading | E35: Description | L35: Anticipated Total Budget | O35: Proportion of Funding
B36: 7. Early years contingency funding | C36: This is made up of two elements as follows: firstly, £48,900 two yr old funding to be used to prepare for anticipated increase in eligible children in 2014/15; and, secondly £19,275 available for increase in 3&4 yr olds | N36: 68175
O37: =SUM(N36:N37)/1182900 -> 0.05763378138
B38: 8. Early years centrally retained spending | C38: This is made up of two centrally held budgtes as follows: (a) £28,900 funding to support early years settings with EFFS; and (b) £75,900 to support settings in providing education to under 5's | N38: 104800
O39: =SUM(N38:N39)/1182900 -> 0.08859582382
B40: TOTAL FUNDING FOR CENTRAL EXPENDITURE | N40: 172975 | O40: =SUM(O36:O39) -> 0.1462296052
B42: EY s251 Notes

Sheet 372 (hidden)
C2: EY Table: FUNDING PERIOD (2013-14)
C3: Rotherham | D3: 372
E5: Unit Value | I5: Number of Units | L5: Anticipated Budget
B6: Row Heading | C6: Description | D6: PVI | E6: Nursery School | F6: Primary Nursery Class | G6: UnitType | H6: PVI | I6: Nursery School | J6: Primary Nursery Class | K6: PVI | L6: Nursery School | M6: Primary Nursery Class | N6: Total Budget | O6: Proportion of Funding
B8: 1. EYSFF (three and four year olds) Base Rate(s) per hour, per provider type | C8: Base Rate | D8: 3.53 | E8: 6.4 | F8: 3.53 | G8: PerHour | H8: 836672 | I8: 177726 | J8: 1241726 | K8: 2953452.16 | L8: 1137446.4 | M8: 4383292.78 | N8: 8474191.34
O9: =SUM(N8:N9)/9391988 -> 0.9022787657
B10: 2a. Supplements: Deprivation | C10: Deprivation - Low | D10: 0.05 | E10: 0.05 | F10: 0.05 | G10: PerHour | H10: 278715 | I10: 44916 | J10: 246354 | K10: 13935.75 | L10: 2245.8 | M10: 12317.7 | N10: 28499.25
C11: Deprivation - Medium | D11: 0.1 | E11: 0.1 | F11: 0.1 | G11: PerHour | H11: 278715 | I11: 57000 | J11: 735452 | K11: 27871.5 | L11: 5700 | M11: 73545.2 | N11: 107116.7
C12: Deprivation - High | D12: 0.15 | E12: 0.15 | F12: 0.15 | G12: PerHour | H12: 278715 | I12: 75810 | J12: 259920 | K12: 41807.25 | L12: 11371.5 | M12: 38988 | N12: 92166.75
O13: =SUM(N10:N13)/9391988 -> 0.02425287383
B14: 2b. Supplements: Quality | C14: Quality | D14: 0.1 | E14: 0.1 | F14: 0.1 | G14: PerHour | H14: 445105 | I14: 118487 | J14: 736013 | K14: 44510.5 | L14: 11848.7 | M14: 73601.3 | N14: 129960.5
O15: =SUM(N14:N15)/9391988 -> 0.01383737926
B16: 2c. Supplements: Flexibility | C16: No budget lines entered
O17: =SUM(N16:N17)/9391988 -> 0
B18: 2d. Supplements: Sustainability | C18: No budget lines entered
O19: =SUM(N18:N19)/9391988 -> 0
B20: 3. Other formula | C20: LUMP SUM | E20: 182000 | G20: LumpSum | I20: 3 | L20: 546000 | N20: 546000
C21: RATES | E21: 1 | G21: PerHour | I21: 14053 | L21: 14053 | N21: 14053
O22: =SUM(N20:N22)/9391988 -> 0.05963093224
B23: 4. Additional funded free hours | C23: No budget lines entered
O24: =SUM(N23:N24)/9391988 -> 0
B25: TOTAL FUNDING FOR EARLY YEARS SINGLE FUNDING FORMULA (3s AND 4s) | K25: 3081577.16 | L25: 1728665.4 | M25: 4581744.98 | N25: 9391987.54 | O25: =SUM(O8:O24) -> 0.999999951
E27: Unit Value | I27: Number of Units | L27: Anticipated Budget
B28: Row Heading | C28: Description | D28: PVI | E28: Nursery School | F28: Primary Nursery Class | H28: PVI | I28: Nursery School | J28: Primary Nursery Class | K28: PVI | L28: Nursery School | M28: Primary Nursery Class | N28: Total Budget | O28: Proportion of Funding
B29: 5. Two year old Base Rate(s) per hour, per provider type | D29: 4.85 | E29: 0 | F29: 0 | G29: PerHour | H29: 521237 | I29: 0 | J29: 0 | K29: 2527999.45 | N29: 2527999.45
B31: 6a. Two year old supplements Quality | C31: No budget lines entered
B33: 6b. Other supplements | C33: No budget lines entered
B35: TOTAL FUNDING FOR EARLY YEARS SINGLE FUNDING FORMULA FOR 2 YEAR OLDs | K35: 2527999.45 | N35: 2527999.45
B38: Row Heading | E38: Description | L38: Anticipated Total Budget | O38: Proportion of Funding
B39: 7. Early years contingency funding | C39: No budget lines entered
O40: =SUM(N39:N40)/9391988 -> 0
B41: 8. Early years centrally retained spending | C41: No budget lines entered
O42: =SUM(N41:N42)/9391988 -> 0
B43: TOTAL FUNDING FOR CENTRAL EXPENDITURE | O43: =SUM(O39:O42) -> 0
B45: EY s251 Notes

Sheet 354 (hidden)
C2: EY Table: FUNDING PERIOD (2013-14)
C3: Rochdale | D3: 354
E5: Unit Value | I5: Number of Units | L5: Anticipated Budget
B6: Row Heading | C6: Description | D6: PVI | E6: Nursery School | F6: Primary Nursery Class | G6: UnitType | H6: PVI | I6: Nursery School | J6: Primary Nursery Class | K6: PVI | L6: Nursery School | M6: Primary Nursery Class | N6: Total Budget | O6: Proportion of Funding
B8: 1. EYSFF (three and four year olds) Base Rate(s) per hour, per provider type | C8: Playgroups | D8: 2.89 | G8: PerHour | H8: 326346 | K8: 943139.94 | N8: 943139.94
C9: Private Day Nurseries | D9: 3.11 | G9: PerHour | H9: 637182 | K9: 1981636.02 | N9: 1981636.02
C10: Independent Schools | D10: 3.42 | G10: PerHour | H10: 40188 | K10: 137442.96 | N10: 137442.96
C11: Maintained Nursery Schools | E11: 6.38 | G11: PerHour | I11: 161943 | L11: 1033196.34 | N11: 1033196.34
C12: Nursery Classes | F12: 3.9 | G12: PerHour | J12: 841755 | M12: 3282844.5 | N12: 3282844.5
O13: =SUM(N8:N13)/9206125 -> 0.8014511817
B14: 2a. Supplements: Deprivation | C14: Deprevation Supplement | D14: 0.07 | E14: 0.11 | F14: 0.09 | G14: PerHour | H14: 989190 | I14: 161943 | J14: 813198 | K14: 69243.3 | L14: 17813.73 | M14: 73187.82 | N14: 160244.85
O15: =SUM(N14:N15)/9206125 -> 0.01740633002
B16: 2b. Supplements: Quality | C16: >50% Level 3 | D16: 0.02 | E16: 0.02 | F16: 0.02 | G16: PerHour | H16: 903612 | I16: 161943 | J16: 820425 | K16: 18072.24 | L16: 3238.86 | M16: 16408.5 | N16: 37719.6
C17: All Level 3 | D17: 0.03 | G17: PerHour | H17: 734032 | K17: 22020.96 | N17: 22020.96
C18: EYP | D18: 0.05 | G18: PerHour | H18: 142297 | K18: 7114.85 | N18: 7114.85
C19: Graduate/QTS | D19: 0.05 | E19: 0.05 | F19: 0.05 | G19: PerHour | H19: 112404 | I19: 161943 | J19: 805995 | K19: 5620.2 | L19: 8097.15 | M19: 40299.75 | N19: 54017.1
C20: Quality Supplement | D20: 1000 | E20: 1000 | F20: 1000 | G20: LumpSum | H20: 79 | I20: 4 | J20: 38 | K20: 79000 | L20: 4000 | M20: 38000 | N20: 121000
O21: =SUM(N16:N21)/9206125 -> 0.02627299868
B22: 2c. Supplements: Flexibility | C22: Flexibility Supplement | D22: 0.32 | E22: 0.64 | F22: 0.25 | G22: PerHour | H22: 1003716 | I22: 161943 | J22: 841755 | K22: 321189.12 | L22: 103643.52 | M22: 210438.75 | N22: 635271.39
O23: =SUM(N22:N23)/9206125 -> 0.06900529702
B24: 2d. Supplements: Sustainability | C24: No budget lines entered
O25: =SUM(N24:N25)/9206125 -> 0
B26: 3. Other formula | C26: No budget lines entered
O27: =SUM(N26:N27)/9206125 -> 0
B28: 4. Additional funded free hours | C28: No budget lines entered
O29: =SUM(N28:N29)/9206125 -> 0
B30: TOTAL FUNDING FOR EARLY YEARS SINGLE FUNDING FORMULA (3s AND 4s) | K30: 3584479.59 | L30: 1169989.6 | M30: 3661179.32 | N30: 8415648.51 | O30: =SUM(O8:O29) -> 0.9141358074
E32: Unit Value | I32: Number of Units | L32: Anticipated Budget
B33: Row Heading | C33: Description | D33: PVI | E33: Nursery School | F33: Primary Nursery Class | H33: PVI | I33: Nursery School | J33: Primary Nursery Class | K33: PVI | L33: Nursery School | M33: Primary Nursery Class | N33: Total Budget | O33: Proportion of Funding
B34: 5. Two year old Base Rate(s) per hour, per provider type | C34: Base rate 2 year olds | D34: 4.95 | G34: PerHour | H34: 542020 | K34: 2682999 | N34: 2682999
B36: 6a. Two year old supplements Quality | C36: No budget lines entered
B38: 6b. Other supplements | C38: No budget lines entered
B40: TOTAL FUNDING FOR EARLY YEARS SINGLE FUNDING FORMULA FOR 2 YEAR OLDs | K40: 2682999 | N40: 2682999
B43: Row Heading | E43: Description | L43: Anticipated Total Budget | O43: Proportion of Funding
B44: 7. Early years contingency funding | C44: Set aside for any unanticipated increase in take up | N44: 60155
O45: =SUM(N44:N45)/9206125 -> 0.006534236717
B46: 8. Early years centrally retained spending | C46: Sufficiency and Access | N46: 170000
C47: Graduate Leader Fund | N47: 243000
C48: Training for Providers | N48: 177000
C49: Education Welfare | N49: 95000
C50: Insurance subcriptions etc. | N50: 45321
O51: =SUM(N46:N51)/9206125 -> 0.07932990265
B52: TOTAL FUNDING FOR CENTRAL EXPENDITURE | N52: 790476 | O52: =SUM(O44:O51) -> 0.08586413936
B54: EY s251 Notes

Sheet 318 (hidden)
C2: EY Table: FUNDING PERIOD (2013-14)
C3: Richmond upon Thames | D3: 318
E5: Unit Value | I5: Number of Units | L5: Anticipated Budget
B6: Row Heading | C6: Description | D6: PVI | E6: Nursery School | F6: Primary Nursery Class | G6: UnitType | H6: PVI | I6: Nursery School | J6: Primary Nursery Class | K6: PVI | L6: Nursery School | M6: Primary Nursery Class | N6: Total Budget | O6: Proportion of Funding
B8: 1. EYSFF (three and four year olds) Base Rate(s) per hour, per provider type | C8: Basic Hourly Rate - 3 & 4 year olds participation up to a maximum of 15 hours per week, 38 weeks in a year | D8: 3.5 | E8: 3.5 | F8: 3.5 | G8: PerHour | H8: 1426238.82 | I8: 44460 | J8: 548340 | K8: 4991835.87 | L8: 155610 | M8: 1919190 | N8: 7066635.87
O9: =SUM(N8:N9)/8193589 -> 0.862459158
B10: 2a. Supplements: Deprivation | C10: Social Deprivation Supplement for each hour of participation by child resident in postcode deemed to be deprived using IDACI (0.15 or above) | D10: 0.38 | E10: 0.38 | F10: 0.38 | G10: PerHour | H10: 288217 | I10: 9229 | J10: 196575 | K10: 109522.46 | L10: 3507.02 | M10: 74698.5 | N10: 187727.98
O11: =SUM(N10:N11)/8193589 -> 0.02291156903
B12: 2b. Supplements: Quality | C12: No budget lines entered
O13: =SUM(N12:N13)/8193589 -> 0
B14: 2c. Supplements: Flexibility | C14: No budget lines entered
O15: =SUM(N14:N15)/8193589 -> 0
B16: 2d. Supplements: Sustainability | C16: No budget lines entered
O17: =SUM(N16:N17)/8193589 -> 0
B18: 3. Other formula | C18: Maintained Nursery School - NNDR in line with Schools' Funding Formula | E18: 15204 | G18: LumpSum | I18: 1 | L18: 15204 | N18: 15204
C19: Maintained Nursery School - Lump Sum in line with Schools' Funding Formula | E19: 160000 | G19: LumpSum | I19: 1 | L19: 160000 | N19: 160000
O20: =SUM(N18:N20)/8193589 -> 0.02138305937
B21: 4. Additional funded free hours | C21: No budget lines entered
O22: =SUM(N21:N22)/8193589 -> 0
B23: TOTAL FUNDING FOR EARLY YEARS SINGLE FUNDING FORMULA (3s AND 4s) | K23: 5101358.33 | L23: 334321.02 | M23: 1993888.5 | N23: 7429567.85 | O23: =SUM(O8:O22) -> 0.9067537864
E25: Unit Value | I25: Number of Units | L25: Anticipated Budget
B26: Row Heading | C26: Description | D26: PVI | E26: Nursery School | F26: Primary Nursery Class | H26: PVI | I26: Nursery School | J26: Primary Nursery Class | K26: PVI | L26: Nursery School | M26: Primary Nursery Class | N26: Total Budget | O26: Proportion of Funding
B27: 5. Two year old Base Rate(s) per hour, per provider type | C27: Basic Hourly Rate - 2 year olds participation up to a maximum of 15 hours per week, 38 weeks in a year | D27: 6.1 | G27: PerHour | H27: 137250 | K27: 837225 | N27: 837225
B29: 6a. Two year old supplements Quality | C29: No budget lines entered
B31: 6b. Other supplements | C31: No budget lines entered
B33: TOTAL FUNDING FOR EARLY YEARS SINGLE FUNDING FORMULA FOR 2 YEAR OLDs | K33: 837225 | N33: 837225
B36: Row Heading | E36: Description | L36: Anticipated Total Budget | O36: Proportion of Funding
B37: 7. Early years contingency funding | C37: No budget lines entered
O38: =SUM(N37:N38)/8193589 -> 0
B39: 8. Early years centrally retained spending | C39: General management and capacity building | N39: 764021
O40: =SUM(N39:N40)/8193589 -> 0.09324619529
B41: TOTAL FUNDING FOR CENTRAL EXPENDITURE | N41: 764021 | O41: =SUM(O37:O40) -> 0.09324619529
B43: EY s251 Notes

Sheet 807 (hidden)
C2: EY Table: FUNDING PERIOD (2013-14)
C3: Redcar and Cleveland | D3: 807
E5: Unit Value | I5: Number of Units | L5: Anticipated Budget
B6: Row Heading | C6: Description | D6: PVI | E6: Nursery School | F6: Primary Nursery Class | G6: UnitType | H6: PVI | I6: Nursery School | J6: Primary Nursery Class | K6: PVI | L6: Nursery School | M6: Primary Nursery Class | N6: Total Budget | O6: Proportion of Funding
B8: 1. EYSFF (three and four year olds) Base Rate(s) per hour, per provider type | C8: Base Rate Per Hour | D8: 3.61 | E8: 0 | F8: 3.41 | G8: PerHour | H8: 48476 | I8: 0 | J8: 1046054 | K8: 174998.36 | M8: 3567044.14 | N8: 3742042.5
O9: =SUM(N8:N9)/4641222 -> 0.8062623378
B10: 2a. Supplements: Deprivation | C10: Based on IDACI bandings | D10: 0.47 | E10: 0 | F10: 0.47 | G10: PerHour | H10: 17021 | I10: 0 | J10: 668074 | K10: 7999.87 | M10: 313994.78 | N10: 321994.65
O11: =SUM(N10:N11)/4641222 -> 0.0693771274
B12: 2b. Supplements: Quality | D12: 0 | E12: 0 | F12: 0 | G12: PerHour | H12: 0 | I12: 0 | J12: 0
O13: =SUM(N12:N13)/4641222 -> 0
B14: 2c. Supplements: Flexibility | C14: No budget lines entered
O15: =SUM(N14:N15)/4641222 -> 0
B16: 2d. Supplements: Sustainability | C16: No budget lines entered
O17: =SUM(N16:N17)/4641222 -> 0
B18: 3. Other formula | C18: No budget lines entered
O19: =SUM(N18:N19)/4641222 -> 0
B20: 4. Additional funded free hours | C20: No budget lines entered
O21: =SUM(N20:N21)/4641222 -> 0
B22: TOTAL FUNDING FOR EARLY YEARS SINGLE FUNDING FORMULA (3s AND 4s) | K22: 182998.23 | M22: 3881038.92 | N22: 4064037.15 | O22: =SUM(O8:O21) -> 0.8756394652
E24: Unit Value | I24: Number of Units | L24: Anticipated Budget
B25: Row Heading | C25: Description | D25: PVI | E25: Nursery School | F25: Primary Nursery Class | H25: PVI | I25: Nursery School | J25: Primary Nursery Class | K25: PVI | L25: Nursery School | M25: Primary Nursery Class | N25: Total Budget | O25: Proportion of Funding
B26: 5. Two year old Base Rate(s) per hour, per provider type | C26: Base Rate Per Hour | D26: 4.84 | E26: 0 | F26: 4.84 | G26: PerHour | H26: 182966 | I26: 0 | J26: 34205 | K26: 885555.44 | M26: 165552.2 | N26: 1051107.64
B28: 6a. Two year old supplements Quality | C28: Base Rate per Hour | D28: 4.84 | E28: 0 | F28: 4.84 | G28: PerHour | H28: 182986 | I28: 0 | J28: 34205 | K28: 885652.24 | M28: 165552.2 | N28: 1051204.44
B30: 6b. Other supplements | C30: No budget lines entered
B32: TOTAL FUNDING FOR EARLY YEARS SINGLE FUNDING FORMULA FOR 2 YEAR OLDs | K32: 1771207.68 | M32: 331104.4 | N32: 2102312.08
B35: Row Heading | E35: Description | L35: Anticipated Total Budget | O35: Proportion of Funding
B36: 7. Early years contingency funding | C36: No budget lines entered
O37: =SUM(N36:N37)/4641222 -> 0
B38: 8. Early years centrally retained spending | C38: Central expenditure | N38: 577185
O39: =SUM(N38:N39)/4641222 -> 0.1243605671
B40: TOTAL FUNDING FOR CENTRAL EXPENDITURE | N40: 577185 | O40: =SUM(O36:O39) -> 0.1243605671
B42: EY s251 Notes

Sheet 317 (hidden)
C2: EY Table: FUNDING PERIOD (2013-14)
C3: Redbridge | D3: 317
E5: Unit Value | I5: Number of Units | L5: Anticipated Budget
B6: Row Heading | C6: Description | D6: PVI | E6: Nursery School | F6: Primary Nursery Class | G6: UnitType | H6: PVI | I6: Nursery School | J6: Primary Nursery Class | K6: PVI | L6: Nursery School | M6: Primary Nursery Class | N6: Total Budget | O6: Proportion of Funding
B8: 1. EYSFF (three and four year olds) Base Rate(s) per hour, per provider type | C8: The same base rate is used for any early years provider | D8: 3.16 | F8: 3.16 | G8: PerHour | H8: 1575646 | J8: 1539917 | K8: 4979041.36 | M8: 4866137.72 | N8: 9845179.08
O9: =SUM(N8:N9)/16614515 -> 0.5925649398
B10: 2a. Supplements: Deprivation | C10: The % of assessed pupils as category 4 of the ACORN index is applied to the total nursery roll. Pupils above the average are funded. The averages are 22.87% for PVI and 27.85% for primary nursery classes. Funding is through a rate per pupil | D10: 406.65 | F10: 406.65 | G10: PerChild | H10: 104 | J10: 107 | K10: 42291.6 | M10: 43511.55 | N10: 85803.15
C11: The percentage of assessed pupils falling into catergory 5 of the ACORN index is applied to the total bursery roll. All pupils are funded. Funding is through a rate per pupil | D11: 647.36 | F11: 647.36 | G11: PerChild | H11: 113 | J11: 118 | K11: 73151.68 | M11: 76388.48 | N11: 149540.16
O12: =SUM(N10:N12)/16614515 -> 0.01416492206
B13: 2b. Supplements: Quality | C13: No budget lines entered
O14: =SUM(N13:N14)/16614515 -> 0
B15: 2c. Supplements: Flexibility | C15: No budget lines entered
O16: =SUM(N15:N16)/16614515 -> 0
B17: 2d. Supplements: Sustainability | C17: No budget lines entered
O18: =SUM(N17:N18)/16614515 -> 0
B19: 3. Other formula | C19: Lump sum to reflect fixed costs for PVI nurseries with less than 20 children receiving the full free entitlement | D19: 5070 | G19: LumpSum | H19: 21 | K19: 106470 | N19: 106470
C20: Lumpsum to refelct fixed costs for PVI nurseries with between 20 and 40 children receiving the full free entitlement | D20: 10143 | G20: LumpSum | H20: 41 | K20: 415863 | N20: 415863
C21: Lump Sum to reflect fixed costs for PVI nurseries with more than 40 children receiving the full free entitlement | D21: 15213 | G21: LumpSum | H21: 36 | K21: 547668 | N21: 547668
C22: Lump Sum to refelct fixed costs for Primary School nursery classes (schools on a shared site) | F22: 10871.8 | G22: LumpSum | J22: 5 | M22: 54359 | N22: 54359
C23: Lumpsum to refelct fixed costs for Primary School nursery classes (schools on their own site) | F23: 12668.95 | G23: LumpSum | J23: 41 | M23: 519426.95 | N23: 519426.95
O24: =SUM(N19:N24)/16614515 -> 0.09893680014
B25: 4. Additional funded free hours | C25: No budget lines entered
O26: =SUM(N25:N26)/16614515 -> 0
B27: TOTAL FUNDING FOR EARLY YEARS SINGLE FUNDING FORMULA (3s AND 4s) | K27: 6164485.64 | M27: 5559823.7 | N27: 11724309.34 | O27: =SUM(O8:O26) -> 0.705666662
E29: Unit Value | I29: Number of Units | L29: Anticipated Budget
B30: Row Heading | C30: Description | D30: PVI | E30: Nursery School | F30: Primary Nursery Class | H30: PVI | I30: Nursery School | J30: Primary Nursery Class | K30: PVI | L30: Nursery School | M30: Primary Nursery Class | N30: Total Budget | O30: Proportion of Funding
B31: 5. Two year old Base Rate(s) per hour, per provider type | C31: Hourly rate for free entitlement fo r2 Y Olds | D31: 6 | G31: PerHour | H31: 72220.66 | K31: 433323.96 | N31: 433323.96
B33: 6a. Two year old supplements Quality | C33: No budget lines entered
B35: 6b. Other supplements | C35: No budget lines entered
B37: TOTAL FUNDING FOR EARLY YEARS SINGLE FUNDING FORMULA FOR 2 YEAR OLDs | K37: 433323.96 | N37: 433323.96
B40: Row Heading | E40: Description | L40: Anticipated Total Budget | O40: Proportion of Funding
B41: 7. Early years contingency funding | C41: Contingency held for possible pupil growth in 2013-14 for 2, 3 and 4 YOlds | N41: 3410281
O42: =SUM(N41:N42)/16614515 -> 0.2052591364
B43: 8. Early years centrally retained spending | C43: Central expenditure for teams supporting the Early Years service funded by DSG | N43: 1479925
O44: =SUM(N43:N44)/16614515 -> 0.08907422215
B45: TOTAL FUNDING FOR CENTRAL EXPENDITURE | N45: 4890206 | O45: =SUM(O41:O44) -> 0.2943333585
B47: EY s251 Notes

Sheet 870 (hidden)
C2: EY Table: FUNDING PERIOD (2013-14)
C3: Reading | D3: 870
E5: Unit Value | I5: Number of Units | L5: Anticipated Budget
B6: Row Heading | C6: Description | D6: PVI | E6: Nursery School | F6: Primary Nursery Class | G6: UnitType | H6: PVI | I6: Nursery School | J6: Primary Nursery Class | K6: PVI | L6: Nursery School | M6: Primary Nursery Class | N6: Total Budget | O6: Proportion of Funding
B8: 1. EYSFF (three and four year olds) Base Rate(s) per hour, per provider type | C8: Maintained Nursery | E8: 4.83 | G8: PerHour | I8: 222445 | L8: 1074409.35 | N8: 1074409.35
C9: Maintained Nursery with rent | E9: 5.19 | G9: PerHour | I9: 65400 | L9: 339426 | N9: 339426
C10: Privat and Voluntary | D10: 4 | G10: PerHour | H10: 681456 | K10: 2725824 | N10: 2725824
C11: Childminders | D11: 4 | G11: PerHour | H11: 156 | K11: 624 | N11: 624
C12: Independent Schools | D12: 3.56 | G12: PerHour | H12: 91699 | K12: 326448.44 | N12: 326448.44
C13: Maintained Primary | F13: 3.3 | G13: PerHour | J13: 495844 | M13: 1636285.2 | N13: 1636285.2
C14: Primary Academy | F14: 3.3 | G14: PerHour | J14: 53265 | M14: 175774.5 | N14: 175774.5
O15: =SUM(N8:N15)/7730213 -> 0.8122404247
B16: 2a. Supplements: Deprivation | C16: Hourly Rate for children that live in the most deprived post-codes based on IDACI scores. The cut-off score above which a supplement is triggered has been chosen so that approximately 25% of the children in settings attract the supplement | D16: 1.39 | E16: 1.39 | F16: 1.39 | G16: PerHour | H16: 126357 | I16: 87780 | J16: 203370 | K16: 175636.23 | L16: 122014.2 | M16: 282684.3 | N16: 580334.73
O17: =SUM(N16:N17)/7730213 -> 0.07507357559
B18: 2b. Supplements: Quality | C18: No budget lines entered
O19: =SUM(N18:N19)/7730213 -> 0
B20: 2c. Supplements: Flexibility | C20: No budget lines entered
O21: =SUM(N20:N21)/7730213 -> 0
B22: 2d. Supplements: Sustainability | C22: No budget lines entered
O23: =SUM(N22:N23)/7730213 -> 0
B24: 3. Other formula | C24: Mainstreamed Grants previously paid to maintained nursery schools. Schools were paid the same amounts as were rececived during 2012-13 | E24: 169187 | G24: LumpSum | I24: 1 | L24: 169187 | N24: 169187
O25: =SUM(N24:N25)/7730213 -> 0.02188646031
B26: 4. Additional funded free hours | C26: No budget lines entered
O27: =SUM(N26:N27)/7730213 -> 0
B28: TOTAL FUNDING FOR EARLY YEARS SINGLE FUNDING FORMULA (3s AND 4s) | K28: 3228532.67 | L28: 1705036.55 | M28: 2094744 | N28: 7028313.22 | O28: =SUM(O8:O27) -> 0.9092004606
E30: Unit Value | I30: Number of Units | L30: Anticipated Budget
B31: Row Heading | C31: Description | D31: PVI | E31: Nursery School | F31: Primary Nursery Class | H31: PVI | I31: Nursery School | J31: Primary Nursery Class | K31: PVI | L31: Nursery School | M31: Primary Nursery Class | N31: Total Budget | O31: Proportion of Funding
B32: 5. Two year old Base Rate(s) per hour, per provider type | C32: Place funding | D32: 5 | E32: 5 | F32: 5 | G32: PerHour | H32: 210043 | I32: 52511 | J32: 11400 | K32: 1050215 | L32: 262555 | M32: 57000 | N32: 1369770
B34: 6a. Two year old supplements Quality | C34: No budget lines entered
B36: 6b. Other supplements | C36: No budget lines entered
B38: TOTAL FUNDING FOR EARLY YEARS SINGLE FUNDING FORMULA FOR 2 YEAR OLDs | K38: 1050215 | L38: 262555 | M38: 57000 | N38: 1369770
B41: Row Heading | E41: Description | L41: Anticipated Total Budget | O41: Proportion of Funding
B42: 7. Early years contingency funding | C42: Contingency for full-time funding paid to qualifying settings where the child meets certain criteria.Settings can apply for the funding through an Early Yeras panel created by Schools' Forum | N42: 50000
C43: Contingency for changing mix of provision for 3 and 4 year olds | N43: 47000
O44: =SUM(N42:N44)/7730213 -> 0.01254816653
B45: 8. Early years centrally retained spending | C45: Continuing central retentions for 3 and 4 year olds | N45: 66900
C46: Centrally Retained 2 year old funding | N46: 538000
O47: =SUM(N45:N47)/7730213 -> 0.07825140135
B48: TOTAL FUNDING FOR CENTRAL EXPENDITURE | N48: 701900 | O48: =SUM(O42:O47) -> 0.09079956788
B50: EY s251 Notes

Sheet 851 (hidden)
C2: EY Table: FUNDING PERIOD (2013-14)
C3: Portsmouth | D3: 851
E5: Unit Value | I5: Number of Units | L5: Anticipated Budget
B6: Row Heading | C6: Description | D6: PVI | E6: Nursery School | F6: Primary Nursery Class | G6: UnitType | H6: PVI | I6: Nursery School | J6: Primary Nursery Class | K6: PVI | L6: Nursery School | M6: Primary Nursery Class | N6: Total Budget | O6: Proportion of Funding
B8: 1. EYSFF (three and four year olds) Base Rate(s) per hour, per provider type | C8: £3.77 for all providers and deprivation rate is the same | D8: 3.77 | E8: 3.77 | F8: 3.77 | G8: PerHour | H8: 1413785 | I8: 49245 | J8: 307069 | K8: 5329969.45 | L8: 185653.65 | M8: 1157650.13 | N8: 6673273.23
O9: =SUM(N8:N9)/10393299 -> 0.6420745934
B10: 2a. Supplements: Deprivation | C10: Deprivation Band 5 | D10: 0 | E10: 0 | F10: 0 | G10: PerHour | H10: 490457 | I10: 0 | J10: 7376
C11: Deprivation Band 4 | D11: 0.11 | E11: 0.11 | F11: 0.11 | G11: PerHour | H11: 391063 | I11: 0 | J11: 0 | K11: 43016.93 | N11: 43016.93
C12: Deprivation Band 3 | D12: 0.22 | E12: 0.22 | F12: 0.22 | G12: PerHour | H12: 317877 | I12: 0 | J12: 0 | K12: 69932.94 | N12: 69932.94
C13: Deprivation Band 2 | D13: 0.34 | E13: 0.34 | F13: 0.34 | G13: PerHour | H13: 104492 | I13: 0 | J13: 41701 | K13: 35527.28 | M13: 14178.34 | N13: 49705.62
C14: Deprivation Band 1 | D14: 0.45 | E14: 0.45 | F14: 0.45 | G14: PerHour | H14: 109896 | I14: 49245 | J14: 257992 | K14: 49453.2 | L14: 22160.25 | M14: 116096.4 | N14: 187709.85
O15: =SUM(N10:N15)/10393299 -> 0.03371069571
B16: 2b. Supplements: Quality | C16: Lump Sum | D16: 6000 | E16: 6000 | F16: 6000 | G16: LumpSum | H16: 18 | I16: 1 | J16: 11 | K16: 108000 | L16: 6000 | M16: 66000 | N16: 180000
O17: =SUM(N16:N17)/10393299 -> 0.01731885131
B18: 2c. Supplements: Flexibility | C18: No budget lines entered
O19: =SUM(N18:N19)/10393299 -> 0
B20: 2d. Supplements: Sustainability | C20: No budget lines entered
O21: =SUM(N20:N21)/10393299 -> 0
B22: 3. Other formula | C22: Given as a lump sum | E22: 173686 | F22: 6234 | G22: LumpSum | I22: 1 | J22: 11 | L22: 173686 | M22: 68574 | N22: 242260
O23: =SUM(N22:N23)/10393299 -> 0.02330924955
B24: 4. Additional funded free hours | C24: No budget lines entered
O25: =SUM(N24:N25)/10393299 -> 0
B26: TOTAL FUNDING FOR EARLY YEARS SINGLE FUNDING FORMULA (3s AND 4s) | K26: 5635899.8 | L26: 387499.9 | M26: 1422498.87 | N26: 7445898.57 | O26: =SUM(O8:O25) -> 0.71641339
E28: Unit Value | I28: Number of Units | L28: Anticipated Budget
B29: Row Heading | C29: Description | D29: PVI | E29: Nursery School | F29: Primary Nursery Class | H29: PVI | I29: Nursery School | J29: Primary Nursery Class | K29: PVI | L29: Nursery School | M29: Primary Nursery Class | N29: Total Budget | O29: Proportion of Funding
B30: 5. Two year old Base Rate(s) per hour, per provider type | C30: £4.85 for PVI providers | D30: 4.85 | G30: PerHour | H30: 351464 | K30: 1704600.4 | N30: 1704600.4
B32: 6a. Two year old supplements Quality | C32: No budget lines entered
B34: 6b. Other supplements | C34: No budget lines entered
B36: TOTAL FUNDING FOR EARLY YEARS SINGLE FUNDING FORMULA FOR 2 YEAR OLDs | K36: 1704600.4 | N36: 1704600.4
B39: Row Heading | E39: Description | L39: Anticipated Total Budget | O39: Proportion of Funding
B40: 7. Early years contingency funding | C40: No budget lines entered
O41: =SUM(N40:N41)/10393299 -> 0
B42: 8. Early years centrally retained spending | C42: 2 Year Old Trajectory Funding £700,000 planned spend agreed with schools forum | N42: 2947400
O43: =SUM(N42:N43)/10393299 -> 0.2835865686
B44: TOTAL FUNDING FOR CENTRAL EXPENDITURE | N44: 2947400 | O44: =SUM(O40:O43) -> 0.2835865686
B46: EY s251 Notes

Sheet 836 (hidden)
C2: EY Table: FUNDING PERIOD (2013-14)
C3: Poole | D3: 836
E5: Unit Value | I5: Number of Units | L5: Anticipated Budget
B6: Row Heading | C6: Description | D6: PVI | E6: Nursery School | F6: Primary Nursery Class | G6: UnitType | H6: PVI | I6: Nursery School | J6: Primary Nursery Class | K6: PVI | L6: Nursery School | M6: Primary Nursery Class | N6: Total Budget | O6: Proportion of Funding
B8: 1. EYSFF (three and four year olds) Base Rate(s) per hour, per provider type | C8: Base rates - PVI voluntary & Schools | D8: 3.16 | F8: 3.65 | G8: PerHour | H8: 361403 | J8: 98467 | K8: 1142033.48 | M8: 359404.55 | N8: 1501438.03
C9: Base rates - PVI private | D9: 3.22 | G9: PerHour | H9: 576393 | K9: 1855985.46 | N9: 1855985.46
C10: Base Rates - childminder | D10: 4.3 | G10: PerHour | H10: 36526 | K10: 157061.8 | N10: 157061.8
O11: =SUM(N8:N11)/4081860 -> 0.8610009383
B12: 2a. Supplements: Deprivation | C12: Deprivation - Low (20% to 30%) | D12: 0.2 | F12: 0.2 | G12: PerHour | H12: 156076 | J12: 50065 | K12: 31215.2 | M12: 10013 | N12: 41228.2
C13: Deprivation - High (over 30%) | D13: 0.45 | F13: 0.6 | G13: PerHour | H13: 341497 | J13: 48403 | K13: 153673.65 | M13: 29041.8 | N13: 182715.45
O14: =SUM(N12:N14)/4081860 -> 0.05486313837
B15: 2b. Supplements: Quality | C15: Rating of good and above | D15: 0.35 | F15: 0.2 | G15: PerHour | H15: 893449 | J15: 98468 | K15: 312707.15 | M15: 19693.6 | N15: 332400.75
O16: =SUM(N15:N16)/4081860 -> 0.0814336479
B17: 2c. Supplements: Flexibility | C17: Extended Opening Hours | D17: 0.03 | G17: PerHour | H17: 367693 | K17: 11030.79 | N17: 11030.79
O18: =SUM(N17:N18)/4081860 -> 0.002702393027
B19: 2d. Supplements: Sustainability | C19: No budget lines entered
O20: =SUM(N19:N20)/4081860 -> 0
B21: 3. Other formula | C21: No budget lines entered
O22: =SUM(N21:N22)/4081860 -> 0
B23: 4. Additional funded free hours | C23: No budget lines entered
O24: =SUM(N23:N24)/4081860 -> 0
B25: TOTAL FUNDING FOR EARLY YEARS SINGLE FUNDING FORMULA (3s AND 4s) | K25: 3663707.53 | M25: 418152.95 | N25: 4081860.48 | O25: =SUM(O8:O24) -> 1.000000118
E27: Unit Value | I27: Number of Units | L27: Anticipated Budget
B28: Row Heading | C28: Description | D28: PVI | E28: Nursery School | F28: Primary Nursery Class | H28: PVI | I28: Nursery School | J28: Primary Nursery Class | K28: PVI | L28: Nursery School | M28: Primary Nursery Class | N28: Total Budget | O28: Proportion of Funding
B29: 5. Two year old Base Rate(s) per hour, per provider type | C29: Base rate | D29: 4.88 | G29: PerHour | H29: 170370 | K29: 831405.6 | N29: 831405.6
B31: 6a. Two year old supplements Quality | C31: No budget lines entered
B33: 6b. Other supplements | C33: No budget lines entered
B35: TOTAL FUNDING FOR EARLY YEARS SINGLE FUNDING FORMULA FOR 2 YEAR OLDs | K35: 831405.6 | N35: 831405.6
B38: Row Heading | E38: Description | L38: Anticipated Total Budget | O38: Proportion of Funding
B39: 7. Early years contingency funding | C39: No budget lines entered
O40: =SUM(N39:N40)/4081860 -> 0
B41: 8. Early years centrally retained spending | C41: No budget lines entered
O42: =SUM(N41:N42)/4081860 -> 0
B43: TOTAL FUNDING FOR CENTRAL EXPENDITURE | O43: =SUM(O39:O42) -> 0
B45: EY s251 Notes

Sheet 879 (hidden)
C2: EY Table: FUNDING PERIOD (2013-14)
C3: Plymouth | D3: 879
E5: Unit Value | I5: Number of Units | L5: Anticipated Budget
B6: Row Heading | C6: Description | D6: PVI | E6: Nursery School | F6: Primary Nursery Class | G6: UnitType | H6: PVI | I6: Nursery School | J6: Primary Nursery Class | K6: PVI | L6: Nursery School | M6: Primary Nursery Class | N6: Total Budget | O6: Proportion of Funding
B8: 1. EYSFF (three and four year olds) Base Rate(s) per hour, per provider type | C8: Basic Funding | D8: 3.91 | E8: 4.81 | F8: 4.63 | G8: PerHour | H8: 1599940 | I8: 78880 | J8: 447877 | K8: 6255765.4 | L8: 379412.8 | M8: 2073670.51 | N8: 8708848.71
C9: Child Minder Basic Funding | D9: 4.68 | E9: 0 | F9: 0 | G9: PerHour | H9: 11429 | I9: 1 | J9: 1 | K9: 53487.72 | N9: 53487.72
O10: =SUM(N8:N10)/10371904 -> 0.8448146483
B11: 2a. Supplements: Deprivation | C11: Band 3 Funding | D11: 0.31 | E11: 0.31 | F11: 0.31 | G11: PerHour | H11: 146595 | I11: 11190 | J11: 86320 | K11: 45444.45 | L11: 3468.9 | M11: 26759.2 | N11: 75672.55
C12: Band 4 Funding | D12: 0.45 | E12: 0.45 | F12: 0.45 | G12: PerHour | H12: 142630.5 | I12: 5715 | J12: 74568 | K12: 64183.73 | L12: 2571.75 | M12: 33555.6 | N12: 100311.08
C13: Band 5 Funding | D13: 0.85 | E13: 0.85 | F13: 0.85 | G13: PerHour | H13: 80104.5 | I13: 8565 | J13: 69089.5 | K13: 68088.83 | L13: 7280.25 | M13: 58726.08 | N13: 134095.16
C14: Band 4 Funding | D14: 2.43 | E14: 2.43 | F14: 2.43 | G14: PerHour | H14: 40563.5 | I14: 1770 | J14: 37150 | K14: 98569.31 | L14: 4301.1 | M14: 90274.5 | N14: 193144.91
O15: =SUM(N11:N15)/10371904 -> 0.04851796739
B16: 2b. Supplements: Quality | C16: No budget lines entered
O17: =SUM(N16:N17)/10371904 -> 0
B18: 2c. Supplements: Flexibility | C18: No budget lines entered
O19: =SUM(N18:N19)/10371904 -> 0
B20: 2d. Supplements: Sustainability | C20: No budget lines entered
O21: =SUM(N20:N21)/10371904 -> 0
B22: 3. Other formula | C22: No budget lines entered
O23: =SUM(N22:N23)/10371904 -> 0
B24: 4. Additional funded free hours | C24: No budget lines entered
O25: =SUM(N24:N25)/10371904 -> 0
B26: TOTAL FUNDING FOR EARLY YEARS SINGLE FUNDING FORMULA (3s AND 4s) | K26: 6585539.44 | L26: 397034.8 | M26: 2282985.89 | N26: 9265560.13 | O26: =SUM(O8:O25) -> 0.8933326157
E28: Unit Value | I28: Number of Units | L28: Anticipated Budget
B29: Row Heading | C29: Description | D29: PVI | E29: Nursery School | F29: Primary Nursery Class | H29: PVI | I29: Nursery School | J29: Primary Nursery Class | K29: PVI | L29: Nursery School | M29: Primary Nursery Class | N29: Total Budget | O29: Proportion of Funding
B30: 5. Two year old Base Rate(s) per hour, per provider type | C30: Summer Term | D30: 5.09 | E30: 5.09 | F30: 5.09 | G30: PerHour | H30: 107248 | I30: 1 | J30: 1 | K30: 545892.32 | L30: 5.09 | M30: 5.09 | N30: 545902.5
C31: Autumn Term | D31: 5.09 | E31: 5.09 | F31: 5.09 | G31: PerHour | H31: 146158 | I31: 1 | J31: 1 | K31: 743944.22 | L31: 5.09 | M31: 5.09 | N31: 743954.4
C32: Spring Term | D32: 5.09 | E32: 5.09 | F32: 5.09 | G32: PerHour | H32: 164998 | I32: 1 | J32: 1 | K32: 839839.82 | L32: 5.09 | M32: 5.09 | N32: 839850
B34: 6a. Two year old supplements Quality | C34: No budget lines entered
B36: 6b. Other supplements | C36: No budget lines entered
B38: TOTAL FUNDING FOR EARLY YEARS SINGLE FUNDING FORMULA FOR 2 YEAR OLDs | K38: 2129676.36 | L38: 15.27 | M38: 15.27 | N38: 2129706.9
B41: Row Heading | E41: Description | L41: Anticipated Total Budget | O41: Proportion of Funding
B42: 7. Early years contingency funding | C42: 2 year old Inclusion Resources Panel | N42: 40000
C43: 3&4 Year Old Pupil Number Growth | N43: 163342
O44: =SUM(N42:N44)/10371904 -> 0.01960507926
B45: 8. Early years centrally retained spending | C45: 2 Year Old Trajectory Resources | N45: 506904
C46: 3&4 Year Old Support | N46: 396098
O47: =SUM(N45:N47)/10371904 -> 0.08706231758
B48: TOTAL FUNDING FOR CENTRAL EXPENDITURE | N48: 1106344 | O48: =SUM(O42:O47) -> 0.1066673968
B50: EY s251 Notes

Sheet 874 (hidden)
C2: EY Table: FUNDING PERIOD (2013-14)
C3: Peterborough | D3: 874
E5: Unit Value | I5: Number of Units | L5: Anticipated Budget
B6: Row Heading | C6: Description | D6: PVI | E6: Nursery School | F6: Primary Nursery Class | G6: UnitType | H6: PVI | I6: Nursery School | J6: Primary Nursery Class | K6: PVI | L6: Nursery School | M6: Primary Nursery Class | N6: Total Budget | O6: Proportion of Funding
B8: 1. EYSFF (three and four year olds) Base Rate(s) per hour, per provider type | C8: Nursery Class Basic Rate | F8: 4.66 | G8: PerHour | J8: 137940 | M8: 642800.4 | N8: 642800.4
C9: Pre-School Basic Rate | D9: 3.81 | G9: PerHour | H9: 961219.93 | K9: 3662247.93 | N9: 3662247.93
C10: Independant Basic Rate | D10: 3.98 | G10: PerHour | H10: 9128.8 | K10: 36332.62 | N10: 36332.62
C11: Day Nursery Basic Rate | D11: 4.44 | G11: PerHour | H11: 754613.1 | K11: 3350482.16 | N11: 3350482.16
C12: Childminder Basic Rate | D12: 4.6 | G12: PerHour | H12: 18904.41 | K12: 86960.29 | N12: 86960.29
C13: Nursery School Basic Rate | E13: 8.75 | G13: PerHour | I13: 68400 | L13: 598500 | N13: 598500
O14: =SUM(N8:N14)/10145418 -> 0.8257248149
B15: 2a. Supplements: Deprivation | C15: Deprivation funding based the 30% most deprived pupils in the authority using IDACI | D15: 0.12 | E15: 0.12 | F15: 0.12 | G15: PerHour | H15: 93081 | I15: 13680 | J15: 27588 | K15: 11169.72 | L15: 1641.6 | M15: 3310.56 | N15: 16121.88
O16: =SUM(N15:N16)/10145418 -> 0.001589079918
B17: 2b. Supplements: Quality | C17: No budget lines entered
O18: =SUM(N17:N18)/10145418 -> 0
B19: 2c. Supplements: Flexibility | C19: No budget lines entered
O20: =SUM(N19:N20)/10145418 -> 0
B21: 2d. Supplements: Sustainability | C21: No budget lines entered
O22: =SUM(N21:N22)/10145418 -> 0
B23: 3. Other formula | C23: Contribution to administration £5 per pupil per term | D23: 5 | E23: 5 | F23: 5 | G23: PerChild | H23: 9205 | I23: 360 | J23: 726 | K23: 46025 | L23: 1800 | M23: 3630 | N23: 51455
O24: =SUM(N23:N24)/10145418 -> 0.00507174766
B25: 4. Additional funded free hours | C25: No budget lines entered
O26: =SUM(N25:N26)/10145418 -> 0
B27: TOTAL FUNDING FOR EARLY YEARS SINGLE FUNDING FORMULA (3s AND 4s) | K27: 7193217.72 | L27: 601941.6 | M27: 649740.96 | N27: 8444900.28 | O27: =SUM(O8:O26) -> 0.8323856425
E29: Unit Value | I29: Number of Units | L29: Anticipated Budget
B30: Row Heading | C30: Description | D30: PVI | E30: Nursery School | F30: Primary Nursery Class | H30: PVI | I30: Nursery School | J30: Primary Nursery Class | K30: PVI | L30: Nursery School | M30: Primary Nursery Class | N30: Total Budget | O30: Proportion of Funding
B31: 5. Two year old Base Rate(s) per hour, per provider type | C31: Base Rate | D31: 5.05 | E31: 5.05 | F31: 5.05 | G31: PerHour | H31: 345990 | I31: 0 | J31: 2850 | K31: 1747249.5 | M31: 14392.5 | N31: 1761642
B33: 6a. Two year old supplements Quality | C33: No budget lines entered
B35: 6b. Other supplements | C35: No budget lines entered
B37: TOTAL FUNDING FOR EARLY YEARS SINGLE FUNDING FORMULA FOR 2 YEAR OLDs | K37: 1747249.5 | M37: 14392.5 | N37: 1761642
B40: Row Heading | E40: Description | L40: Anticipated Total Budget | O40: Proportion of Funding
B41: 7. Early years contingency funding | C41: No budget lines entered
O42: =SUM(N41:N42)/10145418 -> 0
B43: 8. Early years centrally retained spending | C43: £642k Trajectory funding - targeted to build capacity £1,053k central staff which support early years sector | N43: 1700518
O44: =SUM(N43:N44)/10145418 -> 0.1676143851
B45: TOTAL FUNDING FOR CENTRAL EXPENDITURE | N45: 1700518 | O45: =SUM(O41:O44) -> 0.1676143851
B47: EY s251 Notes

Sheet 931 (hidden)
C2: EY Table: FUNDING PERIOD (2013-14)
C3: Oxfordshire | D3: 931
E5: Unit Value | I5: Number of Units | L5: Anticipated Budget
B6: Row Heading | C6: Description | D6: PVI | E6: Nursery School | F6: Primary Nursery Class | G6: UnitType | H6: PVI | I6: Nursery School | J6: Primary Nursery Class | K6: PVI | L6: Nursery School | M6: Primary Nursery Class | N6: Total Budget | O6: Proportion of Funding
B8: 1. EYSFF (three and four year olds) Base Rate(s) per hour, per provider type | D8: 3.81 | E8: 5.9 | F8: 3.69 | G8: PerHour | H8: 3813940 | I8: 269870 | J8: 1489046 | K8: 14531111.4 | L8: 1592233 | M8: 5494579.74 | N8: 21617924.14
O9: =SUM(N8:N9)/29583840 -> 0.7307342164
B10: 2a. Supplements: Deprivation | C10: Allocation for pupils in IDACI band 1 | D10: 52.9 | E10: 52.9 | F10: 52.9 | G10: PerChild | H10: 445 | I10: 71 | J10: 261 | K10: 23540.5 | L10: 3755.9 | M10: 13806.9 | N10: 41103.3
C11: Allocation for pupils in IDACI band 2 | D11: 105.8 | E11: 105.8 | F11: 105.8 | G11: PerChild | H11: 105 | I11: 18 | J11: 79 | K11: 11109 | L11: 1904.4 | M11: 8358.2 | N11: 21371.6
C12: Allocation for pupils in IDACI band 3 | D12: 158.7 | E12: 158.7 | F12: 158.7 | G12: PerChild | H12: 225 | I12: 27 | J12: 212 | K12: 35707.5 | L12: 4284.9 | M12: 33644.4 | N12: 73636.8
C13: Allocation for pupils in IDACI band 4 | D13: 211.6 | E13: 211.6 | F13: 211.6 | G13: PerChild | H13: 281 | I13: 92 | J13: 307 | K13: 59459.6 | L13: 19467.2 | M13: 64961.2 | N13: 143888
C14: Allocation for pupils in IDACI band 5 | D14: 264.5 | E14: 264.5 | F14: 264.5 | G14: PerChild | H14: 11 | I14: 0 | J14: 31 | K14: 2909.5 | M14: 8199.5 | N14: 11109
C15: Allocation for pupils in IDACI band 6 | D15: 317.4 | E15: 317.4 | F15: 317.4 | G15: PerChild | H15: 19 | I15: 0 | J15: 9 | K15: 6030.6 | M15: 2856.6 | N15: 8887.2
O16: =SUM(N10:N16)/29583840 -> 0.0101405328
B17: 2b. Supplements: Quality | C17: No budget lines entered
O18: =SUM(N17:N18)/29583840 -> 0
B19: 2c. Supplements: Flexibility | C19: No budget lines entered
O20: =SUM(N19:N20)/29583840 -> 0
B21: 2d. Supplements: Sustainability | C21: No budget lines entered
O22: =SUM(N21:N22)/29583840 -> 0
B23: 3. Other formula | C23: SEN Delegated funding to nursery schools and primary nursery classes - lump sum of £2,000 plus amount based on numbers of pupils in IDACI bands 1 to 6 | D23: 0 | E23: 84968 | F23: 438222 | G23: LumpSum | H23: 0 | I23: 1 | J23: 1 | L23: 84968 | M23: 438222 | N23: 523190
C24: Rurality Sufficiency - to ensure that settings more than two miles from next available are funded for a minimum of eight places per term. | D24: 3.81 | E24: 5.9 | F24: 3.69 | G24: PerHour | H24: 6562 | I24: 0 | J24: 0 | K24: 25001.22 | N24: 25001.22
O25: =SUM(N23:N25)/29583840 -> 0.01853009008
B26: 4. Additional funded free hours | C26: No budget lines entered
O27: =SUM(N26:N27)/29583840 -> 0
B28: TOTAL FUNDING FOR EARLY YEARS SINGLE FUNDING FORMULA (3s AND 4s) | K28: 14694869.32 | L28: 1706613.4 | M28: 6064628.54 | N28: 22466111.26 | O28: =SUM(O8:O27) -> 0.7594048393
E30: Unit Value | I30: Number of Units | L30: Anticipated Budget
B31: Row Heading | C31: Description | D31: PVI | E31: Nursery School | F31: Primary Nursery Class | H31: PVI | I31: Nursery School | J31: Primary Nursery Class | K31: PVI | L31: Nursery School | M31: Primary Nursery Class | N31: Total Budget | O31: Proportion of Funding
B32: 5. Two year old Base Rate(s) per hour, per provider type | C32: Two year old base funding | D32: 5 | E32: 5 | F32: 5 | G32: PerHour | H32: 627000 | I32: 31920 | J32: 0 | K32: 3135000 | L32: 159600 | N32: 3294600
B34: 6a. Two year old supplements Quality | C34: No budget lines entered
B36: 6b. Other supplements | C36: Additional hourly supplement for 2 year olds with Additional Educational Needs | D36: 1 | E36: 1 | F36: 1 | G36: PerHour | H36: 74100 | I36: 0 | J36: 0 | K36: 74100 | N36: 74100
B38: TOTAL FUNDING FOR EARLY YEARS SINGLE FUNDING FORMULA FOR 2 YEAR OLDs | K38: 3209100 | L38: 159600 | N38: 3368700
B41: Row Heading | E41: Description | L41: Anticipated Total Budget | O41: Proportion of Funding
B42: 7. Early years contingency funding | C42: Reserve for possible unanticipated take up | N42: 575625
O43: =SUM(N42:N43)/29583840 -> 0.01945741324
B44: 8. Early years centrally retained spending | C44: Central support for providers, trajectory building funding for 2 year olds, servicing of schools forum share | N44: 6542104
O45: =SUM(N44:N45)/29583840 -> 0.2211377563
B46: TOTAL FUNDING FOR CENTRAL EXPENDITURE | N46: 7117729 | O46: =SUM(O42:O45) -> 0.2405951695
B48: EY s251 Notes

Sheet 353 (hidden)
C2: EY Table: FUNDING PERIOD (2013-14)
C3: Oldham | D3: 353
E5: Unit Value | I5: Number of Units | L5: Anticipated Budget
B6: Row Heading | C6: Description | D6: PVI | E6: Nursery School | F6: Primary Nursery Class | G6: UnitType | H6: PVI | I6: Nursery School | J6: Primary Nursery Class | K6: PVI | L6: Nursery School | M6: Primary Nursery Class | N6: Total Budget | O6: Proportion of Funding
B8: 1. EYSFF (three and four year olds) Base Rate(s) per hour, per provider type | C8: Base Rate | D8: 3.03 | F8: 3.39 | G8: PerHour | H8: 993510 | J8: 1432600 | K8: 3010335.3 | M8: 4856514 | N8: 7866849.3
O9: =SUM(N8:N9)/13542943 -> 0.5808818142
B10: 2a. Supplements: Deprivation | C10: Deprivation | D10: 0.3 | F10: 0.34 | G10: PerHour | H10: 440610 | J10: 1050792 | K10: 132183 | M10: 357269.28 | N10: 489452.28
O11: =SUM(N10:N11)/13542943 -> 0.03614076202
B12: 2b. Supplements: Quality | C12: Ofsted Rating | D12: 0.3 | F12: 0.34 | G12: PerHour | H12: 814530 | J12: 1197760 | K12: 244359 | M12: 407238.4 | N12: 651597.4
C13: Staffing Qualification | D13: 0.3 | F13: 0.34 | G13: PerHour | H13: 868680 | J13: 1432600 | K13: 260604 | M13: 487084 | N13: 747688
O14: =SUM(N12:N14)/13542943 -> 0.1033221066
B15: 2c. Supplements: Flexibility | C15: No budget lines entered
O16: =SUM(N15:N16)/13542943 -> 0
B17: 2d. Supplements: Sustainability | C17: No budget lines entered
O18: =SUM(N17:N18)/13542943 -> 0
B19: 3. Other formula | C19: No budget lines entered
O20: =SUM(N19:N20)/13542943 -> 0
B21: 4. Additional funded free hours | C21: No budget lines entered
O22: =SUM(N21:N22)/13542943 -> 0
B23: TOTAL FUNDING FOR EARLY YEARS SINGLE FUNDING FORMULA (3s AND 4s) | K23: 3647481.3 | M23: 6108105.68 | N23: 9755586.98 | O23: =SUM(O8:O22) -> 0.7203446828
E25: Unit Value | I25: Number of Units | L25: Anticipated Budget
B26: Row Heading | C26: Description | D26: PVI | E26: Nursery School | F26: Primary Nursery Class | H26: PVI | I26: Nursery School | J26: Primary Nursery Class | K26: PVI | L26: Nursery School | M26: Primary Nursery Class | N26: Total Budget | O26: Proportion of Funding
B27: 5. Two year old Base Rate(s) per hour, per provider type | C27: Base Rate | D27: 4.85 | G27: PerHour | H27: 125970 | K27: 610954.5 | N27: 610954.5
B29: 6a. Two year old supplements Quality | C29: No budget lines entered
B31: 6b. Other supplements | C31: No budget lines entered
B33: TOTAL FUNDING FOR EARLY YEARS SINGLE FUNDING FORMULA FOR 2 YEAR OLDs | K33: 610954.5 | N33: 610954.5
B36: Row Heading | E36: Description | L36: Anticipated Total Budget | O36: Proportion of Funding
B37: 7. Early years contingency funding | C37: No budget lines entered
O38: =SUM(N37:N38)/13542943 -> 0
B39: 8. Early years centrally retained spending | C39: Other centrally retained funding SEN and additional needs, central support service for providers, central support for schools, licences and subscriptions and infrastructure for grant assessment, allocation and associated support to all eligible prov | N39: 3787356
O40: =SUM(N39:N40)/13542943 -> 0.2796553157
B41: TOTAL FUNDING FOR CENTRAL EXPENDITURE | N41: 3787356 | O41: =SUM(O37:O40) -> 0.2796553157
B43: EY s251 Notes
B44: For the early years pro-forma. The formula used for Primary Nursery Class deprivation actually uses a unit value of £0.339 The collect form will only allow figures to 2 decimal places at £0.34 hence the automatic calculated total is incorrect. The calculated figure in the form is £357,269.28 whereas the actual correct figure is £356,218.49

Sheet 891 (hidden)
C2: EY Table: FUNDING PERIOD (2013-14)
C3: Nottinghamshire | D3: 891
E5: Unit Value | I5: Number of Units | L5: Anticipated Budget
B6: Row Heading | C6: Description | D6: PVI | E6: Nursery School | F6: Primary Nursery Class | G6: UnitType | H6: PVI | I6: Nursery School | J6: Primary Nursery Class | K6: PVI | L6: Nursery School | M6: Primary Nursery Class | N6: Total Budget | O6: Proportion of Funding
B8: 1. EYSFF (three and four year olds) Base Rate(s) per hour, per provider type | C8: £2,148.90 per pupil per annum. 39 weeks for schools & 38 weeks for PVI | D8: 3.77 | F8: 3.67 | G8: PerHour | H8: 3190949 | J8: 3328635.42 | K8: 12029877.73 | M8: 12216091.99 | N8: 24245969.72
O9: =SUM(N8:N9)/31549531 -> 0.7685049176
B10: 2a. Supplements: Deprivation | C10: 0.55 - 39 weeks for schools & 38 weeks for PVI | D10: 0.55 | F10: 0.55 | G10: PerHour | H10: 27469 | J10: 201571 | K10: 15107.95 | M10: 110864.05 | N10: 125972
C11: £1.537 per school meal per pupil 39 weeks for schools & 38 weeks for PVI | D11: 1.54 | F11: 1.54 | G11: PerChild | H11: 2647 | J11: 0 | K11: 4076.38 | N11: 4076.38
O12: =SUM(N10:N12)/31549531 -> 0.004122038454
B13: 2b. Supplements: Quality | C13: No budget lines entered
O14: =SUM(N13:N14)/31549531 -> 0
B15: 2c. Supplements: Flexibility | C15: No budget lines entered
O16: =SUM(N15:N16)/31549531 -> 0
B17: 2d. Supplements: Sustainability | C17: Sustainability - Schools | F17: 10360 | G17: LumpSum | J17: 19 | M17: 196840 | N17: 196840
O18: =SUM(N17:N18)/31549531 -> 0.006239078483
B19: 3. Other formula | C19: No budget lines entered
O20: =SUM(N19:N20)/31549531 -> 0
B21: 4. Additional funded free hours | C21: No budget lines entered
O22: =SUM(N21:N22)/31549531 -> 0
B23: TOTAL FUNDING FOR EARLY YEARS SINGLE FUNDING FORMULA (3s AND 4s) | K23: 12049062.06 | M23: 12523796.04 | N23: 24572858.1 | O23: =SUM(O8:O22) -> 0.7788660345
E25: Unit Value | I25: Number of Units | L25: Anticipated Budget
B26: Row Heading | C26: Description | D26: PVI | E26: Nursery School | F26: Primary Nursery Class | H26: PVI | I26: Nursery School | J26: Primary Nursery Class | K26: PVI | L26: Nursery School | M26: Primary Nursery Class | N26: Total Budget | O26: Proportion of Funding
B27: 5. Two year old Base Rate(s) per hour, per provider type | C27: No budget lines entered
B29: 6a. Two year old supplements Quality | C29: No budget lines entered
B31: 6b. Other supplements | C31: No budget lines entered
B33: TOTAL FUNDING FOR EARLY YEARS SINGLE FUNDING FORMULA FOR 2 YEAR OLDs
B36: Row Heading | E36: Description | L36: Anticipated Total Budget | O36: Proportion of Funding
B37: 7. Early years contingency funding | C37: No budget lines entered
O38: =SUM(N37:N38)/31549531 -> 0
B39: 8. Early years centrally retained spending | N39: 6976673
O40: =SUM(N39:N40)/31549531 -> 0.2211339687
B41: TOTAL FUNDING FOR CENTRAL EXPENDITURE | N41: 6976673 | O41: =SUM(O37:O40) -> 0.2211339687
B43: EY s251 Notes

Sheet 892 (hidden)
C2: EY Table: FUNDING PERIOD (2013-14)
C3: Nottingham | D3: 892
E5: Unit Value | I5: Number of Units | L5: Anticipated Budget
B6: Row Heading | C6: Description | D6: PVI | E6: Nursery School | F6: Primary Nursery Class | G6: UnitType | H6: PVI | I6: Nursery School | J6: Primary Nursery Class | K6: PVI | L6: Nursery School | M6: Primary Nursery Class | N6: Total Budget | O6: Proportion of Funding
B8: 1. EYSFF (three and four year olds) Base Rate(s) per hour, per provider type | C8: Base Rate | D8: 4 | E8: 5.8 | F8: 4 | G8: PerHour | H8: 787000 | I8: 56502 | J8: 2108052 | K8: 3148000 | L8: 327711.6 | M8: 8432208 | N8: 11907919.6
O9: =SUM(N8:N9)/13692590 -> 0.8696615907
B10: 2a. Supplements: Deprivation | C10: Deprivation | D10: 0.1 | E10: 0.1 | F10: 0.1 | G10: PerHour | H10: 787000 | I10: 56502 | J10: 163160 | K10: 78700 | L10: 5650.2 | M10: 16316 | N10: 100666.2
O11: =SUM(N10:N11)/13692590 -> 0.007351874262
B12: 2b. Supplements: Quality | C12: OFSTED Rating 2 | D12: 0.05 | E12: 0.05 | F12: 0.05 | G12: PerHour | H12: 393500 | I12: 56502 | J12: 1396100 | K12: 19675 | L12: 2825.1 | M12: 69805 | N12: 92305.1
O13: =SUM(N12:N13)/13692590 -> 0.006741244717
B14: 2c. Supplements: Flexibility | C14: Flexibility | D14: 0.1 | E14: 0.1 | G14: PerHour | H14: 78700 | I14: 56502 | K14: 7870 | L14: 5650.2 | N14: 13520.2
O15: =SUM(N14:N15)/13692590 -> 0.0009874099787
B16: 2d. Supplements: Sustainability | C16: No budget lines entered
O17: =SUM(N16:N17)/13692590 -> 0
B18: 3. Other formula | C18: OFSTED rating 1 | D18: 0.1 | F18: 0.1 | G18: PerHour | H18: 393500 | J18: 294660 | K18: 39350 | M18: 29466 | N18: 68816
O19: =SUM(N18:N19)/13692590 -> 0.005025784019
B20: 4. Additional funded free hours | C20: No budget lines entered
O21: =SUM(N20:N21)/13692590 -> 0
B22: TOTAL FUNDING FOR EARLY YEARS SINGLE FUNDING FORMULA (3s AND 4s) | K22: 3293595 | L22: 341837.1 | M22: 8547795 | N22: 12183227.1 | O22: =SUM(O8:O21) -> 0.8897679037
E24: Unit Value | I24: Number of Units | L24: Anticipated Budget
B25: Row Heading | C25: Description | D25: PVI | E25: Nursery School | F25: Primary Nursery Class | H25: PVI | I25: Nursery School | J25: Primary Nursery Class | K25: PVI | L25: Nursery School | M25: Primary Nursery Class | N25: Total Budget | O25: Proportion of Funding
B26: 5. Two year old Base Rate(s) per hour, per provider type | C26: 2 YEAR OLDS | D26: 5 | G26: PerHour | H26: 74800 | K26: 374000 | N26: 374000
B28: 6a. Two year old supplements Quality | C28: No budget lines entered
B30: 6b. Other supplements | C30: No budget lines entered
B32: TOTAL FUNDING FOR EARLY YEARS SINGLE FUNDING FORMULA FOR 2 YEAR OLDs | K32: 374000 | N32: 374000
B35: Row Heading | E35: Description | L35: Anticipated Total Budget | O35: Proportion of Funding
B36: 7. Early years contingency funding | C36: 3 & 4 YR OLD CONTINGENCY | N36: 350000
O37: =SUM(N36:N37)/13692590 -> 0.02556127073
B38: 8. Early years centrally retained spending | C38: Central Expenditure | N38: 1159363
O39: =SUM(N38:N39)/13692590 -> 0.08467083291
B40: TOTAL FUNDING FOR CENTRAL EXPENDITURE | N40: 1509363 | O40: =SUM(O36:O39) -> 0.1102321036
B42: EY s251 Notes

Sheet 929 (hidden)
C2: EY Table: FUNDING PERIOD (2013-14)
C3: Northumberland | D3: 929
E5: Unit Value | I5: Number of Units | L5: Anticipated Budget
B6: Row Heading | C6: Description | D6: PVI | E6: Nursery School | F6: Primary Nursery Class | G6: UnitType | H6: PVI | I6: Nursery School | J6: Primary Nursery Class | K6: PVI | L6: Nursery School | M6: Primary Nursery Class | N6: Total Budget | O6: Proportion of Funding
B8: 1. EYSFF (three and four year olds) Base Rate(s) per hour, per provider type | C8: EYSFF 3 & 4 Year olds Basic Hourly Allocation | D8: 3.25 | E8: 0 | F8: 3.25 | G8: PerHour | H8: 816491 | I8: 0 | J8: 1466566 | K8: 2653595.75 | M8: 4766339.5 | N8: 7419935.25
O9: =SUM(N8:N9)/10882725 -> 0.6818085774
B10: 2a. Supplements: Deprivation | C10: IDACI BAND 0 | D10: 0.09 | E10: 0 | F10: 0.09 | G10: PerHour | H10: 748055 | J10: 749277 | K10: 67324.95 | M10: 67434.93 | N10: 134759.88
C11: IDACI BAND 1 | D11: 0.68 | E11: 0 | F11: 0.68 | G11: PerHour | H11: 52600 | I11: 0 | J11: 124853 | K11: 35768 | M11: 84900.04 | N11: 120668.04
C12: IDACI BAND 2 | D12: 0.68 | E12: 0 | F12: 0.68 | G12: PerHour | H12: 25439 | I12: 0 | J12: 94237 | K12: 17298.52 | M12: 64081.16 | N12: 81379.68
C13: IDACI BAND 3 | D13: 1.03 | E13: 0 | F13: 1.03 | G13: PerHour | H13: 69746 | I13: 0 | J13: 209901 | K13: 71838.38 | M13: 216198.03 | N13: 288036.41
C14: IDACI BAND 4 | D14: 1.37 | E14: 0 | F14: 1.37 | G14: PerHour | H14: 27982 | I14: 0 | J14: 186956 | K14: 38335.34 | M14: 256129.72 | N14: 294465.06
C15: IDACI BAND 5 | D15: 1.71 | E15: 0 | F15: 1.71 | G15: PerHour | H15: 4158 | I15: 0 | J15: 59731 | K15: 7110.18 | M15: 102140.01 | N15: 109250.19
C16: IDACI BAND 6 | D16: 2.03 | E16: 0 | F16: 2.03 | G16: PerHour | H16: 3212 | I16: 0 | J16: 44911 | K16: 6520.36 | M16: 91169.33 | N16: 97689.69
O17: =SUM(N10:N17)/10882725 -> 0.1034896085
B18: 2b. Supplements: Quality | C18: No budget lines entered
O19: =SUM(N18:N19)/10882725 -> 0
B20: 2c. Supplements: Flexibility | C20: 2% of Basic Hourly Rate | D20: 0.07 | E20: 0 | F20: 0.07 | G20: PerHour | H20: 200257 | I20: 0 | J20: 868500 | K20: 14017.99 | M20: 60795 | N20: 74812.99
C21: 3% of Basic Hourly Rate | D21: 0.09 | E21: 0 | F21: 0.09 | G21: PerHour | H21: 19922 | I21: 0 | J21: 0 | K21: 1792.98 | N21: 1792.98
C22: 4% of Basic Hourly Rate | D22: 0.13 | E22: 0 | F22: 0.13 | G22: PerHour | H22: 195615 | I22: 0 | J22: 321877 | K22: 25429.95 | M22: 41844.01 | N22: 67273.96
C23: 5% of Basic Hourly Rate | D23: 0.16 | E23: 0 | F23: 0.16 | G23: PerHour | H23: 383694 | I23: 0 | J23: 0 | K23: 61391.04 | N23: 61391.04
O24: =SUM(N20:N24)/10882725 -> 0.0188620929
B25: 2d. Supplements: Sustainability | C25: No budget lines entered
O26: =SUM(N25:N26)/10882725 -> 0
B27: 3. Other formula | C27: No budget lines entered
O28: =SUM(N27:N28)/10882725 -> 0
B29: 4. Additional funded free hours | C29: No budget lines entered
O30: =SUM(N29:N30)/10882725 -> 0
B31: TOTAL FUNDING FOR EARLY YEARS SINGLE FUNDING FORMULA (3s AND 4s) | K31: 3000423.44 | M31: 5751031.73 | N31: 8751455.17 | O31: =SUM(O8:O30) -> 0.8041602788
E33: Unit Value | I33: Number of Units | L33: Anticipated Budget
B34: Row Heading | C34: Description | D34: PVI | E34: Nursery School | F34: Primary Nursery Class | H34: PVI | I34: Nursery School | J34: Primary Nursery Class | K34: PVI | L34: Nursery School | M34: Primary Nursery Class | N34: Total Budget | O34: Proportion of Funding
B35: 5. Two year old Base Rate(s) per hour, per provider type | C35: Basic Hourly Allocation | D35: 4.25 | E35: 0 | F35: 0 | G35: PerHour | H35: 97347 | I35: 0 | J35: 0 | K35: 413724.75 | N35: 413724.75
B37: 6a. Two year old supplements Quality | C37: No budget lines entered
B39: 6b. Other supplements | C39: Deprivation IDACI BAND 0 | D39: 0.09 | E39: 0 | F39: 0 | G39: PerHour | H39: 18150 | I39: 0 | J39: 0 | K39: 1633.5 | N39: 1633.5
C40: Deprivation IDACI BAND 1 | D40: 0.68 | E40: 0 | F40: 0 | G40: PerHour | H40: 4630 | I40: 0 | J40: 0 | K40: 3148.4 | N40: 3148.4
C41: Deprivation IDACI BAND 2 | D41: 0.68 | E41: 0 | F41: 0 | G41: PerHour | H41: 4630 | I41: 0 | J41: 0 | K41: 3148.4 | N41: 3148.4
C42: Deprivation IDACI BAND 3 | D42: 1.03 | E42: 0 | F42: 0 | G42: PerHour | H42: 16218 | I42: 0 | J42: 0 | K42: 16704.54 | N42: 16704.54
C43: Deprivation IDACI BAND 4 | D43: 1.37 | E43: 0 | F43: 0 | G43: PerHour | H43: 16881 | I43: 0 | J43: 0 | K43: 23126.97 | N43: 23126.97
C44: Deprivation IDACI BAND 5 | D44: 1.71 | E44: 0 | F44: 0 | G44: PerHour | H44: 10980 | I44: 0 | J44: 0 | K44: 18775.8 | N44: 18775.8
C45: Deprivation IDACI BAND 6 | D45: 2.03 | E45: 0 | F45: 0 | G45: PerHour | H45: 5780 | I45: 0 | J45: 0 | K45: 11733.4 | N45: 11733.4
C46: Flexibility 2% of Basic Hourly Rate | D46: 0.09 | E46: 0 | F46: 0 | G46: PerHour | H46: 3678 | I46: 0 | J46: 0 | K46: 331.02 | N46: 331.02
C47: Flexibility 4% of Basic Hourly Rate | D47: 0.17 | E47: 0 | F47: 0 | G47: PerHour | H47: 1730 | I47: 0 | J47: 0 | K47: 294.1 | N47: 294.1
C48: Flexibility 5% of Basic Hourly Rate | D48: 0.21 | E48: 0 | F48: 0 | G48: PerHour | H48: 65500 | I48: 0 | J48: 0 | K48: 13755 | N48: 13755
B50: TOTAL FUNDING FOR EARLY YEARS SINGLE FUNDING FORMULA FOR 2 YEAR OLDs | K50: 506375.88 | N50: 506375.88
B53: Row Heading | E53: Description | L53: Anticipated Total Budget | O53: Proportion of Funding
B54: 7. Early years contingency funding | C54: Early Years Contingency Funding for anticipated growth in 2 year old participation as estimates based on historic information. | N54: 1465120
O55: =SUM(N54:N55)/10882725 -> 0.1346280458
B56: 8. Early years centrally retained spending | C56: Centrally retained for Early Years Support | N56: 666150
O57: =SUM(N56:N57)/10882725 -> 0.06121169101
B58: TOTAL FUNDING FOR CENTRAL EXPENDITURE | N58: 2131270 | O58: =SUM(O54:O57) -> 0.1958397368
B60: EY s251 Notes

Sheet 928 (hidden)
C2: EY Table: FUNDING PERIOD (2013-14)
C3: Northamptonshire | D3: 928
E5: Unit Value | I5: Number of Units | L5: Anticipated Budget
B6: Row Heading | C6: Description | D6: PVI | E6: Nursery School | F6: Primary Nursery Class | G6: UnitType | H6: PVI | I6: Nursery School | J6: Primary Nursery Class | K6: PVI | L6: Nursery School | M6: Primary Nursery Class | N6: Total Budget | O6: Proportion of Funding
B8: 1. EYSFF (three and four year olds) Base Rate(s) per hour, per provider type | C8: Base rate | D8: 3.54 | E8: 3.37 | F8: 3.37 | G8: PerHour | H8: 4407090 | I8: 489709 | J8: 1221777 | K8: 15601098.6 | L8: 1650319.33 | M8: 4117388.49 | N8: 21368806.42
O9: =SUM(N8:N9)/28221013 -> 0.7571948753
B10: 2a. Supplements: Deprivation | C10: Deprivation lump sum | D10: 12700 | E10: 12700 | F10: 12700 | G10: LumpSum | H10: 72 | I10: 6 | J10: 28 | K10: 914400 | L10: 76200 | M10: 355600 | N10: 1346200
O11: =SUM(N10:N11)/28221013 -> 0.04770204386
B12: 2b. Supplements: Quality | C12: Staff quality (1) | D12: 0.2 | E12: 0.2 | F12: 0.2 | G12: PerHour | H12: 1992931 | I12: 1 | J12: 182633 | K12: 398586.2 | L12: 0.2 | M12: 36526.6 | N12: 435113
C13: Staff quality (2) | D13: 0.4 | E13: 0.4 | F13: 0.4 | G13: PerHour | H13: 1298645 | I13: 489709 | J13: 849361 | K13: 519458 | L13: 195883.6 | M13: 339744.4 | N13: 1055086
C14: Quality OFSTED Outstanding | D14: 0.1 | E14: 0.1 | F14: 0.1 | G14: PerHour | H14: 964083 | I14: 341401 | J14: 67493 | K14: 96408.3 | L14: 34140.1 | M14: 6749.3 | N14: 137297.7
O15: =SUM(N12:N15)/28221013 -> 0.05766967685
B16: 2c. Supplements: Flexibility | C16: No budget lines entered
O17: =SUM(N16:N17)/28221013 -> 0
B18: 2d. Supplements: Sustainability | C18: Nursery school 13-14 protection | D18: 0 | E18: 0.8 | F18: 0 | G18: PerHour | H18: 1 | I18: 489709 | J18: 1 | L18: 391767.2 | N18: 391767.2
O19: =SUM(N18:N19)/28221013 -> 0.01388210976
B20: 3. Other formula | C20: Nursery schools lump sum | D20: 2 | E20: 36516 | F20: 2 | G20: LumpSum | H20: 2 | I20: 9 | J20: 2 | K20: 4 | L20: 328644 | M20: 4 | N20: 328652
O21: =SUM(N20:N21)/28221013 -> 0.01164564858
B22: 4. Additional funded free hours | C22: No budget lines entered
O23: =SUM(N22:N23)/28221013 -> 0
B24: TOTAL FUNDING FOR EARLY YEARS SINGLE FUNDING FORMULA (3s AND 4s) | K24: 17529955.1 | L24: 2676954.43 | M24: 4856012.79 | N24: 25062922.32 | O24: =SUM(O8:O23) -> 0.8880943544
E26: Unit Value | I26: Number of Units | L26: Anticipated Budget
B27: Row Heading | C27: Description | D27: PVI | E27: Nursery School | F27: Primary Nursery Class | H27: PVI | I27: Nursery School | J27: Primary Nursery Class | K27: PVI | L27: Nursery School | M27: Primary Nursery Class | N27: Total Budget | O27: Proportion of Funding
B28: 5. Two year old Base Rate(s) per hour, per provider type | C28: 2 year old base rate | D28: 4.74 | E28: 4.74 | F28: 4.74 | G28: PerHour | H28: 1262472 | I28: 1 | J28: 1 | K28: 5984117.28 | L28: 4.74 | M28: 4.74 | N28: 5984126.76
B30: 6a. Two year old supplements Quality | C30: No budget lines entered
B32: 6b. Other supplements | C32: No budget lines entered
B34: TOTAL FUNDING FOR EARLY YEARS SINGLE FUNDING FORMULA FOR 2 YEAR OLDs | K34: 5984117.28 | L34: 4.74 | M34: 4.74 | N34: 5984126.76
B37: Row Heading | E37: Description | L37: Anticipated Total Budget | O37: Proportion of Funding
B38: 7. Early years contingency funding | C38: No budget lines entered
O39: =SUM(N38:N39)/28221013 -> 0
B40: 8. Early years centrally retained spending | C40: Early years central exp | N40: 3158091
O41: =SUM(N40:N41)/28221013 -> 0.111905657
B42: TOTAL FUNDING FOR CENTRAL EXPENDITURE | N42: 3158091 | O42: =SUM(O38:O41) -> 0.111905657
B44: EY s251 Notes

Sheet 815 (hidden)
C2: EY Table: FUNDING PERIOD (2013-14)
C3: North Yorkshire | D3: 815
E5: Unit Value | I5: Number of Units | L5: Anticipated Budget
B6: Row Heading | C6: Description | D6: PVI | E6: Nursery School | F6: Primary Nursery Class | G6: UnitType | H6: PVI | I6: Nursery School | J6: Primary Nursery Class | K6: PVI | L6: Nursery School | M6: Primary Nursery Class | N6: Total Budget | O6: Proportion of Funding
B8: 1. EYSFF (three and four year olds) Base Rate(s) per hour, per provider type | C8: Maintained Establishments | E8: 5.56 | F8: 4.08 | G8: PerHour | I8: 119641 | J8: 1266417 | L8: 665203.96 | M8: 5166981.36 | N8: 5832185.32
C9: Maintained - Pre Reception Class | F9: 3.55 | G9: PerHour | J9: 13750 | M9: 48812.5 | N9: 48812.5
C10: Independent School | D10: 4.08 | G10: PerHour | H10: 180941 | K10: 738239.28 | N10: 738239.28
C11: Full Day Care | D11: 3.7 | G11: PerHour | H11: 1536864 | K11: 5686396.8 | N11: 5686396.8
C12: Sessional Care | D12: 3.55 | G12: PerHour | H12: 1205390 | K12: 4279134.5 | N12: 4279134.5
C13: Childminders | D13: 5.56 | G13: PerHour | H13: 45345 | K13: 252118.2 | N13: 252118.2
O14: =SUM(N8:N14)/20929227 -> 0.8044676758
B15: 2a. Supplements: Deprivation | C15: Universal Weighted Hours. IMD data used. Highest IMD ranked provision receives 100% of their funded hours multiplied by the hourly rate. All other providers are weighted against this score via their own IMD score. They then receive that % of thei | D15: 0.49 | E15: 0.49 | F15: 0.49 | G15: PerHour | H15: 589247 | I15: 33895 | J15: 362972 | K15: 288731.03 | L15: 16608.55 | M15: 177856.28 | N15: 483195.86
C16: Targeted Deprivation. The provision with the highest IMD ranking receives an adjusted IMD of 100%. All other provision is weighted against this score. Any other provision that scores an adjusted IMD% > 25% receives this percentage of their formula | D16: 0.29 | E16: 0.29 | F16: 0.29 | G16: PerHour | H16: 160334 | I16: 18271 | J16: 225590 | K16: 46496.86 | L16: 5298.59 | M16: 65421.1 | N16: 117216.55
O17: =SUM(N15:N17)/20929227 -> 0.02868774896
B18: 2b. Supplements: Quality | C18: Quality First Project Funding. Funding devolved to PVI settings in relation to in house training linked to two year old provision. | D18: 330000 | H18: 1 | K18: 330000 | N18: 330000
O19: =SUM(N18:N19)/20929227 -> 0.01576742419
B20: 2c. Supplements: Flexibility | C20: No budget lines entered
O21: =SUM(N20:N21)/20929227 -> 0
B22: 2d. Supplements: Sustainability | C22: Sparsity Funding. Support of Early Years provision in areas of limited choice due to rurality. Assessment based amount - not a lump sum. Eligibility criteria are: (1) No other similar provider within 3 miles. (2) At least for 50% of the childr | D22: 174000 | F22: 116000 | H22: 1 | J22: 1 | K22: 174000 | M22: 116000 | N22: 290000
O23: =SUM(N22:N23)/20929227 -> 0.01385622125
B24: 3. Other formula | C24: Nursery School Lump Sum. 3 such schools. Amount awarded to each school based on historic standards fund allocation information. | E24: 31667 | G24: LumpSum | I24: 3 | L24: 95001 | N24: 95001
C25: Free School Meals. Actual meals consumed by the applicable children. | F25: 1.6 | G25: PerChild | J25: 3125 | M25: 5000 | N25: 5000
O26: =SUM(N24:N26)/20929227 -> 0.004778055109
B27: 4. Additional funded free hours | C27: No budget lines entered
O28: =SUM(N27:N28)/20929227 -> 0
B29: TOTAL FUNDING FOR EARLY YEARS SINGLE FUNDING FORMULA (3s AND 4s) | K29: 11795116.67 | L29: 782112.1 | M29: 5580071.24 | N29: 18157300.01 | O29: =SUM(O8:O28) -> 0.8675571253
E31: Unit Value | I31: Number of Units | L31: Anticipated Budget
B32: Row Heading | C32: Description | D32: PVI | E32: Nursery School | F32: Primary Nursery Class | H32: PVI | I32: Nursery School | J32: Primary Nursery Class | K32: PVI | L32: Nursery School | M32: Primary Nursery Class | N32: Total Budget | O32: Proportion of Funding
B33: 5. Two year old Base Rate(s) per hour, per provider type | C33: Sessional Day Care | D33: 5.04 | G33: PerHour | H33: 151110 | K33: 761594.4 | N33: 761594.4
C34: Full Day Care | D34: 5.2 | G34: PerHour | H34: 253110 | K34: 1316172 | N34: 1316172
C35: Childminders | D35: 5.58 | G35: PerHour | H35: 3960 | K35: 22096.8 | N35: 22096.8
B37: 6a. Two year old supplements Quality | C37: No budget lines entered
B39: 6b. Other supplements | C39: No budget lines entered
B41: TOTAL FUNDING FOR EARLY YEARS SINGLE FUNDING FORMULA FOR 2 YEAR OLDs | K41: 2099863.2 | N41: 2099863.2
B44: Row Heading | E44: Description | L44: Anticipated Total Budget | O44: Proportion of Funding
B45: 7. Early years contingency funding | C45: 2 year old contingency. To be used for capacity building to support gaps in provision. | N45: 822137
C46: Early Years Contingency | N46: 45000
O47: =SUM(N45:N47)/20929227 -> 0.04143186941
B48: 8. Early years centrally retained spending | C48: 2 year old funding. Costs relating to staff supporting providers to develop provision for 2 year olds | N48: 182957
C49: Contribution to the cost of early intervention work | N49: 243943
C50: Portage Service for under 5's | N50: 283584
C51: Workforce Development for Early Years Providers | N51: 540741
C52: Contribution to Family Support Workers, Parent Support Advisors, Education Social Workers and Home to School Support Workers | N52: 314077
C53: Behaviour, Business and Strategic support to early years providers | N53: 339488
O54: =SUM(N48:N54)/20929227 -> 0.09101100581
B55: TOTAL FUNDING FOR CENTRAL EXPENDITURE | N55: 2771927 | O55: =SUM(O45:O54) -> 0.1324428752
B57: EY s251 Notes

Sheet 392 (hidden)
C2: EY Table: FUNDING PERIOD (2013-14)
C3: North Tyneside | D3: 392
E5: Unit Value | I5: Number of Units | L5: Anticipated Budget
B6: Row Heading | C6: Description | D6: PVI | E6: Nursery School | F6: Primary Nursery Class | G6: UnitType | H6: PVI | I6: Nursery School | J6: Primary Nursery Class | K6: PVI | L6: Nursery School | M6: Primary Nursery Class | N6: Total Budget | O6: Proportion of Funding
B8: 1. EYSFF (three and four year olds) Base Rate(s) per hour, per provider type | C8: Base rate (Teacher Led ) | D8: 3.11 | E8: 3.11 | F8: 3.11 | G8: PerHour | H8: 6795 | I8: 73170 | J8: 1246587 | K8: 21132.45 | L8: 227558.7 | M8: 3876885.57 | N8: 4125576.72
C9: Base Rate (Non Teacher led) | D9: 2.96 | G9: PerHour | H9: 354066 | K9: 1048035.36 | N9: 1048035.36
O10: =SUM(N8:N10)/9186000 -> 0.563206192
B11: 2a. Supplements: Deprivation | C11: Deprivation (Highest Quartile) | D11: 0.4 | F11: 0.4 | G11: PerHour | H11: 39993 | J11: 395956.5 | K11: 15997.2 | M11: 158382.6 | N11: 174379.8
C12: Deprivation (Upper Qartile) | D12: 0.3 | F12: 0.3 | G12: PerHour | H12: 90180 | J12: 299457 | K12: 27054 | M12: 89837.1 | N12: 116891.1
C13: Deprivation (Lower Quatile) | D13: 0.2 | E13: 0.2 | F13: 0.2 | G13: PerHour | H13: 120918 | I13: 73170 | J13: 254174 | K13: 24183.6 | L13: 14634 | M13: 50834.8 | N13: 89652.4
C14: Deprivation (\lowest Quartile) | D14: 0.1 | F14: 0.1 | G14: PerHour | H14: 109770 | J14: 297000 | K14: 10977 | M14: 29700 | N14: 40677
O15: =SUM(N11:N15)/9186000 -> 0.04589596125
B16: 2b. Supplements: Quality | C16: No budget lines entered
O17: =SUM(N16:N17)/9186000 -> 0
B18: 2c. Supplements: Flexibility | C18: Fully Flexible | D18: 0.4 | E18: 0.4 | G18: PerHour | H18: 239011.5 | I18: 73170 | K18: 95604.6 | L18: 29268 | N18: 124872.6
C19: Flexible School Hours | D19: 0.3 | F19: 0.3 | G19: PerHour | H19: 48924 | J19: 80217 | K19: 14677.2 | M19: 24065.1 | N19: 38742.3
C20: Flexible Limited Opening | D20: 0.2 | G20: PerHour | H20: 4012.5 | K20: 802.5 | N20: 802.5
C21: Session Flexibility | D21: 0.1 | F21: 0.1 | G21: PerHour | H21: 15619.5 | J21: 1033080 | K21: 1561.95 | M21: 103308 | N21: 104869.95
C22: No Flexibility | D22: 0 | F22: 0 | G22: PerHour | H22: 53293.5 | J22: 133290
O23: =SUM(N18:N23)/9186000 -> 0.02931497387
B24: 2d. Supplements: Sustainability | C24: No budget lines entered
O25: =SUM(N24:N25)/9186000 -> 0
B26: 3. Other formula | C26: Lump Sum | E26: 96234 | G26: LumpSum | I26: 1 | L26: 96234 | N26: 96234
O27: =SUM(N26:N27)/9186000 -> 0.01047615937
B28: 4. Additional funded free hours | C28: No budget lines entered
O29: =SUM(N28:N29)/9186000 -> 0
B30: TOTAL FUNDING FOR EARLY YEARS SINGLE FUNDING FORMULA (3s AND 4s) | K30: 1260025.86 | L30: 367694.7 | M30: 4333013.17 | N30: 5960733.73 | O30: =SUM(O8:O29) -> 0.6488932865
E32: Unit Value | I32: Number of Units | L32: Anticipated Budget
B33: Row Heading | C33: Description | D33: PVI | E33: Nursery School | F33: Primary Nursery Class | H33: PVI | I33: Nursery School | J33: Primary Nursery Class | K33: PVI | L33: Nursery School | M33: Primary Nursery Class | N33: Total Budget | O33: Proportion of Funding
B34: 5. Two year old Base Rate(s) per hour, per provider type | C34: No budget lines entered
B36: 6a. Two year old supplements Quality | C36: No budget lines entered
B38: 6b. Other supplements | C38: No budget lines entered
B40: TOTAL FUNDING FOR EARLY YEARS SINGLE FUNDING FORMULA FOR 2 YEAR OLDs
B43: Row Heading | E43: Description | L43: Anticipated Total Budget | O43: Proportion of Funding
B44: 7. Early years contingency funding | C44: 2 Year Old offer not yet allocated | N44: 1907603
C45: No budget lines entered
O46: =SUM(N44:N46)/9186000 -> 0.2076641629
B47: 8. Early years centrally retained spending | C47: Central retained element supporting EY provision in LA, also supports te promotion of EY standards throughout LA | N47: 1317663
C48: No budget lines entered
O49: =SUM(N47:N49)/9186000 -> 0.1434425212
B50: TOTAL FUNDING FOR CENTRAL EXPENDITURE | N50: 3225266 | O50: =SUM(O44:O49) -> 0.3511066841
B52: EY s251 Notes

Sheet 813 (hidden)
C2: EY Table: FUNDING PERIOD (2013-14)
C3: North Lincolnshire | D3: 813
E5: Unit Value | I5: Number of Units | L5: Anticipated Budget
B6: Row Heading | C6: Description | D6: PVI | E6: Nursery School | F6: Primary Nursery Class | G6: UnitType | H6: PVI | I6: Nursery School | J6: Primary Nursery Class | K6: PVI | L6: Nursery School | M6: Primary Nursery Class | N6: Total Budget | O6: Proportion of Funding
B8: 1. EYSFF (three and four year olds) Base Rate(s) per hour, per provider type | C8: Large school nursery (39+ places) | F8: 3.5 | G8: PerHour | J8: 342757 | M8: 1199649.5 | N8: 1199649.5
C9: Other nursery (PVI, primary nursery class <39 places & childminder) | D9: 3.8 | F9: 3.8 | G9: PerHour | H9: 653355 | J9: 287445 | K9: 2482749 | M9: 1092291 | N9: 3575040
O10: =SUM(N8:N10)/6445887 -> 0.7407342853
B11: 2a. Supplements: Deprivation | C11: 30% most economically deprived households as identified through the IDACI | D11: 0.6 | F11: 0.6 | G11: PerHour | H11: 113350 | J11: 271203 | K11: 68010 | M11: 162721.8 | N11: 230731.8
O12: =SUM(N11:N12)/6445887 -> 0.03579519777
B13: 2b. Supplements: Quality | C13: Outstanding Ofsted - QTS/EYPS employed | D13: 0.5 | F13: 0.5 | G13: PerHour | H13: 30696 | J13: 104065 | K13: 15348 | M13: 52032.5 | N13: 67380.5
C14: Good Ofsted - QTS/EYPS employed | D14: 0.3 | F14: 0.3 | G14: PerHour | H14: 82637 | J14: 346114 | K14: 24791.1 | M14: 103834.2 | N14: 128625.3
C15: Good/Outstanding Ofsted - no graduate employed | D15: 0.2 | G15: PerHour | H15: 151858 | K15: 30371.6 | N15: 30371.6
O16: =SUM(N13:N16)/6445887 -> 0.03511966623
B17: 2c. Supplements: Flexibility | C17: Early education offered for one hour prior to and after lunch on at least one day of the week | D17: 0.3 | F17: 0.3 | G17: PerHour | H17: 621297 | J17: 475025 | K17: 186389.1 | M17: 142507.5 | N17: 328896.6
O18: =SUM(N17:N18)/6445887 -> 0.05102425779
B19: 2d. Supplements: Sustainability | C19: No other early education provision within one mile | D19: 0.3 | F19: 0.3 | G19: PerHour | H19: 110633 | J19: 84203 | K19: 33189.9 | M19: 25260.9 | N19: 58450.8
C20: No other 0, 1 or 2 year old provision within one mile | D20: 0.1 | G20: PerHour | H20: 39905 | K20: 3990.5 | N20: 3990.5
O21: =SUM(N19:N21)/6445887 -> 0.009686998857
B22: 3. Other formula | C22: To support the cost of employing an early years practitioner in a small school (<10 children). Varies depending on numbers of children. | F22: 9250 | G22: LumpSum | J22: 20 | M22: 185000 | N22: 185000
O23: =SUM(N22:N23)/6445887 -> 0.0287004721
B24: 4. Additional funded free hours | C24: No budget lines entered
O25: =SUM(N24:N25)/6445887 -> 0
B26: TOTAL FUNDING FOR EARLY YEARS SINGLE FUNDING FORMULA (3s AND 4s) | K26: 2844839.2 | M26: 2963297.4 | N26: 5808136.6 | O26: =SUM(O8:O25) -> 0.901060878
E28: Unit Value | I28: Number of Units | L28: Anticipated Budget
B29: Row Heading | C29: Description | D29: PVI | E29: Nursery School | F29: Primary Nursery Class | H29: PVI | I29: Nursery School | J29: Primary Nursery Class | K29: PVI | L29: Nursery School | M29: Primary Nursery Class | N29: Total Budget | O29: Proportion of Funding
B30: 5. Two year old Base Rate(s) per hour, per provider type | C30: Base Rate | D30: 4.85 | G30: PerHour | H30: 175912 | K30: 853173.2 | N30: 853173.2
B32: 6a. Two year old supplements Quality | C32: No budget lines entered
B34: 6b. Other supplements | C34: No budget lines entered
B36: TOTAL FUNDING FOR EARLY YEARS SINGLE FUNDING FORMULA FOR 2 YEAR OLDs | K36: 853173.2 | N36: 853173.2
B39: Row Heading | E39: Description | L39: Anticipated Total Budget | O39: Proportion of Funding
B40: 7. Early years contingency funding | C40: No budget lines entered
O41: =SUM(N40:N41)/6445887 -> 0
B42: 8. Early years centrally retained spending | C42: Centrally retained | N42: 397800
C43: Funding for 2 year olds not yet allocated | N43: 239950
O44: =SUM(N42:N44)/6445887 -> 0.0989390599
B45: TOTAL FUNDING FOR CENTRAL EXPENDITURE | N45: 637750 | O45: =SUM(O40:O44) -> 0.0989390599
B47: EY s251 Notes

Sheet 812 (hidden)
C2: EY Table: FUNDING PERIOD (2013-14)
C3: North East Lincolnshire | D3: 812
E5: Unit Value | I5: Number of Units | L5: Anticipated Budget
B6: Row Heading | C6: Description | D6: PVI | E6: Nursery School | F6: Primary Nursery Class | G6: UnitType | H6: PVI | I6: Nursery School | J6: Primary Nursery Class | K6: PVI | L6: Nursery School | M6: Primary Nursery Class | N6: Total Budget | O6: Proportion of Funding
B8: 1. EYSFF (three and four year olds) Base Rate(s) per hour, per provider type | C8: Base rates | D8: 3.32 | E8: 3.8 | F8: 2.79 | G8: PerHour | H8: 669522 | I8: 87115 | J8: 414922 | K8: 2222813.04 | L8: 331037 | M8: 1157632.38 | N8: 3711482.42
C9: Maintained infant schools | F9: 2.94 | G9: PerHour | J9: 71250 | M9: 209475 | N9: 209475
C10: Academies | F10: 2.79 | G10: PerHour | J10: 236208 | M10: 659020.32 | N10: 659020.32
O11: =SUM(N8:N11)/5831086 -> 0.7854416381
B12: 2a. Supplements: Deprivation | C12: More than 50% of pupils at setting within deprived location | D12: 0.05 | F12: 0.05 | G12: PerHour | H12: 203480 | J12: 356460 | K12: 10174 | M12: 17823 | N12: 27997
C13: Academies - more than 50% of pupils at setting within deprived location | F13: 0.05 | G13: PerHour | J13: 225720 | M13: 11286 | N13: 11286
C14: More than 70% of pupils at setting within deprived location | D14: 0.05 | F14: 0.05 | G14: PerHour | H14: 171640 | J14: 160260 | K14: 8582 | M14: 8013 | N14: 16595
C15: Academies - more than 70% of pupils at setting within deprived location | F15: 0.05 | G15: PerHour | J15: 225720 | M15: 11286 | N15: 11286
O16: =SUM(N12:N16)/5831086 -> 0.01151826607
B17: 2b. Supplements: Quality | C17: No budget lines entered
O18: =SUM(N17:N18)/5831086 -> 0
B19: 2c. Supplements: Flexibility | C19: No budget lines entered
O20: =SUM(N19:N20)/5831086 -> 0
B21: 2d. Supplements: Sustainability | C21: No budget lines entered
O22: =SUM(N21:N22)/5831086 -> 0
B23: 3. Other formula | C23: Mobility within PVIs based on last year's trend | D23: -112078 | G23: LumpSum | H23: 1 | K23: -112078 | N23: -112078
C24: Lump sum per each maintained nursery | E24: 102000 | G24: LumpSum | I24: 2 | L24: 204000 | N24: 204000
C25: Business Rates for maintained nursery 1 based on actual cost | E25: 4192 | G25: LumpSum | I25: 1 | L25: 4192 | N25: 4192
C26: Business Rates for maintained nursery 2 based on actual cost | E26: 4004 | G26: LumpSum | I26: 1 | L26: 4004 | N26: 4004
O27: =SUM(N23:N27)/5831086 -> 0.01716970046
B28: 4. Additional funded free hours | C28: No budget lines entered
O29: =SUM(N28:N29)/5831086 -> 0
B30: TOTAL FUNDING FOR EARLY YEARS SINGLE FUNDING FORMULA (3s AND 4s) | K30: 2129491.04 | L30: 543233 | M30: 2074535.7 | N30: 4747259.74 | O30: =SUM(O8:O29) -> 0.8141296047
E32: Unit Value | I32: Number of Units | L32: Anticipated Budget
B33: Row Heading | C33: Description | D33: PVI | E33: Nursery School | F33: Primary Nursery Class | H33: PVI | I33: Nursery School | J33: Primary Nursery Class | K33: PVI | L33: Nursery School | M33: Primary Nursery Class | N33: Total Budget | O33: Proportion of Funding
B34: 5. Two year old Base Rate(s) per hour, per provider type | C34: PVI settings | D34: 4.89 | G34: PerHour | H34: 253650 | K34: 1240348.5 | N34: 1240348.5
B36: 6a. Two year old supplements Quality | C36: No budget lines entered
B38: 6b. Other supplements | C38: No budget lines entered
B40: TOTAL FUNDING FOR EARLY YEARS SINGLE FUNDING FORMULA FOR 2 YEAR OLDs | K40: 1240348.5 | N40: 1240348.5
B43: Row Heading | E43: Description | L43: Anticipated Total Budget | O43: Proportion of Funding
B44: 7. Early years contingency funding | C44: Mobility within maintained schools and academies based on last year's trend | N44: 335281
O45: =SUM(N44:N45)/5831086 -> 0.05749889472
B46: 8. Early years centrally retained spending | C46: Contribution towards Early Years Inspn & Advisory teams, & Trajectory Funding not yet allocated to PVIs re Two Year old offer | N46: 748545
O47: =SUM(N46:N47)/5831086 -> 0.128371456
B48: TOTAL FUNDING FOR CENTRAL EXPENDITURE | N48: 1083826 | O48: =SUM(O44:O47) -> 0.1858703507
B50: EY s251 Notes

Sheet 926 (hidden)
C2: EY Table: FUNDING PERIOD (2013-14)
C3: Norfolk | D3: 926
E5: Unit Value | I5: Number of Units | L5: Anticipated Budget
B6: Row Heading | C6: Description | D6: PVI | E6: Nursery School | F6: Primary Nursery Class | G6: UnitType | H6: PVI | I6: Nursery School | J6: Primary Nursery Class | K6: PVI | L6: Nursery School | M6: Primary Nursery Class | N6: Total Budget | O6: Proportion of Funding
B8: 1. EYSFF (three and four year olds) Base Rate(s) per hour, per provider type | C8: Academy | D8: 3.38 | G8: PerHour | H8: 39582 | K8: 133787.16 | N8: 133787.16
C9: Nursery Class | F9: 3.38 | G9: PerHour | J9: 1471019 | M9: 4972044.22 | N9: 4972044.22
C10: Nursery School | E10: 3.38 | G10: PerHour | I10: 132016 | L10: 446214.08 | N10: 446214.08
C11: Private Sector (No. of children in attendance per session - 17 and over) | D11: 3.61 | G11: PerHour | H11: 1921019 | K11: 6934878.59 | N11: 6934878.59
C12: Private Sector (No. of children in attendance per session - between 9 and 16) | D12: 3.83 | G12: PerHour | H12: 248292 | K12: 950958.36 | N12: 950958.36
C13: Private Sector (No. of children in attendance per session - 8 and under) | D13: 5.16 | G13: PerHour | H13: 18475 | K13: 95331 | N13: 95331
C14: Voluntary Sector (No. of children in attendance per session - 17 and over) | D14: 3.51 | G14: PerHour | H14: 1913843 | K14: 6717588.93 | N14: 6717588.93
C15: Voluntary Sector (No.of children in attendance per session - between 9 and 16) | D15: 3.73 | G15: PerHour | H15: 185154 | K15: 690624.42 | N15: 690624.42
C16: Voluntary Sector (No. of children in attendance per session - 8 and under) | D16: 5.06 | G16: PerHour | H16: 12147 | K16: 61463.82 | N16: 61463.82
C17: Childminder | D17: 5.06 | G17: PerHour | H17: 85913 | K17: 434719.78 | N17: 434719.78
O18: =SUM(N8:N18)/25224952 -> 0.8498573302
B19: 2a. Supplements: Deprivation | C19: For every child who has a multiple deprivation score of over 33.34 at January census | D19: 50 | E19: 50 | F19: 50 | G19: PerChild | H19: 952 | I19: 96 | J19: 614 | K19: 47600 | L19: 4800 | M19: 30700 | N19: 83100
O20: =SUM(N19:N20)/25224952 -> 0.003294357111
B21: 2b. Supplements: Quality | C21: Level 5 (number of children in attendance per session - 17 and over) | D21: 0.09 | G21: PerHour | H21: 548326 | K21: 49349.34 | N21: 49349.34
C22: EYPS/QTS (No. of children in attendance per session - 17 and over) | D22: 0.24 | G22: PerHour | H22: 1102667 | K22: 264640.08 | N22: 264640.08
C23: Level 5 (No. of children in attendance per session - between 9 and 16) | D23: 0.14 | G23: PerHour | H23: 85058 | K23: 11908.12 | N23: 11908.12
C24: EYPS/QTS (No. of children in attendance per session - between 9 and 16) | D24: 0.35 | G24: PerHour | H24: 72365 | K24: 25327.75 | N24: 25327.75
C25: Level 5 (No. of children in attendance per session - 8 and under) | D25: 0.29 | G25: PerHour | H25: 5275 | K25: 1529.75 | N25: 1529.75
C26: EYPS/QTS (No of children in attendance per session - 8 and under) | D26: 0.71 | G26: PerHour | H26: 7572 | K26: 5376.12 | N26: 5376.12
O27: =SUM(N21:N27)/25224952 -> 0.01419749619
B28: 2c. Supplements: Flexibility | C28: No budget lines entered
O29: =SUM(N28:N29)/25224952 -> 0
B30: 2d. Supplements: Sustainability | C30: No budget lines entered
O31: =SUM(N30:N31)/25224952 -> 0
B32: 3. Other formula | C32: No budget lines entered
O33: =SUM(N32:N33)/25224952 -> 0
B34: 4. Additional funded free hours | C34: No budget lines entered
O35: =SUM(N34:N35)/25224952 -> 0
B36: TOTAL FUNDING FOR EARLY YEARS SINGLE FUNDING FORMULA (3s AND 4s) | K36: 16425083.22 | L36: 451014.08 | M36: 5002744.22 | N36: 21878841.52 | O36: =SUM(O8:O35) -> 0.8673491835
E38: Unit Value | I38: Number of Units | L38: Anticipated Budget
B39: Row Heading | C39: Description | D39: PVI | E39: Nursery School | F39: Primary Nursery Class | H39: PVI | I39: Nursery School | J39: Primary Nursery Class | K39: PVI | L39: Nursery School | M39: Primary Nursery Class | N39: Total Budget | O39: Proportion of Funding
B40: 5. Two year old Base Rate(s) per hour, per provider type | C40: No budget lines entered
B42: 6a. Two year old supplements Quality | C42: No budget lines entered
B44: 6b. Other supplements | C44: No budget lines entered
B46: TOTAL FUNDING FOR EARLY YEARS SINGLE FUNDING FORMULA FOR 2 YEAR OLDs
B49: Row Heading | E49: Description | L49: Anticipated Total Budget | O49: Proportion of Funding
B50: 7. Early years contingency funding | C50: No budget lines entered
O51: =SUM(N50:N51)/25224952 -> 0
B52: 8. Early years centrally retained spending | C52: Family Information Service | N52: 125000
C53: Portage | N53: 1809180
C54: Early Years Support Teams (Strategic and Operational) | N54: 1411930
O55: =SUM(N52:N55)/25224952 -> 0.1326507975
B56: TOTAL FUNDING FOR CENTRAL EXPENDITURE | N56: 3346110 | O56: =SUM(O50:O55) -> 0.1326507975
B58: EY s251 Notes

Sheet 316 (hidden)
C2: EY Table: FUNDING PERIOD (2013-14)
C3: Newham | D3: 316
E5: Unit Value | I5: Number of Units | L5: Anticipated Budget
B6: Row Heading | C6: Description | D6: PVI | E6: Nursery School | F6: Primary Nursery Class | G6: UnitType | H6: PVI | I6: Nursery School | J6: Primary Nursery Class | K6: PVI | L6: Nursery School | M6: Primary Nursery Class | N6: Total Budget | O6: Proportion of Funding
B8: 1. EYSFF (three and four year olds) Base Rate(s) per hour, per provider type | C8: Base Rate | D8: 4.11 | E8: 7 | F8: 3.37 | G8: PerHour | H8: 902310 | I8: 555180 | J8: 2252070 | K8: 3708494.1 | L8: 3886260 | M8: 7589475.9 | N8: 15184230
O9: =SUM(N8:N9)/22610816 -> 0.6715471923
B10: 2a. Supplements: Deprivation | C10: Postcode Scores weighted | D10: 23 | E10: 23 | F10: 23 | G10: LumpSum | H10: 1816 | I10: 1196 | J10: 4783 | K10: 41768 | L10: 27508 | M10: 110009 | N10: 179285
O11: =SUM(N10:N11)/22610816 -> 0.007929169827
B12: 2b. Supplements: Quality | C12: EY Qualifications | D12: 2000 | E12: 2000 | F12: 2000 | G12: LumpSum | H12: 69 | I12: 7 | J12: 58 | K12: 138000 | L12: 14000 | M12: 116000 | N12: 268000
O13: =SUM(N12:N13)/22610816 -> 0.01185273455
B14: 2c. Supplements: Flexibility | C14: Flexible hours | D14: 0.4 | G14: PerHour | H14: 344280 | K14: 137712 | N14: 137712
O15: =SUM(N14:N15)/22610816 -> 0.006090536494
B16: 2d. Supplements: Sustainability | C16: No budget lines entered
O17: =SUM(N16:N17)/22610816 -> 0
B18: 3. Other formula | C18: Lump Sum | E18: 120000 | G18: LumpSum | I18: 7 | L18: 840000 | N18: 840000
C19: NNDR (Rates) | E19: 17031 | G19: LumpSum | I19: 7 | L19: 119217 | N19: 119217
O20: =SUM(N18:N20)/22610816 -> 0.04242292715
B21: 4. Additional funded free hours | C21: No budget lines entered
O22: =SUM(N21:N22)/22610816 -> 0
B23: TOTAL FUNDING FOR EARLY YEARS SINGLE FUNDING FORMULA (3s AND 4s) | K23: 4025974.1 | L23: 4886985 | M23: 7815484.9 | N23: 16728444 | O23: =SUM(O8:O22) -> 0.7398425603
E25: Unit Value | I25: Number of Units | L25: Anticipated Budget
B26: Row Heading | C26: Description | D26: PVI | E26: Nursery School | F26: Primary Nursery Class | H26: PVI | I26: Nursery School | J26: Primary Nursery Class | K26: PVI | L26: Nursery School | M26: Primary Nursery Class | N26: Total Budget | O26: Proportion of Funding
B27: 5. Two year old Base Rate(s) per hour, per provider type | C27: number of hours multipled by number of weeks | D27: 5.28 | E27: 5.28 | G27: PerHour | H27: 230850 | I27: 20520 | K27: 1218888 | L27: 108345.6 | N27: 1327233.6
B29: 6a. Two year old supplements Quality | C29: No budget lines entered
B31: 6b. Other supplements | C31: No budget lines entered
B33: TOTAL FUNDING FOR EARLY YEARS SINGLE FUNDING FORMULA FOR 2 YEAR OLDs | K33: 1218888 | L33: 108345.6 | N33: 1327233.6
B36: Row Heading | E36: Description | L36: Anticipated Total Budget | O36: Proportion of Funding
B37: 7. Early years contingency funding | C37: Contingency for growth of 2year olds | N37: 1562933
O38: =SUM(N37:N38)/22610816 -> 0.06912324615
B39: 8. Early years centrally retained spending | C39: Centrally Retained Funding for 3 & 4 yr old | N39: 2137510
C40: Centally Retained funding for 2 year old | N40: 2181929
O41: =SUM(N39:N41)/22610816 -> 0.1910341935
B42: TOTAL FUNDING FOR CENTRAL EXPENDITURE | N42: 5882372 | O42: =SUM(O37:O41) -> 0.2601574397
B44: EY s251 Notes
B45: Deprevation is based on each child's postcode looked-up on the IDACI index. Those that return a score that sits in the bands 3 to 6 of the table released by DfE for calculating deprivation in the Schools Block attract an allocation

Sheet 391 (hidden)
C2: EY Table: FUNDING PERIOD (2013-14)
C3: Newcastle upon Tyne | D3: 391
E5: Unit Value | I5: Number of Units | L5: Anticipated Budget
B6: Row Heading | C6: Description | D6: PVI | E6: Nursery School | F6: Primary Nursery Class | G6: UnitType | H6: PVI | I6: Nursery School | J6: Primary Nursery Class | K6: PVI | L6: Nursery School | M6: Primary Nursery Class | N6: Total Budget | O6: Proportion of Funding
B8: 1. EYSFF (three and four year olds) Base Rate(s) per hour, per provider type | D8: 3.75 | E8: 3.75 | F8: 3.75 | G8: PerHour | H8: 929688 | I8: 324444 | J8: 1022371 | K8: 3486330 | L8: 1216665 | M8: 3833891.25 | N8: 8536886.25
O9: =SUM(N8:N9)/11542172 -> 0.7396256311
B10: 2a. Supplements: Deprivation | C10: IDACI 10% | D10: 709.38 | E10: 709.38 | F10: 709.38 | G10: PerChild | H10: 408 | I10: 283 | J10: 705 | K10: 289427.04 | L10: 200754.54 | M10: 500112.9 | N10: 990294.48
O11: =SUM(N10:N11)/11542172 -> 0.08579793127
B12: 2b. Supplements: Quality | C12: No budget lines entered
O13: =SUM(N12:N13)/11542172 -> 0
B14: 2c. Supplements: Flexibility | C14: No budget lines entered
O15: =SUM(N14:N15)/11542172 -> 0
B16: 2d. Supplements: Sustainability | C16: No budget lines entered
O17: =SUM(N16:N17)/11542172 -> 0
B18: 3. Other formula | C18: No budget lines entered
O19: =SUM(N18:N19)/11542172 -> 0
B20: 4. Additional funded free hours | C20: Lump sum | E20: 140000 | G20: LumpSum | I20: 6 | L20: 840000 | N20: 840000
C21: Rates | E21: 27917 | G21: LumpSum | I21: 1 | L21: 27917 | N21: 27917
O22: =SUM(N20:N22)/11542172 -> 0.07519529253
B23: TOTAL FUNDING FOR EARLY YEARS SINGLE FUNDING FORMULA (3s AND 4s) | K23: 3775757.04 | L23: 2285336.54 | M23: 4334004.15 | N23: 10395097.73 | O23: =SUM(O8:O22) -> 0.9006188549
E25: Unit Value | I25: Number of Units | L25: Anticipated Budget
B26: Row Heading | C26: Description | D26: PVI | E26: Nursery School | F26: Primary Nursery Class | H26: PVI | I26: Nursery School | J26: Primary Nursery Class | K26: PVI | L26: Nursery School | M26: Primary Nursery Class | N26: Total Budget | O26: Proportion of Funding
B27: 5. Two year old Base Rate(s) per hour, per provider type | C27: Base Rate | D27: 4.85 | G27: PerHour | H27: 494021 | K27: 2396001.85 | N27: 2396001.85
B29: 6a. Two year old supplements Quality | C29: No budget lines entered
B31: 6b. Other supplements | C31: No budget lines entered
B33: TOTAL FUNDING FOR EARLY YEARS SINGLE FUNDING FORMULA FOR 2 YEAR OLDs | K33: 2396001.85 | N33: 2396001.85
B36: Row Heading | E36: Description | L36: Anticipated Total Budget | O36: Proportion of Funding
B37: 7. Early years contingency funding | C37: In year adjustments and Trajectory funding | N37: 1084074.13
O38: =SUM(N37:N38)/11542172 -> 0.09392288817
B39: 8. Early years centrally retained spending | C39: Administration including Eps | N39: 63000
O40: =SUM(N39:N40)/11542172 -> 0.005458244774
B41: TOTAL FUNDING FOR CENTRAL EXPENDITURE | N41: 1147074.13 | O41: =SUM(O37:O40) -> 0.09938113294
B43: EY s251 Notes

Sheet 826 (hidden)
C2: EY Table: FUNDING PERIOD (2013-14)
C3: Milton Keynes | D3: 826
E5: Unit Value | I5: Number of Units | L5: Anticipated Budget
B6: Row Heading | C6: Description | D6: PVI | E6: Nursery School | F6: Primary Nursery Class | G6: UnitType | H6: PVI | I6: Nursery School | J6: Primary Nursery Class | K6: PVI | L6: Nursery School | M6: Primary Nursery Class | N6: Total Budget | O6: Proportion of Funding
B8: 1. EYSFF (three and four year olds) Base Rate(s) per hour, per provider type | C8: Childminder | D8: 3.42 | G8: PerHour | H8: 11654 | K8: 39856.68 | N8: 39856.68
C9: Independent school | D9: 3.37 | G9: PerHour | H9: 160051 | K9: 539371.87 | N9: 539371.87
C10: Maintained nursery | E10: 4.5 | G10: PerHour | I10: 75075 | L10: 337837.5 | N10: 337837.5
C11: Maintained primary | F11: 3.64 | G11: PerHour | J11: 662743 | M11: 2412384.52 | N11: 2412384.52
C12: Private Nursery/Pre School | D12: 3.77 | G12: PerHour | H12: 1697124 | K12: 6398157.48 | N12: 6398157.48
O13: =SUM(N8:N13)/10680433 -> 0.9107877976
B14: 2a. Supplements: Deprivation | C14: >80% | D14: 0.72 | E14: 0.72 | F14: 0.72 | G14: PerHour | H14: 77845 | I14: 23775 | J14: 50295 | K14: 56048.4 | L14: 17118 | M14: 36212.4 | N14: 109378.8
C15: >60% | D15: 0.56 | E15: 0.56 | F15: 0.56 | G15: PerHour | H15: 94307 | I15: 51300 | J15: 41250 | K15: 52811.92 | L15: 28728 | M15: 23100 | N15: 104639.92
C16: >40% | D16: 0.42 | F16: 0.42 | G16: PerHour | H16: 135885 | J16: 115788 | K16: 57071.7 | M16: 48630.96 | N16: 105702.66
O17: =SUM(N14:N17)/10680433 -> 0.02993524513
B18: 2b. Supplements: Quality | C18: per funded hour | D18: 0.11 | E18: 0.11 | F18: 0.11 | G18: PerHour | H18: 1868829 | I18: 75075 | J18: 662743 | K18: 205571.19 | L18: 8258.25 | M18: 72901.73 | N18: 286731.17
O19: =SUM(N18:N19)/10680433 -> 0.02684639939
B20: 2c. Supplements: Flexibility | C20: No budget lines entered
O21: =SUM(N20:N21)/10680433 -> 0
B22: 2d. Supplements: Sustainability | C22: No budget lines entered
O23: =SUM(N22:N23)/10680433 -> 0
B24: 3. Other formula | C24: Nursery School | E24: 88661 | G24: LumpSum | I24: 2 | L24: 177322 | N24: 177322
C25: Maintained Primary | F25: 7350 | G25: LumpSum | J25: 23 | M25: 169050 | N25: 169050
O26: =SUM(N24:N26)/10680433 -> 0.03243052037
B27: 4. Additional funded free hours | C27: No budget lines entered
O28: =SUM(N27:N28)/10680433 -> 0
B29: TOTAL FUNDING FOR EARLY YEARS SINGLE FUNDING FORMULA (3s AND 4s) | K29: 7348889.24 | L29: 569263.75 | M29: 2762279.61 | N29: 10680432.6 | O29: =SUM(O8:O28) -> 0.9999999625
E31: Unit Value | I31: Number of Units | L31: Anticipated Budget
B32: Row Heading | C32: Description | D32: PVI | E32: Nursery School | F32: Primary Nursery Class | H32: PVI | I32: Nursery School | J32: Primary Nursery Class | K32: PVI | L32: Nursery School | M32: Primary Nursery Class | N32: Total Budget | O32: Proportion of Funding
B33: 5. Two year old Base Rate(s) per hour, per provider type | C33: All Providers | D33: 4.98 | G33: PerHour | H33: 191383 | K33: 953087.34 | N33: 953087.34
B35: 6a. Two year old supplements Quality | C35: All providers | D35: 0.11 | G35: PerHour | H35: 191383 | K35: 21052.13 | N35: 21052.13
B37: 6b. Other supplements | C37: No budget lines entered
B39: TOTAL FUNDING FOR EARLY YEARS SINGLE FUNDING FORMULA FOR 2 YEAR OLDs | K39: 974139.47 | N39: 974139.47
B42: Row Heading | E42: Description | L42: Anticipated Total Budget | O42: Proportion of Funding
B43: 7. Early years contingency funding | C43: No budget lines entered
O44: =SUM(N43:N44)/10680433 -> 0
B45: 8. Early years centrally retained spending | C45: No budget lines entered
O46: =SUM(N45:N46)/10680433 -> 0
B47: TOTAL FUNDING FOR CENTRAL EXPENDITURE | O47: =SUM(O43:O46) -> 0
B49: EY s251 Notes
B50: The deprivation % relate to the % of children at each establishment that are from deprived postcode areas (ie within 30% most deprived as per the IMD2010). The Quality allocation is a flat rate of 11p per funded hour across all providers. We currently only have 2 year old funded places at PVI’s – no maintained nursery or primary schools currently take them. We have no budget allocations for the following funding elements: Flexibility, Sustainability, Additional funded free hours, Other supplements, EY contingency, EY centrally retained funding.

Sheet 806 (hidden)
C2: EY Table: FUNDING PERIOD (2013-14)
C3: Middlesbrough | D3: 806
E5: Unit Value | I5: Number of Units | L5: Anticipated Budget
B6: Row Heading | C6: Description | D6: PVI | E6: Nursery School | F6: Primary Nursery Class | G6: UnitType | H6: PVI | I6: Nursery School | J6: Primary Nursery Class | K6: PVI | L6: Nursery School | M6: Primary Nursery Class | N6: Total Budget | O6: Proportion of Funding
B8: 1. EYSFF (three and four year olds) Base Rate(s) per hour, per provider type | C8: We have one fixed base rate for all types of providers | D8: 3.39 | F8: 3.39 | G8: PerHour | H8: 167058 | J8: 1196988 | K8: 566326.62 | M8: 4057789.32 | N8: 4624115.94
O9: =SUM(N8:N9)/7141743 -> 0.6474772251
B10: 2a. Supplements: Deprivation | C10: Payment is made based on a weighted setting score from the child wellbeing index. Children are matched with the CWI score for their postcodes. A providers score is then calculated by adding all its childrens scores together and multiplying it by the | D10: 0.12 | F10: 0.12 | G10: PerHour | H10: 131992 | J10: 1629011 | K10: 15839.04 | M10: 195481.32 | N10: 211320.36
O11: =SUM(N10:N11)/7141743 -> 0.02958946576
B12: 2b. Supplements: Quality | C12: No budget lines entered
O13: =SUM(N12:N13)/7141743 -> 0
B14: 2c. Supplements: Flexibility | C14: Payment made for children who do more than 3 hours per day. Payment is then calculated as total number of hours for qualifying children multiplied by the unit value. | D14: 0.85 | F14: 0.85 | G14: PerHour | H14: 96698 | J14: 36675 | K14: 82193.3 | M14: 31173.75 | N14: 113367.05
O15: =SUM(N14:N15)/7141743 -> 0.01587386301
B16: 2d. Supplements: Sustainability | C16: No budget lines entered
O17: =SUM(N16:N17)/7141743 -> 0
B18: 3. Other formula | C18: No budget lines entered
O19: =SUM(N18:N19)/7141743 -> 0
B20: 4. Additional funded free hours | C20: No budget lines entered
O21: =SUM(N20:N21)/7141743 -> 0
B22: TOTAL FUNDING FOR EARLY YEARS SINGLE FUNDING FORMULA (3s AND 4s) | K22: 664358.96 | M22: 4284444.39 | N22: 4948803.35 | O22: =SUM(O8:O21) -> 0.6929405539
E24: Unit Value | I24: Number of Units | L24: Anticipated Budget
B25: Row Heading | C25: Description | D25: PVI | E25: Nursery School | F25: Primary Nursery Class | H25: PVI | I25: Nursery School | J25: Primary Nursery Class | K25: PVI | L25: Nursery School | M25: Primary Nursery Class | N25: Total Budget | O25: Proportion of Funding
B26: 5. Two year old Base Rate(s) per hour, per provider type | C26: No budget lines entered
B28: 6a. Two year old supplements Quality | C28: No budget lines entered
B30: 6b. Other supplements | C30: No budget lines entered
B32: TOTAL FUNDING FOR EARLY YEARS SINGLE FUNDING FORMULA FOR 2 YEAR OLDs
B35: Row Heading | E35: Description | L35: Anticipated Total Budget | O35: Proportion of Funding
B36: 7. Early years contingency funding | C36: This includes non-allocated 2 year old funding of £2,074,326 and 3&4 year old flexibility reserve of £58,654 | N36: 2132980
O37: =SUM(N36:N37)/7141743 -> 0.2986637856
B38: 8. Early years centrally retained spending | C38: £59,960 is allocated to fund two members of staff to develop early years within our settings. | N38: 59960
O39: =SUM(N38:N39)/7141743 -> 0.008395709563
B40: TOTAL FUNDING FOR CENTRAL EXPENDITURE | N40: 2192940 | O40: =SUM(O36:O39) -> 0.3070594951
B42: EY s251 Notes

Sheet 315 (hidden)
C2: EY Table: FUNDING PERIOD (2013-14)
C3: Merton | D3: 315
E5: Unit Value | I5: Number of Units | L5: Anticipated Budget
B6: Row Heading | C6: Description | D6: PVI | E6: Nursery School | F6: Primary Nursery Class | G6: UnitType | H6: PVI | I6: Nursery School | J6: Primary Nursery Class | K6: PVI | L6: Nursery School | M6: Primary Nursery Class | N6: Total Budget | O6: Proportion of Funding
B8: 1. EYSFF (three and four year olds) Base Rate(s) per hour, per provider type | C8: Independent Schools | D8: 3.71 | F8: 3.46 | G8: PerHour | H8: 115146 | J8: 1571690 | K8: 427191.66 | M8: 5438047.4 | N8: 5865239.06
C9: Full Day Care | D9: 3.85 | G9: PerHour | H9: 472463 | K9: 1818982.55 | N9: 1818982.55
C10: Stand alone 15 hour settings | D10: 4.05 | G10: PerHour | H10: 40746 | K10: 165021.3 | N10: 165021.3
O11: =SUM(N8:N11)/12222620 -> 0.6421898832
B12: 2a. Supplements: Deprivation | C12: IDACI Band 1 | D12: 0.1 | F12: 0.1 | G12: PerHour | H12: 43337 | J12: 479501 | K12: 4333.7 | M12: 47950.1 | N12: 52283.8
C13: IDACI Band 2 | D13: 0.15 | F13: 0.15 | G13: PerHour | H13: 35383 | J13: 100587 | K13: 5307.45 | M13: 15088.05 | N13: 20395.5
C14: IDACI Band 3 | D14: 0.21 | F14: 0.21 | G14: PerHour | H14: 79636 | J14: 108754 | K14: 16723.56 | M14: 22838.34 | N14: 39561.9
C15: IDACI Band 4 | D15: 0.23 | F15: 0.23 | G15: PerHour | H15: 28813 | J15: 243426 | K15: 6626.99 | M15: 55987.98 | N15: 62614.97
C16: IDACI Band 5 | D16: 0.31 | F16: 0.31 | G16: PerHour | H16: 8898 | J16: 87705 | K16: 2758.38 | M16: 27188.55 | N16: 29946.93
C17: IDACI Band 6 | D17: 0.34 | F17: 0.34 | G17: PerHour | H17: 804 | J17: 19767 | K17: 273.36 | M17: 6720.78 | N17: 6994.14
O18: =SUM(N12:N18)/12222620 -> 0.01732830113
B19: 2b. Supplements: Quality | C19: No budget lines entered
O20: =SUM(N19:N20)/12222620 -> 0
B21: 2c. Supplements: Flexibility | C21: No budget lines entered
O22: =SUM(N21:N22)/12222620 -> 0
B23: 2d. Supplements: Sustainability | C23: No budget lines entered
O24: =SUM(N23:N24)/12222620 -> 0
B25: 3. Other formula | C25: SEN (Action plus) | D25: 2.5 | F25: 2.5 | G25: PerHour | H25: 97100 | J25: 711170 | K25: 242750 | M25: 1777925 | N25: 2020675
C26: EAL | D26: 0.03 | F26: 0.03 | G26: PerHour | H26: 10681 | J26: 24510 | K26: 320.43 | M26: 735.3 | N26: 1055.73
C27: Lump Sum | D27: 250 | F27: 250 | G27: LumpSum | H27: 75 | J27: 43 | K27: 18750 | M27: 10750 | N27: 29500
O28: =SUM(N25:N28)/12222620 -> 0.167822507
B29: 4. Additional funded free hours | C29: No budget lines entered
O30: =SUM(N29:N30)/12222620 -> 0
B31: TOTAL FUNDING FOR EARLY YEARS SINGLE FUNDING FORMULA (3s AND 4s) | K31: 2709039.38 | M31: 7403231.5 | N31: 10112270.88 | O31: =SUM(O8:O30) -> 0.8273406913
E33: Unit Value | I33: Number of Units | L33: Anticipated Budget
B34: Row Heading | C34: Description | D34: PVI | E34: Nursery School | F34: Primary Nursery Class | H34: PVI | I34: Nursery School | J34: Primary Nursery Class | K34: PVI | L34: Nursery School | M34: Primary Nursery Class | N34: Total Budget | O34: Proportion of Funding
B35: 5. Two year old Base Rate(s) per hour, per provider type | C35: 2 year old base rate and childminders | D35: 5.4 | G35: PerHour | H35: 376704 | K35: 2034201.6 | N35: 2034201.6
B37: 6a. Two year old supplements Quality | C37: No budget lines entered
B39: 6b. Other supplements | C39: IDACI Band 1 | D39: 0.02 | G39: PerHour | H39: 23202 | K39: 464.04 | N39: 464.04
C40: IDACI Band 2 | D40: 0.04 | G40: PerHour | H40: 37123 | K40: 1484.92 | N40: 1484.92
C41: IDACI Band 3 | D41: 0.06 | G41: PerHour | H41: 83527 | K41: 5011.62 | N41: 5011.62
C42: IDACI Band 4 | D42: 0.08 | G42: PerHour | H42: 44084 | K42: 3526.72 | N42: 3526.72
C43: SEN | D43: 3 | G43: PerHour | H43: 22062 | K43: 66186 | N43: 66186
C44: EAL | D44: 0.4 | G44: PerHour | H44: 98052 | K44: 39220.8 | N44: 39220.8
B46: TOTAL FUNDING FOR EARLY YEARS SINGLE FUNDING FORMULA FOR 2 YEAR OLDs | K46: 2150095.7 | N46: 2150095.7
B49: Row Heading | E49: Description | L49: Anticipated Total Budget | O49: Proportion of Funding
B50: 7. Early years contingency funding | C50: Reserve for possible unanticipated increase in take up | N50: 29784.25
O51: =SUM(N50:N51)/12222620 -> 0.002436813875
B52: 8. Early years centrally retained spending | C52: 2 yr old funding kept centrally to cover future provision for trajectory numbers | N52: 777564.8
C53: Other centrally retained funds - portage, quality & standards support, LA day nursery provision | N53: 1303000
O54: =SUM(N52:N54)/12222620 -> 0.1702224891
B55: TOTAL FUNDING FOR CENTRAL EXPENDITURE | N55: 2110349.05 | O55: =SUM(O50:O54) -> 0.172659303
B57: EY s251 Notes

Sheet 887 (hidden)
C2: EY Table: FUNDING PERIOD (2013-14)
C3: Medway | D3: 887
E5: Unit Value | I5: Number of Units | L5: Anticipated Budget
B6: Row Heading | C6: Description | D6: PVI | E6: Nursery School | F6: Primary Nursery Class | G6: UnitType | H6: PVI | I6: Nursery School | J6: Primary Nursery Class | K6: PVI | L6: Nursery School | M6: Primary Nursery Class | N6: Total Budget | O6: Proportion of Funding
B8: 1. EYSFF (three and four year olds) Base Rate(s) per hour, per provider type | C8: 1.1.Nursery Pupil Hours (Applies to all providers) | D8: 3.4 | F8: 3.4 | G8: PerHour | H8: 1603407 | J8: 786714 | K8: 5451583.8 | M8: 2674827.6 | N8: 8126411.4
C9: 1.2.Early Years Minimum Funding Guarantee (Applies to all providers) | G9: PerHour
O10: =SUM(N8:N10)/11834589 -> 0.6866661276
B11: 2a. Supplements: Deprivation | C11: Deprivation: 2.1.Disadvantage/Additional Educational Needs (Calculates levels of deprivation per child's home postcode using IDACI. Each setting's score is compared to the whole of Medway early years sector average) | D11: 0.36 | F11: 0.36 | G11: PerHour | H11: 1536892 | J11: 959219 | K11: 553281.12 | M11: 345318.84 | N11: 898599.96
O12: =SUM(N11:N12)/11834589 -> 0.07592996766
B13: 2b. Supplements: Quality | C13: Quality: 2.1.Quality (Based on latest Ofsted Inspection. 'Good' / 'Outstanding' judgements are funded) | D13: 0.05 | F13: 0.05 | G13: PerHour | H13: 1384520 | J13: 500280 | K13: 69226 | M13: 25014 | N13: 94240
O14: =SUM(N13:N14)/11834589 -> 0.007963098676
B15: 2c. Supplements: Flexibility | C15: Flexibility (Based on how flexible providers offer the free entitlement. Flexibility scored as follows; a) Flexible - i) open 40 hours+ per week of ii) open 38 weeks per year and offers "5x3" or "3x5", b) Part-Flexible - offers either "5x3" or "3x5" | D15: 0.03 | F15: 0.03 | G15: PerHour | H15: 2127066 | J15: 858266 | K15: 63811.98 | M15: 25747.98 | N15: 89559.96
O16: =SUM(N15:N16)/11834589 -> 0.007567644301
B17: 2d. Supplements: Sustainability | C17: No budget lines entered
O18: =SUM(N17:N18)/11834589 -> 0
